Service Delivery Area(T),Service Delivery Team(T),CostC,ExpenditureGroup(T),Account(T),Supplier Name(T),Trans Date,Amount
Adult Care & Support,Access & Enablement,HOAC,Supplies & Services,Purchased Meals,COVERAGE CARE SERVICES LTD,20/11/2013,2025.62
Adult Care & Support,Access & Enablement,HOAC,Supplies & Services,Purchased Meals,COVERAGE CARE SERVICES LTD,20/11/2013,917.62
Adult Care & Support,Access & Enablement,HOAC,Supplies & Services,Purchased Meals,APETITO LTD,27/11/2013,193.02
Adult Care & Support,Access & Enablement,HOAC,Supplies & Services,Purchased Meals,APETITO LTD,27/11/2013,901.2
Adult Care & Support,Access & Enablement,HOAC,Supplies & Services,Purchased Meals,APETITO LTD,27/11/2013,1317.3
Adult Care & Support,Access & Enablement,HOAC,Supplies & Services,Purchased Meals,APETITO LTD,29/11/2013,130.54
Adult Care & Support,Access & Enablement,HOAC,Supplies & Services,Purchased Meals,APETITO LTD,29/11/2013,167.19
Adult Care & Support,Access & Enablement,HOAC,Supplies & Services,Purchased Meals,APETITO LTD,06/11/2013,107.53
Adult Care & Support,Access & Enablement,HOAC,Supplies & Services,Purchased Meals,APETITO LTD,06/11/2013,256.53
Adult Care & Support,Access & Enablement,HOAC,Supplies & Services,Purchased Meals,APETITO LTD,07/11/2013,125.29
Adult Care & Support,Access & Enablement,HOAC,Supplies & Services,Purchased Meals,APETITO LTD,07/11/2013,161.12
Adult Care & Support,Access & Enablement,HOAC,Supplies & Services,Purchased Meals,APETITO LTD,07/11/2013,150.44
Adult Care & Support,Access & Enablement,HOAC,Supplies & Services,Purchased Meals,APETITO LTD,07/11/2013,1207.65
Adult Care & Support,Access & Enablement,HOAC,Supplies & Services,Purchased Meals,APETITO LTD,12/11/2013,157.21
Adult Care & Support,Access & Enablement,HOAF,Third Party Payments,Private Contractors,RNIB SERVICES LIMITED,04/11/2013,328
Adult Care & Support,Access & Enablement,HOAF,Third Party Payments,Private Contractors,RNIB SERVICES LIMITED,05/11/2013,1558
Adult Care & Support,Access & Enablement,HOAF,Third Party Payments,Private Contractors,RNIB SERVICES LIMITED,27/11/2013,410
Adult Care & Support,Access & Enablement,HOAG,Supplies & Services,Aids & Appliances,COBOLT SYSTEMS LTD,15/11/2013,110
Adult Care & Support,Access & Enablement,HOAG,Supplies & Services,Aids & Appliances,HEARING PRODUCTS INTERNATIONAL LIMITED,27/11/2013,113.5
Adult Care & Support,Access & Enablement,HOAG,Third Party Payments,Interpreters Fees,VISS LTD,04/11/2013,125
Adult Care & Support,Access & Enablement,HOAG,Third Party Payments,Interpreters Fees,VISS LTD,04/11/2013,125
Adult Care & Support,Access & Enablement,HOAG,Third Party Payments,Interpreters Fees,VISS LTD,27/11/2013,150
Adult Care & Support,Access & Enablement,HOAP,Supplies & Services,Aids & Appliances,BERWICK CARE EQUIPMENT LTD,20/11/2013,1797
Adult Care & Support,Access & Enablement,HOAP,Supplies & Services,Aids & Appliances,BERWICK CARE EQUIPMENT LTD,20/11/2013,113.85
Adult Care & Support,Access & Enablement,HOAP,Supplies & Services,Aids & Appliances,AKW MEDI-CARE LIMITED,21/11/2013,101.84
Adult Care & Support,Access & Enablement,HOAP,Supplies & Services,Aids & Appliances,PRISM MEDICAL WESTHOLME DIVISION,22/11/2013,523.75
Adult Care & Support,Access & Enablement,HOAP,Supplies & Services,Aids & Appliances,THE WREKIN HOUSING TRUST,22/11/2013,125
Adult Care & Support,Access & Enablement,HOAP,Supplies & Services,Aids & Appliances,THE WREKIN HOUSING TRUST,22/11/2013,125
Adult Care & Support,Access & Enablement,HOAP,Supplies & Services,Adaptations,TRAVIS PERKINS TRADING CO LIMITED,22/11/2013,655
Adult Care & Support,Access & Enablement,HOAP,Supplies & Services,Aids & Appliances,PivoTell Ltd,26/11/2013,294
Adult Care & Support,Access & Enablement,HOAP,Supplies & Services,Aids & Appliances,PRISM MEDICAL WESTHOLME DIVISION,06/11/2013,1439.62
Adult Care & Support,Access & Enablement,HOAP,Supplies & Services,Aids & Appliances,BERWICK CARE EQUIPMENT LTD,05/11/2013,855
Adult Care & Support,Access & Enablement,HOAP,Supplies & Services,Aids & Appliances,THE WREKIN HOUSING TRUST,05/11/2013,585
Adult Care & Support,Access & Enablement,HOAP,Supplies & Services,Aids & Appliances,MANGAR INTERNATIONAL LTD,06/11/2013,3500
Adult Care & Support,Access & Enablement,HOAP,Supplies & Services,Aids & Appliances,THE WREKIN HOUSING TRUST,25/11/2013,125
Adult Care & Support,Access & Enablement,HOAP,Supplies & Services,Aids & Appliances,BERWICK CARE EQUIPMENT LTD,25/11/2013,1260
Adult Care & Support,Access & Enablement,HOAP,Supplies & Services,Aids & Appliances,PRISM MEDICAL WESTHOLME DIVISION,15/11/2013,623.71
Adult Care & Support,Access & Enablement,HOAP,Supplies & Services,Aids & Appliances,CENTROBED LIMITED,01/11/2013,3400
Adult Care & Support,Access & Enablement,HOAP,Supplies & Services,Equipment - Repair,PRISM MEDICAL WESTHOLME DIVISION,27/11/2013,385
Adult Care & Support,Access & Enablement,HOAP,Supplies & Services,Equipment - Repair,PRISM MEDICAL WESTHOLME DIVISION,15/11/2013,243
Adult Care & Support,Access & Enablement,HOAP,Supplies & Services,Equipment - Repair,PRISM MEDICAL WESTHOLME DIVISION,28/11/2013,104
Adult Care & Support,Access & Enablement,HOAP,Supplies & Services,Equipment - Hire,HANDICARE ACCESSIBILITY LIMITED,28/11/2013,5546.82
Adult Care & Support,Access & Enablement,HOAP,Supplies & Services,Aids & Appliances,SIMPLYMED LTD,07/11/2013,420
Adult Care & Support,Access & Enablement,HOAP,Supplies & Services,Aids & Appliances,PivoTell Ltd,07/11/2013,1900
Adult Care & Support,Access & Enablement,HOAP,Supplies & Services,Aids & Appliances,Essentialaids Ltd,07/11/2013,175.51
Adult Care & Support,Access & Enablement,HOAP,Supplies & Services,Aids & Appliances,THE WREKIN HOUSING TRUST,07/11/2013,125
Adult Care & Support,Access & Enablement,HOAP,Supplies & Services,Aids & Appliances,THE WREKIN HOUSING TRUST,07/11/2013,125
Adult Care & Support,Access & Enablement,HOAP,Supplies & Services,Aids & Appliances,Neater Solutions Ltd,15/11/2013,1052
Adult Care & Support,Access & Enablement,HOAW,Supplies & Services,Equipment - Purchase,Boots The Chemist,26/11/2013,220
Adult Care & Support,Access & Enablement,HOAW,Supplies & Services,Aids & Appliances,1st Call Mobility,25/11/2013,395
Adult Care & Support,Access & Enablement,HOAW,Third Party Payments,Nursing Expenditure,OAKENGATES MEDICAL PRACTICE,04/11/2013,1816.25
Adult Care & Support,Access & Enablement,JCAB,Supplies & Services,Supportive Lodgings,THEO LANGSTON,25/11/2013,1241.86
Adult Care & Support,Access & Enablement,JCAB,Supplies & Services,CL - Basic Allowance,NEXT STEP CARE MANAGEMENT LTD,06/11/2013,227.2
Adult Care & Support,Access & Enablement,JCAB,Supplies & Services,Supportive Lodgings,NEXT STEP CARE MANAGEMENT LTD,06/11/2013,1864.5
Adult Care & Support,Access & Enablement,JCAB,Supplies & Services,Supportive Lodgings,NEXT STEP CARE MANAGEMENT LTD,15/11/2013,1727.14
Adult Care & Support,Access & Enablement,JCAB,Supplies & Services,Supportive Lodgings,NEXT STEP CARE MANAGEMENT LTD,15/11/2013,1328.66
Adult Care & Support,Access & Enablement,JCAB,Supplies & Services,Supportive Lodgings,NEXT STEP CARE MANAGEMENT LTD,15/11/2013,664.33
Adult Care & Support,Access & Enablement,JCAB,Supplies & Services,Supportive Lodgings,NEXT STEP CARE MANAGEMENT LTD,15/11/2013,1550
Adult Care & Support,Access & Enablement,JCAB,Supplies & Services,Supportive Lodgings,NEXT STEP CARE MANAGEMENT LTD,15/11/2013,1328.66
Adult Care & Support,Access & Enablement,JCAB,Supplies & Services,Supportive Lodgings,NEXT STEP CARE MANAGEMENT LTD,15/11/2013,597.99
Adult Care & Support,Access & Enablement,JCAB,Supplies & Services,CL - Basic Allowance,NEXT STEP CARE MANAGEMENT LTD,15/11/2013,113.6
Adult Care & Support,Access & Enablement,JCAB,Supplies & Services,CL - Basic Allowance,NEXT STEP CARE MANAGEMENT LTD,15/11/2013,227.2
Adult Care & Support,Access & Enablement,JCAB,Supplies & Services,Supportive Lodgings,KEYS CHILDCARE LTD,15/11/2013,1771.34
Adult Care & Support,Access & Enablement,JCAB,Supplies & Services,CL - Basic Allowance,NEXT STEP CARE MANAGEMENT LTD,15/11/2013,227.2
Adult Care & Support,Access & Enablement,JCAB,Supplies & Services,CL - Basic Allowance,NEXT STEP CARE MANAGEMENT LTD,15/11/2013,284
Adult Care & Support,Access & Enablement,JCAB,Supplies & Services,Supportive Lodgings,NEXT STEP CARE MANAGEMENT LTD,06/11/2013,1928.7
Adult Care & Support,Access & Enablement,JCAB,Supplies & Services,Supportive Lodgings,THEO LANGSTON,15/11/2013,930
Adult Care & Support,Access & Enablement,JCAB,Supplies & Services,CL - Basic Allowance,KEYS CHILDCARE LTD,15/11/2013,251.41
Adult Care & Support,Access & Enablement,JCAB,Supplies & Services,Supportive Lodgings,NEXT STEP CARE MANAGEMENT LTD,15/11/2013,216
Adult Care & Support,Access & Enablement,JCAB,Supplies & Services,Supportive Lodgings,NEXT STEP CARE MANAGEMENT LTD,15/11/2013,668.59
Adult Care & Support,Access & Enablement,JCAB,Supplies & Services,Supportive Lodgings,THEO LANGSTON,01/11/2013,108.8
Adult Care & Support,Access & Enablement,JCAB,Supplies & Services,Supportive Lodgings,THEO LANGSTON,01/11/2013,180
Adult Care & Support,Access & Enablement,JCAB,Supplies & Services,Supportive Lodgings,THEO LANGSTON,01/11/2013,960
Adult Care & Support,Access & Enablement,JCAB,Supplies & Services,CL - Basic Allowance,CLAY HOUSING,06/11/2013,227.2
Adult Care & Support,Access & Enablement,JCAB,Supplies & Services,Supportive Lodgings,IMPACTING LIVES LIMITED,28/11/2013,699.99
Adult Care & Support,Access & Enablement,JCAB,Supplies & Services,Supportive Lodgings,IMPACTING LIVES LIMITED,28/11/2013,699.99
Adult Care & Support,Access & Enablement,JCAB,Supplies & Services,Supportive Lodgings,IMPACTING LIVES LIMITED,28/11/2013,699.99
Adult Care & Support,Access & Enablement,JCAB,Supplies & Services,Supportive Lodgings,IMPACTING LIVES LIMITED,28/11/2013,699.99
Adult Care & Support,Access & Enablement,JCAB,Supplies & Services,CL - Basic Allowance,NEXT STEP CARE MANAGEMENT LTD,06/11/2013,284
Adult Care & Support,Access & Enablement,JCAB,Supplies & Services,CL - Basic Allowance,NEXT STEP CARE MANAGEMENT LTD,06/11/2013,227.2
Adult Care & Support,Access & Enablement,JCAB,Supplies & Services,Supportive Lodgings,THEO LANGSTON,14/11/2013,5280
Adult Care & Support,Access & Enablement,JCAB,Supplies & Services,Supportive Lodgings,THEO LANGSTON,14/11/2013,1594.33
Adult Care & Support,Access & Enablement,JCAF,Supplies & Services,Mobile Phones,ORANGE PCS LTD,22/11/2013,119
Adult Care & Support,Adult Social Care Commissioning,HJAA,Supplies & Services,Other Grants (Expenses),ALZHEIMERS SOCIETY,26/11/2013,1506.5
Adult Care & Support,Adult Social Care Commissioning,HJAA,Supplies & Services,Other Grants (Expenses),SHROPSHIRE PARTNERS IN CARE LTD,01/11/2013,19271.42
Adult Care & Support,Adult Social Care Commissioning,HJAD,Supplies & Services,Printing - Print Room,Graphics and Print (Telford) Ltd,14/11/2013,108
Adult Care & Support,Adult Social Care Commissioning,HJAD,Supplies & Services,Printing - Print Room,Graphics and Print (Telford) Ltd,14/11/2013,108
Adult Care & Support,Adult Social Care Commissioning,HJAD,Supplies & Services,Printing - Print Room,Graphics and Print (Telford) Ltd,14/11/2013,108
Adult Care & Support,Adult Social Care Commissioning,HJAD,Supplies & Services,Comp Software (Purch / Hire),PHOENIX SOFTWARE LTD,08/11/2013,120
Adult Care & Support,Adult Social Care Commissioning,HLEA,Supplies & Services,Other Grants (Expenses),REDACTED PERSONAL INFORMATION,06/11/2013,168.74
Adult Care & Support,Adult Social Care Commissioning,HLEF,Supplies & Services,Printing - Other,TUDOR PRINT & SIGNS,19/11/2013,108
Adult Care & Support,Adult Social Care Commissioning,HOBK,Supplies & Services,Respite Care,COVERAGE CARE SERVICES LTD,27/11/2013,4193.91
Adult Care & Support,Adult Social Care Commissioning,HOBK,Third Party Payments,Nursing Expenditure,COVERAGE CARE SERVICES LTD,27/11/2013,87465.58
Adult Care & Support,Adult Social Care Commissioning,HOBL,Third Party Payments,Residential Expenditure,COVERAGE CARE SERVICES LTD,27/11/2013,59492.15
Adult Care & Support,Adult Social Care Commissioning,HOBP,Third Party Payments,Daycare Expenditure,COVERAGE CARE SERVICES LTD,27/11/2013,13112.78
Adult Care & Support,Adult Social Care Commissioning,HOBR,Third Party Payments,Homecare Expenditure,COVERAGE CARE SERVICES LTD,25/11/2013,37037.19
Adult Care & Support,Adult Social Care Commissioning,HOBR,Third Party Payments,Homecare Expenditure,COVERAGE CARE SERVICES LTD,29/11/2013,5487.7
Adult Care & Support,Adult Social Care Commissioning,HOBS,Supplies & Services,Aids & Appliances,SHROPSHIRE COMMUNITY HEALTH NHS TRUST,25/11/2013,6301.66
Adult Care & Support,Adult Social Care Commissioning,HOBZ,Third Party Payments,Health Funded Services,DIMENSIONS (UK) LTD,26/11/2013,28114.07
Adult Care & Support,Adult Social Care Commissioning,HOBZ,Third Party Payments,Health Funded Services,DIMENSIONS (UK) LTD,26/11/2013,37739.57
Adult Care & Support,Adult Social Care Commissioning,HOBZ,Third Party Payments,Health Funded Services,DIMENSIONS (UK) LTD,26/11/2013,45287.49
Adult Care & Support,Adult Social Care Commissioning,HOBZ,Third Party Payments,Health Funded Services,DIMENSIONS (UK) LTD,26/11/2013,31869
Adult Care & Support,Adult Social Care Commissioning,HOBZ,Third Party Payments,Health Funded Services,DIMENSIONS (UK) LTD,14/11/2013,-29718.32
Adult Care & Support,Adult Social Care Commissioning,HOBZ,Third Party Payments,Health Funded Services,ACCORD HOUSING ASSOCIATION LIMITED,01/11/2013,103461.64
Adult Care & Support,Adult Social Care Commissioning,HOBZ,Third Party Payments,Health Funded Services,DIMENSIONS (UK) LTD,11/11/2013,29051.21
Adult Care & Support,Adult Social Care Commissioning,HOBZ,Third Party Payments,Health Funded Services,DIMENSIONS (UK) LTD,11/11/2013,46797.07
Adult Care & Support,Adult Social Care Commissioning,HOBZ,Third Party Payments,Health Funded Services,DIMENSIONS (UK) LTD,11/11/2013,38997.56
Adult Care & Support,Adult Social Care Commissioning,HOBZ,Third Party Payments,Health Funded Services,DIMENSIONS (UK) LTD,11/11/2013,28114.07
Adult Care & Support,Adult Social Care Commissioning,HOBZ,Third Party Payments,Health Funded Services,DIMENSIONS (UK) LTD,11/11/2013,32931.3
Adult Care & Support,Adult Social Care Commissioning,HOCH,Third Party Payments,Residential Expenditure,COVERAGE CARE SERVICES LTD,05/11/2013,5428.92
Adult Care & Support,Adult Social Care Commissioning,HOCJ,Supplies & Services,Other Services,BRITISH RED CROSS SOC (SCOTLAND PRO UNIT,26/11/2013,5645.79
Adult Care & Support,Adult Social Care Commissioning,HOCJ,Third Party Payments,Residential Expenditure,COVERAGE CARE SERVICES LTD,05/11/2013,5428.92
Adult Care & Support,Adult Social Care Commissioning,HOCM,Third Party Payments,Nursing Expenditure,ACCORD HOUSING ASSOCIATION LIMITED,01/11/2013,61663.68
Adult Care & Support,Adult Social Care Commissioning,HOCM,Third Party Payments,Nursing Expenditure,ACCORD HOUSING ASSOCIATION LIMITED,01/11/2013,66407.04
Adult Care & Support,Assessment & Case Management,HLAK,Supplies & Services,Other Grants (Expenses),NHS Telford and Wrekin CCG,04/11/2013,599066.5
Adult Care & Support,Assessment & Case Management,HLAK,Supplies & Services,Other Grants (Expenses),NHS Telford and Wrekin CCG,04/11/2013,368721.5
Adult Care & Support,Assessment & Case Management,HLAL,Third Party Payments,Health Funded Services,DIMENSIONS (UK) LTD,25/11/2013,3132
Adult Care & Support,Assessment & Case Management,HLAL,Third Party Payments,Health Funded Services,DIMENSIONS (UK) LTD,25/11/2013,313.2
Adult Care & Support,Assessment & Case Management,HOBJ,Supplies & Services,Telephones,BRITISH TELECOMMUNICATIONS PLC,27/11/2013,184.63
Adult Care & Support,Assessment & Case Management,HOBN,Transport-Related Expenditure,Travelling Expenses General,NSL t/a NSL CARE SERVICES,27/11/2013,146.14
Adult Care & Support,Assessment & Case Management,HOCA,Transport-Related Expenditure,District Council Vehicles,Age Concern Wrekin,21/11/2013,2867
Adult Care & Support,Assessment & Case Management,HPAB,Supplies & Services,Telecomms,BT GLOBAL SERVICES,12/11/2013,409.15
Adult Care & Support,Assessment & Case Management,HPAB,Supplies & Services,Telecomms,BT GLOBAL SERVICES,01/11/2013,409.15
Adult Care & Support,Assessment & Case Management,HPAB,Transport-Related Expenditure,Travelling Expenses General,EXPOTEL HOTEL RESERVATIONS LIMITED,14/11/2013,256
Adult Care & Support,Care & Support,HHAC,Premises-Related Expenditure,Hire Of Rooms,MEETING POINT TRUST LTD,27/11/2013,147.1
Adult Care & Support,Care & Support,HHAC,Supplies & Services,Subscriptions,CHART INST PUBLIC FINANCE & ACCOUNTANCY,14/11/2013,2000
Adult Care & Support,Personalisation Support & Service Provision,HLBB,Premises-Related Expenditure,Clean Mats & Toilet Requisites,CARESHOP,19/11/2013,303.66
Adult Care & Support,Personalisation Support & Service Provision,HLBB,Supplies & Services,Laundry & Towel Hire,PHS ALL CLEAR,19/11/2013,233.04
Adult Care & Support,Personalisation Support & Service Provision,HLBB,Supplies & Services,Provisions,G N BADLEY & SONS,20/11/2013,205.35
Adult Care & Support,Personalisation Support & Service Provision,HLBC,Premises-Related Expenditure,Clean Mats & Toilet Requisites,ARCO LIMITED,20/11/2013,206.63
Adult Care & Support,Personalisation Support & Service Provision,HLBC,Supplies & Services,Photocopying,WEST MERCIA SUPPLIES Catalogue Supplies (None Utility),18/11/2013,158.63
Adult Care & Support,Personalisation Support & Service Provision,HLBC,Supplies & Services,Equipment - Repair,ERIC NEVILLE CATERING SUPPLIES LTD,18/11/2013,105.35
Adult Care & Support,Personalisation Support & Service Provision,HLBC,Supplies & Services,Provisions,BIKOLD,25/11/2013,108.3
Adult Care & Support,Personalisation Support & Service Provision,HLBC,Supplies & Services,EEC Whole Milk,BIKOLD,04/11/2013,271.31
Adult Care & Support,Personalisation Support & Service Provision,HLBC,Supplies & Services,Provisions,BIKOLD,29/11/2013,215.43
Adult Care & Support,Personalisation Support & Service Provision,HLBC,Supplies & Services,Provisions,BIKOLD,29/11/2013,250.64
Adult Care & Support,Personalisation Support & Service Provision,HLDB,Supplies & Services,Photocopying,WEST MERCIA SUPPLIES Catalogue Supplies (None Utility),18/11/2013,241.57
Adult Care & Support,Personalisation Support & Service Provision,HLEG,Supplies & Services,Respite Care,REDACTED PERSONAL INFORMATION,06/11/2013,444.36
Adult Care & Support,Personalisation Support & Service Provision,HMAA,Supplies & Services,Mobile Phones,ORANGE PCS LTD,22/11/2013,238
Adult Care & Support,Personalisation Support & Service Provision,HMAA,Supplies & Services,Comp Hardware (Purch / Hire),WREKIN SERVICES LTD,28/11/2013,130
Adult Care & Support,Personalisation Support & Service Provision,HMAB,Employees,Course Fees,SHROPSHIRE COUNCIL,15/11/2013,1183.98
Adult Care & Support,Personalisation Support & Service Provision,HMAC,Premises-Related Expenditure,Hire Of Rooms,THE SALVATION ARMY,04/11/2013,160
Adult Care & Support,Personalisation Support & Service Provision,HMAC,Transport-Related Expenditure,Outside Hire,GLYN UPTON REMOVALS,04/11/2013,310
Adult Care & Support,Personalisation Support & Service Provision,HMAN,Premises-Related Expenditure,R&M -Buildings DLO Charge,PHS GROUP LTD,04/11/2013,305.76
Adult Care & Support,Personalisation Support & Service Provision,HMAW,Supplies & Services,Computer Hardware (Maint),ILLY SYSTEMS LTD,27/11/2013,15450
Adult Care & Support,Personalisation Support & Service Provision,HMAW,Supplies & Services,Computer Hardware (Maint),ILLY SYSTEMS LTD,27/11/2013,150
Adult Care & Support,Personalisation Support & Service Provision,HMBB,Premises-Related Expenditure,Water Rates,SEVERN TRENT WATER LTD,15/11/2013,565.93
Adult Care & Support,Personalisation Support & Service Provision,HMBG,Supplies & Services,Other Grants (Expenses),POHWER,22/11/2013,3259.11
Adult Care & Support,Personalisation Support & Service Provision,HMBG,Supplies & Services,Other Grants (Expenses),POHWER,22/11/2013,8375.75
Adult Care & Support,Personalisation Support & Service Provision,HMBK,Third Party Payments,Private Contractors,HILBRAE PETS HOTEL,15/11/2013,165
Care & Support,Assessment & Case Management,HPAB,Supplies & Services,Computer Software (Maint),CM 2000 CARE MONITORING,22/11/2013," 1,070 "
Children's Safeguarding,Child Protection & Assessment,JAAG,Supplies & Services,CL - Basic Allowance,THEO LANGSTON,06/11/2013,227.2
Children's Safeguarding,Child Protection & Assessment,JAAG,Supplies & Services,Supportive Lodgings,THEO LANGSTON,15/11/2013,931.24
Children's Safeguarding,Child Protection & Assessment,JAAG,Supplies & Services,Supportive Lodgings,THEO LANGSTON,15/11/2013,931.24
Children's Safeguarding,Child Protection & Assessment,JMAB,Supplies & Services,Doctors Fees,TRIMEGA LABORATORIES LTD,22/11/2013,351.9
Children's Safeguarding,Child Protection & Assessment,JMAB,Supplies & Services,Doctors Fees,TRIMEGA LABORATORIES LTD,22/11/2013,351.9
Children's Safeguarding,Child Protection & Assessment,JMAB,Supplies & Services,Other Office Expenses,SPECIALIST COMPUTERS CENTRES PLC,08/11/2013,412.11
Children's Safeguarding,Child Protection & Assessment,JMAB,Supplies & Services,Supportive Lodgings,SAAIL,06/11/2013,4694.33
Children's Safeguarding,Child Protection & Assessment,JMAB,Supplies & Services,CL - Basic Allowance,SAAIL,06/11/2013,227.2
Children's Safeguarding,Child Protection & Assessment,JMAB,Supplies & Services,Doctors Fees,ALPHA BIOLABORATORIES LIMITED,06/11/2013,515
Children's Safeguarding,Child Protection & Assessment,JMAB,Supplies & Services,Doctors Fees,ALPHA BIOLABORATORIES LIMITED,06/11/2013,575
Children's Safeguarding,Child Protection & Assessment,JMAB,Supplies & Services,Supportive Lodgings,SAAIL,11/11/2013,4542.9
Children's Safeguarding,Child Protection & Assessment,JMAB,Supplies & Services,Supportive Lodgings,SAAIL,11/11/2013,227.2
Children's Safeguarding,Child Protection & Assessment,JMAB,Third Party Payments,Childminders,HAZLES FARM CHILDCARE LTD,28/11/2013,203
Children's Safeguarding,Child Protection & Assessment,JMAB,Third Party Payments,Childminders,SMILEY FACES DAY NURSERIES LTD,08/11/2013,417
Children's Safeguarding,Child Protection & Assessment,JMAD,Supplies & Services,Section 17 Childrens Act,REDACTED PERSONAL INFORMATION,18/11/2013,125
Children's Safeguarding,Child Protection & Assessment,JMAD,Supplies & Services,Section 17 Childrens Act,REDACTED PERSONAL INFORMATION,25/11/2013,125
Children's Safeguarding,Child Protection & Assessment,JMAD,Supplies & Services,Legal Expenses,Mortimers,01/11/2013,434
Children's Safeguarding,Child Protection & Assessment,JMAD,Supplies & Services,Section 17 Childrens Act,REDACTED PERSONAL INFORMATION,11/11/2013,125
Children's Safeguarding,Child Protection & Assessment,JMAD,Supplies & Services,Section 17 Childrens Act,REDACTED PERSONAL INFORMATION,04/11/2013,125
Children's Safeguarding,Child Protection & Assessment,JMAD,Third Party Payments,Childminders,ABC Day Nursery,22/11/2013,769.6
Children's Safeguarding,Child Protection & Assessment,JMAD,Third Party Payments,Childminders,WOODEN TOPS DAY NURSERY F363,01/11/2013,324.48
Children's Safeguarding,Child Protection & Assessment,JMAD,Third Party Payments,Childminders,CHIPMUNKS NURSERY,28/11/2013,182.25
Children's Safeguarding,Child Protection & Assessment,JMAD,Third Party Payments,Childminders,SMILEY FACES DAY NURSERIES LTD,12/11/2013,632.5
Children's Safeguarding,Child Protection & Assessment,JMAD,Transport-Related Expenditure,Transport,EXPOTEL HOTEL RESERVATIONS LIMITED,14/11/2013,-191.8
Children's Safeguarding,Child Protection & Assessment,JMAE,Supplies & Services,Other Services,LIVING SPRINGS FAMILY CENTRE,21/11/2013,8326.23
Children's Safeguarding,Child Protection & Assessment,JMAE,Supplies & Services,Other Services,LIVING SPRINGS FAMILY CENTRE,21/11/2013,5611.07
Children's Safeguarding,Child Protection & Assessment,JMAE,Supplies & Services,Other Services,LIVING SPRINGS FAMILY CENTRE,21/11/2013,7946.4
Children's Safeguarding,Child Protection & Assessment,JMAE,Supplies & Services,Other Services,LIVING SPRINGS FAMILY CENTRE,21/11/2013,5060.08
Children's Safeguarding,Child Protection & Assessment,JMAE,Third Party Payments,Interpreters Fees,PEARL LINGUISTICS LTD,28/11/2013,623.35
Children's Safeguarding,Child Protection & Assessment,JMAL,Supplies & Services,Doctors Fees,ALPHA BIOLABORATORIES LIMITED,19/11/2013,162.25
Children's Safeguarding,Child Protection & Assessment,JMAL,Third Party Payments,Interpreters Fees,PEARL LINGUISTICS LTD,28/11/2013,555.65
Children's Safeguarding,Children in Care & Fostering,JMAF,Supplies & Services,Supportive Lodgings,SAAIL,26/11/2013,4371.3
Children's Safeguarding,Children in Care & Fostering,JMAF,Supplies & Services,CL - Basic Allowance,IMPACTING LIVES LIMITED,01/11/2013,282.2
Children's Safeguarding,Children in Care & Fostering,JMAF,Supplies & Services,CL - Basic Allowance,IMPACTING LIVES LIMITED,01/11/2013,227.2
Children's Safeguarding,Children in Care & Fostering,JMAF,Supplies & Services,Supportive Lodgings,SAAIL,28/11/2013,227.2
Children's Safeguarding,Children in Care & Fostering,JMAF,Third Party Payments,Interpreters Fees,PEARL LINGUISTICS LTD,28/11/2013,172.5
Children's Safeguarding,Children in Care & Fostering,JMAF,Transport-Related Expenditure,Transport,EXPOTEL HOTEL RESERVATIONS LIMITED,14/11/2013,157
Children's Safeguarding,Children in Care & Fostering,JMAF,Transport-Related Expenditure,Transport,EXPOTEL HOTEL RESERVATIONS LIMITED,14/11/2013,178.6
Children's Safeguarding,Children in Care & Fostering,JMAF,Transport-Related Expenditure,Taxi Costs,CORKYS CARS,04/11/2013,320
Children's Safeguarding,Children in Care & Fostering,JPAD,Third Party Payments,External Foster Care Payments,HILLCREST CARE LTD,21/11/2013,3380.86
Children's Safeguarding,Children in Care & Fostering,JPAD,Third Party Payments,External Foster Care Payments,HILLCREST CARE LTD,21/11/2013,3520.71
Children's Safeguarding,Children in Care & Fostering,JPAD,Third Party Payments,External Foster Care Payments,HILLCREST CARE LTD,21/11/2013,3450.3
Children's Safeguarding,Children in Care & Fostering,JPAD,Third Party Payments,External Foster Care Payments,REGIONAL FOSTER PLACEMENTS,21/11/2013,3449.99
Children's Safeguarding,Children in Care & Fostering,JPAD,Third Party Payments,External Foster Care Payments,HILLCREST CARE LTD,21/11/2013,3244.33
Children's Safeguarding,Children in Care & Fostering,JPAD,Third Party Payments,External Foster Care Payments,HILLCREST CARE LTD,21/11/2013,3050.18
Children's Safeguarding,Children in Care & Fostering,JPAD,Third Party Payments,External Foster Care Payments,HILLCREST CARE LTD,21/11/2013,3520.71
Children's Safeguarding,Children in Care & Fostering,JPAD,Third Party Payments,External Foster Care Payments,HILLCREST CARE LTD,21/11/2013,3244.32
Children's Safeguarding,Children in Care & Fostering,JPAD,Third Party Payments,External Foster Care Payments,HILLCREST CARE LTD,21/11/2013,3077.86
Children's Safeguarding,Children in Care & Fostering,JPAD,Third Party Payments,External Foster Care Payments,HILLCREST CARE LTD,21/11/2013,3077.86
Children's Safeguarding,Children in Care & Fostering,JPAD,Third Party Payments,External Foster Care Payments,SWIIS FOSTER CARE LTD,26/11/2013,895
Children's Safeguarding,Children in Care & Fostering,JPAD,Third Party Payments,External Foster Care Payments,SWIIS FOSTER CARE LTD,26/11/2013,895
Children's Safeguarding,Children in Care & Fostering,JPAD,Third Party Payments,External Foster Care Payments,HILLCREST CARE LTD,21/11/2013,3346.36
Children's Safeguarding,Children in Care & Fostering,JPAD,Third Party Payments,External Foster Care Payments,HILLCREST CARE LTD,21/11/2013,3277.81
Children's Safeguarding,Children in Care & Fostering,JPAD,Third Party Payments,External Foster Care Payments,HILLCREST CARE LTD,21/11/2013,3346.36
Children's Safeguarding,Children in Care & Fostering,JPAD,Third Party Payments,External Foster Care Payments,HILLCREST CARE LTD,21/11/2013,3344.68
Children's Safeguarding,Children in Care & Fostering,JPAD,Third Party Payments,External Foster Care Payments,HILLCREST CARE LTD,21/11/2013,3520.71
Children's Safeguarding,Children in Care & Fostering,JPAD,Third Party Payments,External Foster Care Payments,HILLCREST CARE LTD,21/11/2013,3449.86
Children's Safeguarding,Children in Care & Fostering,JPAD,Third Party Payments,External Foster Care Payments,PARK FOSTER CARE,26/11/2013,3419.92
Children's Safeguarding,Children in Care & Fostering,JPAD,Third Party Payments,External Foster Care Payments,CORE ASSETS FOSTERING LIMITED,26/11/2013,3160.26
Children's Safeguarding,Children in Care & Fostering,JPAD,Third Party Payments,External Foster Care Payments,FOSTERING SOLUTIONS LTD,26/11/2013,3267.81
Children's Safeguarding,Children in Care & Fostering,JPAD,Third Party Payments,External Foster Care Payments,CORE ASSETS FOSTERING LIMITED,26/11/2013,3334.18
Children's Safeguarding,Children in Care & Fostering,JPAD,Third Party Payments,External Foster Care Payments,RED KITE FOSTERING,08/11/2013,5247.86
Children's Safeguarding,Children in Care & Fostering,JPAD,Third Party Payments,External Foster Care Payments,PATHWAY CARE LTD,04/11/2013,2899.13
Children's Safeguarding,Children in Care & Fostering,JPAD,Third Party Payments,External Foster Care Payments,SWIIS FOSTER CARE LTD,26/11/2013,895
Children's Safeguarding,Children in Care & Fostering,JPAD,Third Party Payments,External Foster Care Payments,SWIIS FOSTER CARE LTD,26/11/2013,895
Children's Safeguarding,Children in Care & Fostering,JPAD,Third Party Payments,External Foster Care Payments,CORE ASSETS FOSTERING LIMITED,26/11/2013,3430.99
Children's Safeguarding,Children in Care & Fostering,JPAD,Third Party Payments,External Foster Care Payments,CORE ASSETS FOSTERING LIMITED,06/11/2013,3763.05
Children's Safeguarding,Children in Care & Fostering,JPAD,Third Party Payments,External Foster Care Payments,SWIIS FOSTER CARE LTD,06/11/2013,895
Children's Safeguarding,Children in Care & Fostering,JPAD,Third Party Payments,External Foster Care Payments,NATIONAL FOSTERING AGENCY,22/11/2013,3449.99
Children's Safeguarding,Children in Care & Fostering,JPAD,Third Party Payments,External Foster Care Payments,NATIONAL FOSTERING AGENCY,22/11/2013,3233.3
Children's Safeguarding,Children in Care & Fostering,JPAD,Third Party Payments,External Foster Care Payments,NATIONAL FOSTERING AGENCY,22/11/2013,3077.99
Children's Safeguarding,Children in Care & Fostering,JPAD,Third Party Payments,External Foster Care Payments,NATIONAL FOSTERING AGENCY,22/11/2013,3380.86
Children's Safeguarding,Children in Care & Fostering,JPAD,Third Party Payments,External Foster Care Payments,NATIONAL FOSTERING AGENCY,22/11/2013,3233.3
Children's Safeguarding,Children in Care & Fostering,JPAD,Third Party Payments,External Foster Care Payments,NATIONAL FOSTERING AGENCY,22/11/2013,3077.99
Children's Safeguarding,Children in Care & Fostering,JPAD,Third Party Payments,External Foster Care Payments,NATIONAL FOSTERING AGENCY,22/11/2013,3077.99
Children's Safeguarding,Children in Care & Fostering,JPAD,Third Party Payments,External Foster Care Payments,NATIONAL FOSTERING AGENCY,22/11/2013,3077.99
Children's Safeguarding,Children in Care & Fostering,JPAD,Third Party Payments,External Foster Care Payments,NATIONAL FOSTERING AGENCY,22/11/2013,3380.86
Children's Safeguarding,Children in Care & Fostering,JPAD,Third Party Payments,External Foster Care Payments,NATIONAL FOSTERING AGENCY,22/11/2013,3167.27
Children's Safeguarding,Children in Care & Fostering,JPAD,Third Party Payments,External Foster Care Payments,NATIONAL FOSTERING AGENCY,22/11/2013,3311.73
Children's Safeguarding,Children in Care & Fostering,JPAD,Third Party Payments,External Foster Care Payments,PATHWAY CARE LTD,27/11/2013,3042.9
Children's Safeguarding,Children in Care & Fostering,JPAD,Third Party Payments,External Foster Care Payments,FOSTERING SOLUTIONS LTD,27/11/2013,3439.8
Children's Safeguarding,Children in Care & Fostering,JPAD,Third Party Payments,External Foster Care Payments,PARK FOSTER CARE,27/11/2013,6200
Children's Safeguarding,Children in Care & Fostering,JPAD,Third Party Payments,External Foster Care Payments,HILLCREST CARE LTD,27/11/2013,1001.57
Children's Safeguarding,Children in Care & Fostering,JPAD,Third Party Payments,External Foster Care Payments,CORE ASSETS FOSTERING LIMITED,27/11/2013,798.7
Children's Safeguarding,Children in Care & Fostering,JPAD,Third Party Payments,External Foster Care Payments,NATIONAL FOSTERING AGENCY,22/11/2013,3233.3
Children's Safeguarding,Children in Care & Fostering,JPAD,Third Party Payments,External Foster Care Payments,NATIONAL FOSTERING AGENCY,22/11/2013,3175.64
Children's Safeguarding,Children in Care & Fostering,JPAD,Third Party Payments,External Foster Care Payments,FREEDOM FOSTERING,28/11/2013,-2020.73
Children's Safeguarding,Children in Care & Fostering,JPAD,Third Party Payments,External Foster Care Payments,FREEDOM FOSTERING,28/11/2013,-1987.56
Children's Safeguarding,Children in Care & Fostering,JPAD,Third Party Payments,External Foster Care Payments,PHOENIX FOSTERING,28/11/2013,5900
Children's Safeguarding,Children in Care & Fostering,JPAD,Third Party Payments,External Foster Care Payments,PHOENIX FOSTERING,28/11/2013,5310
Children's Safeguarding,Children in Care & Fostering,JPAD,Third Party Payments,External Foster Care Payments,CORE ASSETS FOSTERING LIMITED,28/11/2013,4177.8
Children's Safeguarding,Children in Care & Fostering,JPAD,Third Party Payments,External Foster Care Payments,CORE ASSETS FOSTERING LIMITED,28/11/2013,3320.31
Children's Safeguarding,Children in Care & Fostering,JPAD,Third Party Payments,External Foster Care Payments,CORE ASSETS FOSTERING LIMITED,28/11/2013,3258
Children's Safeguarding,Children in Care & Fostering,JPAD,Third Party Payments,External Foster Care Payments,CORE ASSETS FOSTERING LIMITED,28/11/2013,2738.4
Children's Safeguarding,Children in Care & Fostering,JPAD,Third Party Payments,External Foster Care Payments,CORE ASSETS FOSTERING LIMITED,28/11/2013,3336.8
Children's Safeguarding,Children in Care & Fostering,JPAD,Third Party Payments,External Foster Care Payments,CORE ASSETS FOSTERING LIMITED,28/11/2013,983.58
Children's Safeguarding,Children in Care & Fostering,JPAD,Third Party Payments,External Foster Care Payments,CORE ASSETS FOSTERING LIMITED,28/11/2013,849.72
Children's Safeguarding,Children in Care & Fostering,JPAD,Third Party Payments,External Foster Care Payments,PATHWAY CARE LTD,28/11/2013,2890.76
Children's Safeguarding,Children in Care & Fostering,JPAD,Third Party Payments,External Foster Care Payments,CORE ASSETS FOSTERING LIMITED,28/11/2013,5152.2
Children's Safeguarding,Children in Care & Fostering,JPAD,Third Party Payments,External Foster Care Payments,PARK FOSTER CARE,28/11/2013,3720
Children's Safeguarding,Children in Care & Fostering,JPAD,Third Party Payments,External Foster Care Payments,CLIFFORD HOUSE FOSTERING LTD,28/11/2013,3604
Children's Safeguarding,Children in Care & Fostering,JPAD,Third Party Payments,External Foster Care Payments,CORE ASSETS FOSTERING LIMITED,06/11/2013,3430.99
Children's Safeguarding,Children in Care & Fostering,JPAD,Third Party Payments,External Foster Care Payments,FOSTERING PRIORY,06/11/2013,3685.71
Children's Safeguarding,Children in Care & Fostering,JPAD,Third Party Payments,External Foster Care Payments,FOSTERING PRIORY,06/11/2013,3492.86
Children's Safeguarding,Children in Care & Fostering,JPAD,Third Party Payments,External Foster Care Payments,SWIIS FOSTER CARE LTD,06/11/2013,895
Children's Safeguarding,Children in Care & Fostering,JPAD,Third Party Payments,External Foster Care Payments,SWIIS FOSTER CARE LTD,06/11/2013,895
Children's Safeguarding,Children in Care & Fostering,JPAD,Third Party Payments,External Foster Care Payments,FOSTERING SOLUTIONS LTD,06/11/2013,3376.74
Children's Safeguarding,Children in Care & Fostering,JPAD,Third Party Payments,Residential Expenditure,MGM CARE SERVICES LTD,06/11/2013,11924.15
Children's Safeguarding,Children in Care & Fostering,JPAD,Third Party Payments,External Foster Care Payments,FOSTERING PRIORY,08/11/2013,1671.43
Children's Safeguarding,Children in Care & Fostering,JPAD,Third Party Payments,External Foster Care Payments,Childcare Bureau,12/11/2013,3997.5
Children's Safeguarding,Children in Care & Fostering,JPAD,Third Party Payments,External Foster Care Payments,PHOENIX FOSTERING,12/11/2013,5310
Children's Safeguarding,Children in Care & Fostering,JPAD,Third Party Payments,External Foster Care Payments,FAMILIES@FAMILYCARE,12/11/2013,4435.5
Children's Safeguarding,Children in Care & Fostering,JPAD,Third Party Payments,External Foster Care Payments,FAMILIES@FAMILYCARE,12/11/2013,2527.2
Children's Safeguarding,Children in Care & Fostering,JPAD,Third Party Payments,External Foster Care Payments,NATIONAL FOSTERING AGENCY,04/11/2013,2680.83
Children's Safeguarding,Children in Care & Fostering,JPAD,Third Party Payments,External Foster Care Payments,SHROPSHIRE COUNCIL,04/11/2013,4050.54
Children's Safeguarding,Children in Care & Fostering,JPAM,Supplies & Services,Printing - Print Room,SILK GROUP LTD,05/11/2013,205
Children's Safeguarding,Children in Care & Fostering,JPAM,Supplies & Services,Printing - Other,MARKETING AT THE MILL,04/11/2013,272
Children's Safeguarding,Children in Care & Fostering,JPAM,Supplies & Services,Advertising,BAAF REGISTERED CHARITY,06/11/2013,960
Children's Safeguarding,Children in Care & Fostering,JPAN,Premises-Related Expenditure,R&M -Buildings DLO Charge,PYRAMID SCHOOLS (HADLEY) LTD,28/11/2013,3126.6
Children's Safeguarding,Children in Care & Fostering,JPAN,Premises-Related Expenditure,R&M -Buildings DLO Charge,INTERSERVE (FACILITIES MANAGEMENT) LTD,28/11/2013,194.15
Children's Safeguarding,Children in Care & Fostering,JPAN,Third Party Payments,Residential Expenditure,EDUCARE ADOLESCENT SERVICES LTD,19/11/2013,13064.33
Children's Safeguarding,Children in Care & Fostering,JPAN,Third Party Payments,Residential Expenditure,EDUCARE ADOLESCENT SERVICES LTD,19/11/2013,12642.9
Children's Safeguarding,Children in Care & Fostering,JPAN,Third Party Payments,Residential Expenditure,EDUCARE ADOLESCENT SERVICES LTD,19/11/2013,13064.33
Children's Safeguarding,Children in Care & Fostering,JPAN,Third Party Payments,Residential Expenditure,EDUCARE ADOLESCENT SERVICES LTD,19/11/2013,13064.33
Children's Safeguarding,Children in Care & Fostering,JPAN,Third Party Payments,Residential Expenditure,CARE TODAY CHILDRENS SERVICES,26/11/2013,3182.97
Children's Safeguarding,Children in Care & Fostering,JPAN,Third Party Payments,Residential Expenditure,PROGRESS CHILDREN'S SERVICES LTD,26/11/2013,13740
Children's Safeguarding,Children in Care & Fostering,JPAN,Third Party Payments,Residential Expenditure,KEYS CHILDCARE LTD,08/11/2013,10714.2
Children's Safeguarding,Children in Care & Fostering,JPAN,Third Party Payments,Residential Expenditure,CASTLE HOMES CARE LIMITED,28/11/2013,12952.5
Children's Safeguarding,Children in Care & Fostering,JPAN,Third Party Payments,Residential Expenditure,CRUCKTON HALL SCHOOL,28/11/2013,3250
Children's Safeguarding,Children in Care & Fostering,JPAN,Third Party Payments,Residential Expenditure,PETERBOROUGH CITY COUNCIL,28/11/2013,24986
Children's Safeguarding,Children in Care & Fostering,JPAN,Third Party Payments,Residential Expenditure,EDUCARE ADOLESCENT SERVICES LTD,27/11/2013,12642.9
Children's Safeguarding,Children in Care & Fostering,JPAN,Third Party Payments,Residential Expenditure,Wrixon Care Escorts and Outreach,27/11/2013,659.95
Children's Safeguarding,Children in Care & Fostering,JPAN,Third Party Payments,Residential Expenditure,BETTERCARE KEYSS LTD,27/11/2013,8421.3
Children's Safeguarding,Children in Care & Fostering,JPAN,Third Party Payments,Residential Expenditure,BETTERCARE KEYSS LTD,27/11/2013,8421.3
Children's Safeguarding,Children in Care & Fostering,JPAN,Third Party Payments,Residential Expenditure,EDUCARE ADOLESCENT SERVICES LTD,27/11/2013,12642.9
Children's Safeguarding,Children in Care & Fostering,JPAN,Third Party Payments,Residential Expenditure,CRUCKTON HALL SCHOOL,28/11/2013,-45996.6
Children's Safeguarding,Children in Care & Fostering,JPAN,Third Party Payments,Residential Expenditure,BETTERCARE KEYSS LTD,28/11/2013,8414.02
Children's Safeguarding,Children in Care & Fostering,JPAN,Third Party Payments,Residential Expenditure,BETTERCARE KEYSS LTD,28/11/2013,8414.02
Children's Safeguarding,Children in Care & Fostering,JPAN,Third Party Payments,Residential Expenditure,Young Options Pathways Stoke,28/11/2013,17429.14
Children's Safeguarding,Children in Care & Fostering,JPAN,Third Party Payments,Residential Expenditure,SHROPSHIRE COUNCIL,28/11/2013,4948.56
Children's Safeguarding,Children in Care & Fostering,JPAN,Third Party Payments,Residential Expenditure,ABC CARE LTD,28/11/2013,13975
Children's Safeguarding,Children in Care & Fostering,JPAN,Third Party Payments,Residential Expenditure,ABC CARE LTD,28/11/2013,10000
Children's Safeguarding,Children in Care & Fostering,JPAN,Third Party Payments,Residential Expenditure,CARE TODAY CHILDRENS SERVICES,28/11/2013,14096.01
Children's Safeguarding,Children in Care & Fostering,JPAN,Third Party Payments,Residential Expenditure,CASTLE HOMES CARE LIMITED,28/11/2013,12952.5
Children's Safeguarding,Children in Care & Fostering,JPAN,Third Party Payments,Residential Expenditure,EDUCARE ADOLESCENT SERVICES LTD,08/11/2013,-18542.92
Children's Safeguarding,Children in Care & Fostering,JPAN,Third Party Payments,Residential Expenditure,SUNFIELD CHILDRENS HOMES LTD,08/11/2013,15691.17
Children's Safeguarding,Children in Care & Fostering,JPAN,Third Party Payments,Residential Expenditure,KEYS CHILDCARE LTD,08/11/2013,11314.2
Children's Safeguarding,Children in Care & Fostering,JPAN,Third Party Payments,Residential Expenditure,Wrixon Care Escorts and Outreach,11/11/2013,942.45
Children's Safeguarding,Children in Care & Fostering,JPAN,Third Party Payments,Residential Expenditure,CARE TODAY CHILDRENS SERVICES,11/11/2013,3377.1
Children's Safeguarding,Children in Care & Fostering,JPAN,Third Party Payments,Residential Expenditure,SACCS CARE LTD,11/11/2013,20477.67
Children's Safeguarding,Children in Care & Fostering,JPAN,Third Party Payments,External Foster Care Payments,PATHWAY CARE LTD,12/11/2013,101.43
Children's Safeguarding,Children in Care & Fostering,JPAN,Third Party Payments,Residential Expenditure,Eagle Children's Home,13/11/2013,12490
Children's Safeguarding,Children in Care & Fostering,JPAN,Third Party Payments,Residential Expenditure,CRUCKTON HALL SCHOOL,04/11/2013,3250
Children's Safeguarding,Children in Care & Fostering,JPAN,Third Party Payments,Residential Expenditure,NEW HORIZONS CHILD CARE LTD,04/11/2013,11514.33
Children's Safeguarding,Children in Care & Fostering,JPAT,Third Party Payments,Childminders,EARLYWORLD LIMITED 00782749,06/11/2013,575
Children's Safeguarding,Children in Care & Fostering,JPAT,Third Party Payments,Childminders,EARLYWORLD LIMITED 00782749,08/11/2013,525
Co-Operative Council,Community Engagement & Voluntary Sector,LEAC,Supplies & Services,Printing - Other,XCS (UK) Ltd,14/11/2013,113.89
Co-Operative Council,Community Engagement & Voluntary Sector,MCAB,Premises-Related Expenditure,Hire Of Rooms,MEETING POINT TRUST LTD,19/11/2013,147.1
Co-Operative Council,Community Engagement & Voluntary Sector,MCAB,Premises-Related Expenditure,Hire Of Rooms,THE SALVATION ARMY,27/11/2013,150
Co-Operative Council,Community Engagement & Voluntary Sector,MCAE,Supplies & Services,Grants To Voluntary Organis,TELFORD & WREKIN CITIZENS ADVICE BUREAU,27/11/2013,500
Co-Operative Council,Community Engagement & Voluntary Sector,MCAE,Supplies & Services,Grants To Voluntary Organis,THE GORGE PARISH COUNCIL 65263523,26/11/2013,500
Co-Operative Council,Corporate Communications,LMAC,Supplies & Services,Computer Software (Maint),SOCITM LIMITED,19/11/2013,1330
Co-Operative Council,Corporate Communications,LMAC,Supplies & Services,Computer Software (Maint),Siteimprove Ltd,19/11/2013,2350
Co-Operative Council,Corporate Communications,MMAB,Supplies & Services,Community Newspaper,Leaflet Distribution Services Ltd,19/11/2013,5329.15
Co-Operative Council,Corporate Communications,MMAB,Supplies & Services,Photography,ROB FINNEY PHOTOGRAPHY,19/11/2013,180
Co-Operative Council,Corporate Communications,MMAB,Supplies & Services,Photography,METRO PHOTOGRAPHIC,22/11/2013,150
Co-Operative Council,Corporate Communications,MMAD,Employees,Recruitment Advertising,TSL EDUCATION LTD,27/11/2013,359.1
Co-Operative Council,Corporate Communications,MMAD,Employees,Recruitment Advertising,TSL EDUCATION LTD,27/11/2013,499
Co-Operative Council,Corporate Communications,MMAD,Employees,Recruitment Advertising,TSL EDUCATION LTD,27/11/2013,809.1
Co-Operative Council,Corporate Communications,MMAD,Employees,Recruitment Advertising,THE MIDLAND NEWS ASSOCIATION LTD,01/11/2013,841.68
Co-Operative Council,Corporate Communications,MMAD,Employees,Recruitment Advertising,THE MIDLAND NEWS ASSOCIATION LTD,01/11/2013,563.4
Co-Operative Council,Corporate Communications,MMAD,Employees,Recruitment Advertising,REED BUSINESS INFORMATION LTD,20/11/2013,3900
Co-Operative Council,Corporate Communications,MMAD,Supplies & Services,Advertising,CBS OUTDOOR LIMITED,22/11/2013,510
Co-Operative Council,Corporate Communications,MMAD,Supplies & Services,Advertising,CBS OUTDOOR LIMITED,22/11/2013,300
Co-Operative Council,Corporate Communications,MMAD,Supplies & Services,Advertising,UTV Media (GB) Accounts,19/11/2013,425
Co-Operative Council,Corporate Communications,MMAD,Supplies & Services,Advertising,THE MIDLAND NEWS ASSOCIATION LTD,19/11/2013,370.8
Co-Operative Council,Corporate Communications,MMAD,Supplies & Services,Advertising,Hi Street Media,19/11/2013,115
Co-Operative Council,Corporate Communications,MMAD,Supplies & Services,Advertising,UTV Media (GB) Accounts,19/11/2013,140
Co-Operative Council,Corporate Communications,MMAD,Supplies & Services,Advertising,ORION MEDIA,19/11/2013,-1231.11
Co-Operative Council,Corporate Communications,MMAD,Supplies & Services,Advertising,THE MIDLAND NEWS ASSOCIATION LTD,19/11/2013,437.4
Co-Operative Council,Corporate Communications,MMAD,Supplies & Services,Advertising,THE MIDLAND NEWS ASSOCIATION LTD,19/11/2013,113.4
Co-Operative Council,Corporate Communications,MMAD,Supplies & Services,Advertising,ORION MEDIA,19/11/2013,500
Co-Operative Council,Corporate Communications,MMAD,Supplies & Services,Advertising,THE MIDLAND NEWS ASSOCIATION LTD,19/11/2013,284.4
Co-Operative Council,Corporate Communications,MMAD,Supplies & Services,Advertising,THE MIDLAND NEWS ASSOCIATION LTD,19/11/2013,285.3
Co-Operative Council,Corporate Communications,MMAD,Supplies & Services,Advertising,THE MIDLAND NEWS ASSOCIATION LTD,19/11/2013,121.5
Co-Operative Council,Corporate Communications,MMAD,Supplies & Services,Advertising,THE MIDLAND NEWS ASSOCIATION LTD,19/11/2013,170.1
Co-Operative Council,Corporate Communications,MMAD,Supplies & Services,Advertising,Hi Street Media,19/11/2013,230
Co-Operative Council,Corporate Communications,MMAD,Supplies & Services,Advertising,Hi Street Media,19/11/2013,325
Co-Operative Council,Corporate Communications,MMAD,Supplies & Services,Advertising,Hi Street Media,19/11/2013,115
Co-Operative Council,Corporate Communications,MMAD,Supplies & Services,Advertising,THE MIDLAND NEWS ASSOCIATION LTD,22/11/2013,284.4
Co-Operative Council,Corporate Communications,MMAD,Supplies & Services,Advertising,THE MIDLAND NEWS ASSOCIATION LTD,26/11/2013,577.49
Co-Operative Council,Corporate Communications,MMAD,Supplies & Services,Advertising,THE MIDLAND NEWS ASSOCIATION LTD,26/11/2013,328.05
Co-Operative Council,Corporate Communications,MMAD,Supplies & Services,Advertising,THE MIDLAND NEWS ASSOCIATION LTD,26/11/2013,121.5
Co-Operative Council,Corporate Communications,MMAD,Supplies & Services,Advertising,THE MIDLAND NEWS ASSOCIATION LTD,26/11/2013,625.5
Co-Operative Council,Corporate Communications,MMAD,Supplies & Services,Advertising,Scene Local Media Ltd,22/11/2013,538.2
Co-Operative Council,Corporate Communications,MMAD,Supplies & Services,Advertising,THE MIDLAND NEWS ASSOCIATION LTD,19/11/2013,390.28
Co-Operative Council,Corporate Communications,MMAD,Supplies & Services,Advertising,Positive Media Marketing,06/11/2013,375
Co-Operative Council,Corporate Communications,MMAD,Supplies & Services,Advertising,THE MIDLAND NEWS ASSOCIATION LTD,06/11/2013,760.32
Co-Operative Council,Corporate Communications,MMAD,Supplies & Services,Advertising,THE MIDLAND NEWS ASSOCIATION LTD,06/11/2013,126.72
Co-Operative Council,Corporate Communications,MMAD,Supplies & Services,Advertising,Martin Austen Publishing Ltd,06/11/2013,500
Co-Operative Council,Corporate Communications,MMAD,Supplies & Services,Advertising,THE MIDLAND NEWS ASSOCIATION LTD,01/11/2013,126.72
Co-Operative Council,Corporate Communications,MMAD,Supplies & Services,Advertising,THE MIDLAND NEWS ASSOCIATION LTD,01/11/2013,121.5
Co-Operative Council,Corporate Communications,MMAD,Supplies & Services,Advertising,THE MIDLAND NEWS ASSOCIATION LTD,01/11/2013,577.49
Co-Operative Council,Corporate Communications,MMAD,Supplies & Services,Advertising,THE MIDLAND NEWS ASSOCIATION LTD,06/11/2013,121.5
Co-Operative Council,Corporate Communications,MMAD,Supplies & Services,Advertising,THE MIDLAND NEWS ASSOCIATION LTD,06/11/2013,113.4
Co-Operative Council,Corporate Communications,MMAD,Supplies & Services,Advertising,THE MIDLAND NEWS ASSOCIATION LTD,25/11/2013,-284.4
Co-Operative Council,Corporate Communications,MMAD,Supplies & Services,Advertising,CBS OUTDOOR LIMITED,25/11/2013,510
Co-Operative Council,Corporate Communications,MMAD,Supplies & Services,Advertising,THE MIDLAND NEWS ASSOCIATION LTD,26/11/2013,570.6
Co-Operative Council,Corporate Communications,MMAD,Supplies & Services,Advertising,THE MIDLAND NEWS ASSOCIATION LTD,26/11/2013,285.3
Co-Operative Council,Corporate Communications,MMAD,Supplies & Services,Advertising,THE MIDLAND NEWS ASSOCIATION LTD,26/11/2013,651.37
Co-Operative Council,Corporate Communications,MMAD,Supplies & Services,Advertising,THE MIDLAND NEWS ASSOCIATION LTD,26/11/2013,128.47
Co-Operative Council,Corporate Communications,MMAD,Supplies & Services,Advertising,THE MIDLAND NEWS ASSOCIATION LTD,26/11/2013,315
Co-Operative Council,Corporate Communications,MMAD,Supplies & Services,Advertising,THE MIDLAND NEWS ASSOCIATION LTD,26/11/2013,157.5
Co-Operative Council,Corporate Communications,MMAD,Supplies & Services,Advertising,THE MIDLAND NEWS ASSOCIATION LTD,26/11/2013,214.2
Co-Operative Council,Corporate Communications,MMAD,Supplies & Services,Advertising,THE MIDLAND NEWS ASSOCIATION LTD,01/11/2013,364.5
Co-Operative Council,Corporate Communications,MMAD,Supplies & Services,Advertising,THE MIDLAND NEWS ASSOCIATION LTD,01/11/2013,214.2
Co-Operative Council,Corporate Communications,MMAD,Supplies & Services,Advertising,THE MIDLAND NEWS ASSOCIATION LTD,01/11/2013,117.9
Co-Operative Council,Corporate Communications,MMAD,Supplies & Services,Advertising,ORION MEDIA,28/11/2013,600
Co-Operative Council,Corporate Communications,MMAD,Supplies & Services,Advertising,THE MIDLAND NEWS ASSOCIATION LTD,28/11/2013,117.9
Co-Operative Council,Corporate Communications,MMAD,Supplies & Services,Advertising,INANDAROUND MAGAZINES,06/11/2013,350
Co-Operative Council,Corporate Communications,MMAD,Supplies & Services,Advertising,THE MIDLAND NEWS ASSOCIATION LTD,06/11/2013,342
Co-Operative Council,Corporate Communications,MMAD,Supplies & Services,Advertising,ORION MEDIA,28/11/2013,1700
Co-Operative Council,Corporate Communications,MMAD,Supplies & Services,Advertising,ORION MEDIA,28/11/2013,-255
Co-Operative Council,Corporate Communications,MMAD,Supplies & Services,Advertising,SHREWSBURY & TELFORD FAMILY GRAPEVINE,07/11/2013,150
Co-Operative Council,Corporate Communications,MMAD,Supplies & Services,Advertising,THE MIDLAND NEWS ASSOCIATION LTD,08/11/2013,108
Co-Operative Council,Corporate Communications,MMAD,Supplies & Services,Advertising,THE MIDLAND NEWS ASSOCIATION LTD,08/11/2013,473.85
Co-Operative Council,Corporate Communications,MMAD,Supplies & Services,Advertising,CBS OUTDOOR LIMITED,08/11/2013,300
Co-Operative Council,Corporate Communications,MMAD,Supplies & Services,Advertising,CBS OUTDOOR LIMITED,08/11/2013,510
Co-Operative Council,Corporate Communications,MMAD,Supplies & Services,Advertising,M C MARKETING LTD,08/11/2013,625
Co-Operative Council,Corporate Communications,MMAD,Supplies & Services,Advertising,THE MIDLAND NEWS ASSOCIATION LTD,04/11/2013,284.4
Co-Operative Council,Corporate Communications,MMAD,Supplies & Services,Advertising,THE MIDLAND NEWS ASSOCIATION LTD,04/11/2013,128.47
Co-Operative Council,Corporate Communications,MMAD,Supplies & Services,Advertising,THE MIDLAND NEWS ASSOCIATION LTD,04/11/2013,400.95
Co-Operative Council,Corporate Communications,MMAE,Supplies & Services,Printing - Other,Graphics and Print (Telford) Ltd,26/11/2013,357
Co-Operative Council,Corporate Core,MHAB,Employees,Staff Training,VIRTUAL STAFF COLLEGE,05/11/2013,105
Co-Operative Council,Corporate Core,MHAC,Supplies & Services,Graphic Design Charges,TUDOR PRINT & SIGNS,19/11/2013,251
Co-Operative Council,Corporate Core,MHAC,Supplies & Services,Graphic Design Charges,LEXON,28/11/2013,163.35
Co-Operative Council,Policy & Strategy,MPAC,Supplies & Services,Other Expenses,WRAGGE & CO,05/11/2013,1305
Customer & People Services,Benefits,LRSF,Supplies & Services,Grants To Voluntary Organis,TELFORD & WREKIN CITIZENS ADVICE BUREAU,13/11/2013,11000
Customer & People Services,Benefits,LRSF,Transfer Payments,Crisis Assistance Awards,Reviive,25/11/2013,211.5
Customer & People Services,Benefits,LRSF,Transfer Payments,Crisis Assistance Awards,Reviive,25/11/2013,101.2
Customer & People Services,Benefits,LRSF,Transfer Payments,Crisis Assistance Awards,Reviive,25/11/2013,112.75
Customer & People Services,Benefits,LRSF,Transfer Payments,Crisis Assistance Awards,Reviive,25/11/2013,132
Customer & People Services,Benefits,LRSF,Transfer Payments,Crisis Assistance Awards,A W HOLDINGS,25/11/2013,1096
Customer & People Services,Benefits,LRSF,Transfer Payments,Crisis Assistance Awards,PayPoint Network Limited,21/11/2013,416
Customer & People Services,Benefits,LRSF,Transfer Payments,Crisis Assistance Awards,A W HOLDINGS,14/11/2013,1251
Customer & People Services,Benefits,LRSF,Transfer Payments,Crisis Assistance Awards,A W HOLDINGS,14/11/2013,705
Customer & People Services,Benefits,LRSF,Transfer Payments,Crisis Assistance Awards,DAWLEY BARGAIN CENTRE,14/11/2013,135
Customer & People Services,Benefits,LRSF,Transfer Payments,Crisis Assistance Awards,CHAIRS & SPARES,14/11/2013,102.5
Customer & People Services,Benefits,LRSF,Transfer Payments,Crisis Assistance Awards,PayPoint Network Limited,13/11/2013,274
Customer & People Services,Benefits,LRSF,Transfer Payments,Crisis Assistance Awards,PayPoint Network Limited,06/11/2013,276
Customer & People Services,Benefits,LRSF,Transfer Payments,Crisis Assistance Awards,A W HOLDINGS,05/11/2013,149
Customer & People Services,Benefits,LRSF,Transfer Payments,Crisis Assistance Awards,PayPoint Network Limited,29/11/2013,391
Customer & People Services,Benefits,LRSF,Transfer Payments,Crisis Assistance Awards,Reviive,06/11/2013,155.25
Customer & People Services,Benefits,LRTC,Supplies & Services,Comp Software (Purch / Hire),NORTHGATE INFORMATION SOLUTIONS UK LTD,26/11/2013,465
Customer & People Services,Catering & Home Care,CAHC,Employees,Training Expenses,CIEH,06/11/2013,543.15
Customer & People Services,Catering & Home Care,CAHC,Employees,Training Expenses,CIEH,13/11/2013,526.95
Customer & People Services,Catering & Home Care,CAHC,Employees,Training Expenses,CIEH,13/11/2013,359.45
Customer & People Services,Catering & Home Care,CAMA,Supplies & Services,Equipment - Repair,SCR RETAIL SYSTEMS,11/11/2013,200
Customer & People Services,Catering & Home Care,CAMA,Supplies & Services,Equipment - Repair,NATIONWIDE RETAIL SYSTEMS LTD,07/11/2013,290
Customer & People Services,Catering & Home Care,CASM,Supplies & Services,EEC Whole Milk,JOHAL DAIRIES,11/11/2013,749.59
Customer & People Services,Catering & Home Care,CASM,Supplies & Services,EEC Whole Milk,JOHAL DAIRIES,11/11/2013,747.23
Customer & People Services,Catering & Home Care,CASM,Supplies & Services,EEC Whole Milk,JOHAL DAIRIES,11/11/2013,745.4
Customer & People Services,Catering & Home Care,CASM,Supplies & Services,EEC Whole Milk,JOHAL DAIRIES,11/11/2013,1881.05
Customer & People Services,Catering & Home Care,CASM,Supplies & Services,EEC Whole Milk,JOHAL DAIRIES,07/11/2013,1859.09
Customer & People Services,Catering & Home Care,CASM,Supplies & Services,EEC Whole Milk,JOHAL DAIRIES,07/11/2013,724.88
Customer & People Services,Catering & Home Care,CASM,Supplies & Services,EEC Whole Milk,JOHAL DAIRIES,07/11/2013,1881.05
Customer & People Services,Catering & Home Care,CASM,Supplies & Services,EEC Whole Milk,JOHAL DAIRIES,07/11/2013,1881.05
Customer & People Services,Catering & Home Care,CASN,Supplies & Services,Provisions,Bikold,21/11/2013,175.73
Customer & People Services,Catering & Home Care,CASN,Supplies & Services,Provisions,Bikold,21/11/2013,117.96
Customer & People Services,Catering & Home Care,CASN,Supplies & Services,Provisions,Bikold,14/11/2013,225.36
Customer & People Services,Catering & Home Care,CASN,Supplies & Services,Provisions,Bikold,14/11/2013,199.13
Customer & People Services,Catering & Home Care,CASN,Supplies & Services,Equipment - Purchase,ERIC NEVILLE CATERING SUPPLIES LTD,27/11/2013,1750
Customer & People Services,Catering & Home Care,CASN,Supplies & Services,Provisions,Bikold,29/11/2013,174.13
Customer & People Services,Catering & Home Care,CASN,Supplies & Services,Provisions,Bikold,29/11/2013,162.59
Customer & People Services,Catering & Home Care,CASN,Supplies & Services,Provisions,Bikold,29/11/2013,228.86
Customer & People Services,Catering & Home Care,CASN,Supplies & Services,Provisions,WELSH BROS FOODS LTD,07/11/2013,128.65
Customer & People Services,Catering & Home Care,CASN,Supplies & Services,Provisions,WELSH BROS FOODS LTD,07/11/2013,164.7
Customer & People Services,Catering & Home Care,CASN,Supplies & Services,Provisions,Bikold,07/11/2013,129.76
Customer & People Services,Catering & Home Care,CASN,Supplies & Services,Provisions,Bikold,07/11/2013,160.62
Customer & People Services,Catering & Home Care,CASN,Supplies & Services,Provisions,Bikold,07/11/2013,249.8
Customer & People Services,Catering & Home Care,CASN,Supplies & Services,Provisions,Bikold,07/11/2013,190.31
Customer & People Services,Catering & Home Care,CASN,Supplies & Services,Provisions,Bikold,07/11/2013,107.55
Customer & People Services,Catering & Home Care,CASN,Supplies & Services,Provisions,ROWLANDS & COMPANY,13/11/2013,164.95
Customer & People Services,Catering & Home Care,CASP,Premises-Related Expenditure,Clean Mats & Toilet Requisites,ERIC NEVILLE CATERING SUPPLIES LTD,05/11/2013,104
Customer & People Services,Catering & Home Care,CASP,Premises-Related Expenditure,Clean Mats & Toilet Requisites,ERIC NEVILLE CATERING SUPPLIES LTD,06/11/2013,152
Customer & People Services,Catering & Home Care,CASP,Supplies & Services,Equipment - Hire,CATERING CENTRE UK LTD,13/11/2013,179.6
Customer & People Services,Catering & Home Care,CASP,Supplies & Services,Crockery/Hardware/Light Equip,ERIC NEVILLE CATERING SUPPLIES LTD,06/11/2013,134.29
Customer & People Services,Catering & Home Care,CASP,Supplies & Services,Crockery/Hardware/Light Equip,ERIC NEVILLE CATERING SUPPLIES LTD,06/11/2013,156.2
Customer & People Services,Catering & Home Care,CASP,Supplies & Services,Provisions,Bikold,21/11/2013,137.49
Customer & People Services,Catering & Home Care,CASP,Supplies & Services,Provisions,Bikold,21/11/2013,112.34
Customer & People Services,Catering & Home Care,CASP,Supplies & Services,Provisions,Bikold,21/11/2013,161.07
Customer & People Services,Catering & Home Care,CASP,Supplies & Services,Provisions,Bikold,21/11/2013,193.07
Customer & People Services,Catering & Home Care,CASP,Supplies & Services,Provisions,Bikold,21/11/2013,120.29
Customer & People Services,Catering & Home Care,CASP,Supplies & Services,Provisions,Bikold,21/11/2013,105.58
Customer & People Services,Catering & Home Care,CASP,Supplies & Services,Provisions,Bikold,21/11/2013,162.2
Customer & People Services,Catering & Home Care,CASP,Supplies & Services,Provisions,Bikold,21/11/2013,126.82
Customer & People Services,Catering & Home Care,CASP,Supplies & Services,Provisions,Bikold,21/11/2013,169.94
Customer & People Services,Catering & Home Care,CASP,Supplies & Services,Provisions,Bikold,21/11/2013,160.25
Customer & People Services,Catering & Home Care,CASP,Supplies & Services,Provisions,Bikold,21/11/2013,231.16
Customer & People Services,Catering & Home Care,CASP,Supplies & Services,Provisions,Bikold,21/11/2013,322.74
Customer & People Services,Catering & Home Care,CASP,Supplies & Services,Provisions,Bikold,21/11/2013,102.87
Customer & People Services,Catering & Home Care,CASP,Supplies & Services,Provisions,Bikold,21/11/2013,154.09
Customer & People Services,Catering & Home Care,CASP,Supplies & Services,Provisions,Bikold,21/11/2013,190.85
Customer & People Services,Catering & Home Care,CASP,Supplies & Services,Provisions,Bikold,21/11/2013,144.25
Customer & People Services,Catering & Home Care,CASP,Supplies & Services,Provisions,Bikold,21/11/2013,227.73
Customer & People Services,Catering & Home Care,CASP,Supplies & Services,Provisions,Bikold,21/11/2013,136.4
Customer & People Services,Catering & Home Care,CASP,Supplies & Services,Provisions,Bikold,21/11/2013,218.83
Customer & People Services,Catering & Home Care,CASP,Supplies & Services,Provisions,Bikold,21/11/2013,305.86
Customer & People Services,Catering & Home Care,CASP,Supplies & Services,Provisions,Bikold,21/11/2013,140.6
Customer & People Services,Catering & Home Care,CASP,Supplies & Services,Provisions,Bikold,21/11/2013,111.98
Customer & People Services,Catering & Home Care,CASP,Supplies & Services,Provisions,Bikold,21/11/2013,163.82
Customer & People Services,Catering & Home Care,CASP,Supplies & Services,Provisions,Bikold,21/11/2013,183.64
Customer & People Services,Catering & Home Care,CASP,Supplies & Services,Provisions,Bikold,21/11/2013,217.47
Customer & People Services,Catering & Home Care,CASP,Supplies & Services,Provisions,Bikold,21/11/2013,304.69
Customer & People Services,Catering & Home Care,CASP,Supplies & Services,Provisions,Bikold,21/11/2013,197.96
Customer & People Services,Catering & Home Care,CASP,Supplies & Services,Provisions,Bikold,21/11/2013,352.21
Customer & People Services,Catering & Home Care,CASP,Supplies & Services,Provisions,Bikold,21/11/2013,269.4
Customer & People Services,Catering & Home Care,CASP,Supplies & Services,Provisions,Bikold,21/11/2013,244.44
Customer & People Services,Catering & Home Care,CASP,Supplies & Services,Provisions,Bikold,21/11/2013,170.34
Customer & People Services,Catering & Home Care,CASP,Supplies & Services,Provisions,Bikold,21/11/2013,218.09
Customer & People Services,Catering & Home Care,CASP,Supplies & Services,Provisions,Bikold,21/11/2013,100.53
Customer & People Services,Catering & Home Care,CASP,Supplies & Services,Provisions,Bikold,21/11/2013,160.5
Customer & People Services,Catering & Home Care,CASP,Supplies & Services,Provisions,Bikold,21/11/2013,158.24
Customer & People Services,Catering & Home Care,CASP,Supplies & Services,Provisions,Bikold,21/11/2013,138.22
Customer & People Services,Catering & Home Care,CASP,Supplies & Services,Provisions,Bikold,21/11/2013,127.25
Customer & People Services,Catering & Home Care,CASP,Supplies & Services,Provisions,Bikold,21/11/2013,216.98
Customer & People Services,Catering & Home Care,CASP,Supplies & Services,Provisions,Bikold,21/11/2013,122.25
Customer & People Services,Catering & Home Care,CASP,Supplies & Services,Provisions,Bikold,21/11/2013,177.11
Customer & People Services,Catering & Home Care,CASP,Supplies & Services,Provisions,Bikold,21/11/2013,124.7
Customer & People Services,Catering & Home Care,CASP,Supplies & Services,Provisions,Bikold,21/11/2013,125.76
Customer & People Services,Catering & Home Care,CASP,Supplies & Services,Provisions,Bikold,21/11/2013,105.73
Customer & People Services,Catering & Home Care,CASP,Supplies & Services,Provisions,Bikold,21/11/2013,136.42
Customer & People Services,Catering & Home Care,CASP,Supplies & Services,Provisions,Bikold,21/11/2013,124.83
Customer & People Services,Catering & Home Care,CASP,Supplies & Services,Provisions,Bikold,21/11/2013,122.79
Customer & People Services,Catering & Home Care,CASP,Supplies & Services,Provisions,Bikold,21/11/2013,110.82
Customer & People Services,Catering & Home Care,CASP,Supplies & Services,Provisions,Bikold,21/11/2013,138.18
Customer & People Services,Catering & Home Care,CASP,Supplies & Services,Provisions,Bikold,21/11/2013,117.8
Customer & People Services,Catering & Home Care,CASP,Supplies & Services,Provisions,Bikold,21/11/2013,183.39
Customer & People Services,Catering & Home Care,CASP,Supplies & Services,Provisions,Bikold,21/11/2013,206.39
Customer & People Services,Catering & Home Care,CASP,Supplies & Services,Provisions,Bikold,21/11/2013,105.92
Customer & People Services,Catering & Home Care,CASP,Supplies & Services,Provisions,Bikold,21/11/2013,148.58
Customer & People Services,Catering & Home Care,CASP,Supplies & Services,Provisions,Bikold,21/11/2013,125.75
Customer & People Services,Catering & Home Care,CASP,Supplies & Services,Provisions,Bikold,21/11/2013,156.76
Customer & People Services,Catering & Home Care,CASP,Supplies & Services,Provisions,Bikold,21/11/2013,105.83
Customer & People Services,Catering & Home Care,CASP,Supplies & Services,Provisions,Bikold,21/11/2013,159.05
Customer & People Services,Catering & Home Care,CASP,Supplies & Services,Provisions,WELSH BROS FOODS LTD,07/11/2013,106.13
Customer & People Services,Catering & Home Care,CASP,Supplies & Services,Provisions,WELSH BROS FOODS LTD,07/11/2013,114
Customer & People Services,Catering & Home Care,CASP,Supplies & Services,Provisions,WELSH BROS FOODS LTD,07/11/2013,116.25
Customer & People Services,Catering & Home Care,CASP,Supplies & Services,Provisions,WELSH BROS FOODS LTD,07/11/2013,111.88
Customer & People Services,Catering & Home Care,CASP,Supplies & Services,Provisions,WELSH BROS FOODS LTD,07/11/2013,126.1
Customer & People Services,Catering & Home Care,CASP,Supplies & Services,Provisions,WELSH BROS FOODS LTD,07/11/2013,129.55
Customer & People Services,Catering & Home Care,CASP,Supplies & Services,Provisions,WELSH BROS FOODS LTD,07/11/2013,101.6
Customer & People Services,Catering & Home Care,CASP,Supplies & Services,Provisions,WELSH BROS FOODS LTD,07/11/2013,101
Customer & People Services,Catering & Home Care,CASP,Supplies & Services,Provisions,Bikold,14/11/2013,170.84
Customer & People Services,Catering & Home Care,CASP,Supplies & Services,Provisions,Bikold,14/11/2013,118.02
Customer & People Services,Catering & Home Care,CASP,Supplies & Services,Provisions,Bikold,14/11/2013,124.05
Customer & People Services,Catering & Home Care,CASP,Supplies & Services,Provisions,Bikold,14/11/2013,163.68
Customer & People Services,Catering & Home Care,CASP,Supplies & Services,Provisions,Bikold,14/11/2013,121.32
Customer & People Services,Catering & Home Care,CASP,Supplies & Services,Provisions,Bikold,14/11/2013,189.21
Customer & People Services,Catering & Home Care,CASP,Supplies & Services,Provisions,Bikold,14/11/2013,206.58
Customer & People Services,Catering & Home Care,CASP,Supplies & Services,Provisions,Bikold,14/11/2013,116.18
Customer & People Services,Catering & Home Care,CASP,Supplies & Services,Provisions,Bikold,14/11/2013,131.01
Customer & People Services,Catering & Home Care,CASP,Supplies & Services,Provisions,Bikold,14/11/2013,163.8
Customer & People Services,Catering & Home Care,CASP,Supplies & Services,Provisions,Bikold,14/11/2013,284.95
Customer & People Services,Catering & Home Care,CASP,Supplies & Services,Provisions,Bikold,14/11/2013,114.53
Customer & People Services,Catering & Home Care,CASP,Supplies & Services,Provisions,Bikold,14/11/2013,194.75
Customer & People Services,Catering & Home Care,CASP,Supplies & Services,Provisions,Bikold,14/11/2013,419.23
Customer & People Services,Catering & Home Care,CASP,Supplies & Services,Provisions,Bikold,14/11/2013,145.12
Customer & People Services,Catering & Home Care,CASP,Supplies & Services,Provisions,Bikold,14/11/2013,180.02
Customer & People Services,Catering & Home Care,CASP,Supplies & Services,Provisions,Bikold,14/11/2013,122.14
Customer & People Services,Catering & Home Care,CASP,Supplies & Services,Provisions,Bikold,14/11/2013,108.87
Customer & People Services,Catering & Home Care,CASP,Supplies & Services,Provisions,Bikold,14/11/2013,151.52
Customer & People Services,Catering & Home Care,CASP,Supplies & Services,Provisions,Bikold,14/11/2013,174.86
Customer & People Services,Catering & Home Care,CASP,Supplies & Services,Provisions,Bikold,14/11/2013,116.51
Customer & People Services,Catering & Home Care,CASP,Supplies & Services,Provisions,Bikold,14/11/2013,126.95
Customer & People Services,Catering & Home Care,CASP,Supplies & Services,Provisions,Bikold,14/11/2013,104.84
Customer & People Services,Catering & Home Care,CASP,Supplies & Services,Provisions,Bikold,14/11/2013,103.5
Customer & People Services,Catering & Home Care,CASP,Supplies & Services,Provisions,Bikold,14/11/2013,178.77
Customer & People Services,Catering & Home Care,CASP,Supplies & Services,Provisions,Bikold,14/11/2013,-163.8
Customer & People Services,Catering & Home Care,CASP,Supplies & Services,Provisions,Bikold,14/11/2013,-296.25
Customer & People Services,Catering & Home Care,CASP,Supplies & Services,Provisions,Bikold,14/11/2013,214.12
Customer & People Services,Catering & Home Care,CASP,Supplies & Services,Provisions,Bikold,14/11/2013,239.62
Customer & People Services,Catering & Home Care,CASP,Supplies & Services,Provisions,Bikold,14/11/2013,103.81
Customer & People Services,Catering & Home Care,CASP,Supplies & Services,Provisions,Bikold,14/11/2013,293.09
Customer & People Services,Catering & Home Care,CASP,Supplies & Services,Provisions,Bikold,14/11/2013,164.63
Customer & People Services,Catering & Home Care,CASP,Supplies & Services,Provisions,Bikold,14/11/2013,107.03
Customer & People Services,Catering & Home Care,CASP,Supplies & Services,Provisions,Bikold,14/11/2013,252.47
Customer & People Services,Catering & Home Care,CASP,Supplies & Services,Provisions,Bikold,14/11/2013,134.34
Customer & People Services,Catering & Home Care,CASP,Supplies & Services,Provisions,Bikold,14/11/2013,115.3
Customer & People Services,Catering & Home Care,CASP,Supplies & Services,Provisions,Bikold,14/11/2013,161.02
Customer & People Services,Catering & Home Care,CASP,Supplies & Services,Provisions,Bikold,14/11/2013,105.21
Customer & People Services,Catering & Home Care,CASP,Supplies & Services,Provisions,Bikold,14/11/2013,124.46
Customer & People Services,Catering & Home Care,CASP,Supplies & Services,Provisions,Bikold,14/11/2013,113.47
Customer & People Services,Catering & Home Care,CASP,Supplies & Services,Provisions,Bikold,14/11/2013,219.69
Customer & People Services,Catering & Home Care,CASP,Supplies & Services,Provisions,Bikold,14/11/2013,247.47
Customer & People Services,Catering & Home Care,CASP,Supplies & Services,Provisions,Bikold,14/11/2013,143.06
Customer & People Services,Catering & Home Care,CASP,Supplies & Services,Provisions,Bikold,14/11/2013,127.62
Customer & People Services,Catering & Home Care,CASP,Supplies & Services,Provisions,Bikold,14/11/2013,227.83
Customer & People Services,Catering & Home Care,CASP,Supplies & Services,Provisions,Bikold,14/11/2013,199.53
Customer & People Services,Catering & Home Care,CASP,Supplies & Services,Provisions,Bikold,14/11/2013,233.8
Customer & People Services,Catering & Home Care,CASP,Supplies & Services,Provisions,Bikold,14/11/2013,224.4
Customer & People Services,Catering & Home Care,CASP,Supplies & Services,Provisions,Bikold,14/11/2013,344.65
Customer & People Services,Catering & Home Care,CASP,Supplies & Services,Provisions,Bikold,14/11/2013,160.84
Customer & People Services,Catering & Home Care,CASP,Supplies & Services,Provisions,Bikold,14/11/2013,194.43
Customer & People Services,Catering & Home Care,CASP,Supplies & Services,Provisions,Bikold,14/11/2013,114.04
Customer & People Services,Catering & Home Care,CASP,Supplies & Services,Provisions,Bikold,14/11/2013,100.05
Customer & People Services,Catering & Home Care,CASP,Supplies & Services,Provisions,Bikold,14/11/2013,104.41
Customer & People Services,Catering & Home Care,CASP,Supplies & Services,Provisions,Bikold,14/11/2013,180.79
Customer & People Services,Catering & Home Care,CASP,Supplies & Services,Provisions,Bikold,14/11/2013,112.28
Customer & People Services,Catering & Home Care,CASP,Supplies & Services,Provisions,Bikold,14/11/2013,164.24
Customer & People Services,Catering & Home Care,CASP,Supplies & Services,Provisions,Bikold,14/11/2013,110.06
Customer & People Services,Catering & Home Care,CASP,Supplies & Services,Provisions,Bikold,14/11/2013,106.58
Customer & People Services,Catering & Home Care,CASP,Supplies & Services,Provisions,THE FABULOUS BAKIN BOYS,27/11/2013,212.86
Customer & People Services,Catering & Home Care,CASP,Supplies & Services,Provisions,SAFY IMPEX T/A SPICE TIME,05/11/2013,384.5
Customer & People Services,Catering & Home Care,CASP,Supplies & Services,Provisions,Bikold,29/11/2013,113.18
Customer & People Services,Catering & Home Care,CASP,Supplies & Services,Provisions,Bikold,29/11/2013,210.78
Customer & People Services,Catering & Home Care,CASP,Supplies & Services,Provisions,Bikold,29/11/2013,160.74
Customer & People Services,Catering & Home Care,CASP,Supplies & Services,Provisions,Bikold,29/11/2013,119.78
Customer & People Services,Catering & Home Care,CASP,Supplies & Services,Provisions,Bikold,29/11/2013,137.14
Customer & People Services,Catering & Home Care,CASP,Supplies & Services,Provisions,Bikold,29/11/2013,256.63
Customer & People Services,Catering & Home Care,CASP,Supplies & Services,Provisions,Bikold,29/11/2013,128.41
Customer & People Services,Catering & Home Care,CASP,Supplies & Services,Provisions,Bikold,29/11/2013,128.07
Customer & People Services,Catering & Home Care,CASP,Supplies & Services,Provisions,Bikold,29/11/2013,152.46
Customer & People Services,Catering & Home Care,CASP,Supplies & Services,Provisions,Bikold,29/11/2013,150.96
Customer & People Services,Catering & Home Care,CASP,Supplies & Services,Provisions,Bikold,29/11/2013,116.64
Customer & People Services,Catering & Home Care,CASP,Supplies & Services,Provisions,Bikold,29/11/2013,107.2
Customer & People Services,Catering & Home Care,CASP,Supplies & Services,Provisions,Bikold,29/11/2013,176.64
Customer & People Services,Catering & Home Care,CASP,Supplies & Services,Provisions,Bikold,29/11/2013,104.87
Customer & People Services,Catering & Home Care,CASP,Supplies & Services,Provisions,Bikold,29/11/2013,165.49
Customer & People Services,Catering & Home Care,CASP,Supplies & Services,Provisions,Bikold,29/11/2013,184.53
Customer & People Services,Catering & Home Care,CASP,Supplies & Services,Provisions,Bikold,29/11/2013,171.23
Customer & People Services,Catering & Home Care,CASP,Supplies & Services,Provisions,Bikold,29/11/2013,204.16
Customer & People Services,Catering & Home Care,CASP,Supplies & Services,Provisions,Bikold,29/11/2013,114.13
Customer & People Services,Catering & Home Care,CASP,Supplies & Services,Provisions,Bikold,29/11/2013,203.97
Customer & People Services,Catering & Home Care,CASP,Supplies & Services,Provisions,Bikold,29/11/2013,103.54
Customer & People Services,Catering & Home Care,CASP,Supplies & Services,Provisions,Bikold,29/11/2013,102.25
Customer & People Services,Catering & Home Care,CASP,Supplies & Services,Provisions,Bikold,29/11/2013,238.27
Customer & People Services,Catering & Home Care,CASP,Supplies & Services,Provisions,Bikold,29/11/2013,157.38
Customer & People Services,Catering & Home Care,CASP,Supplies & Services,Provisions,Bikold,29/11/2013,107.69
Customer & People Services,Catering & Home Care,CASP,Supplies & Services,Provisions,Bikold,29/11/2013,236.93
Customer & People Services,Catering & Home Care,CASP,Supplies & Services,Provisions,Bikold,29/11/2013,108.64
Customer & People Services,Catering & Home Care,CASP,Supplies & Services,Provisions,Bikold,29/11/2013,158.32
Customer & People Services,Catering & Home Care,CASP,Supplies & Services,Provisions,Bikold,29/11/2013,194.39
Customer & People Services,Catering & Home Care,CASP,Supplies & Services,Provisions,Bikold,29/11/2013,103.95
Customer & People Services,Catering & Home Care,CASP,Supplies & Services,Provisions,Bikold,29/11/2013,164.07
Customer & People Services,Catering & Home Care,CASP,Supplies & Services,Provisions,Bikold,29/11/2013,156.96
Customer & People Services,Catering & Home Care,CASP,Supplies & Services,Provisions,Bikold,29/11/2013,119.75
Customer & People Services,Catering & Home Care,CASP,Supplies & Services,Provisions,Bikold,29/11/2013,125.24
Customer & People Services,Catering & Home Care,CASP,Supplies & Services,Provisions,Bikold,29/11/2013,226.36
Customer & People Services,Catering & Home Care,CASP,Supplies & Services,Provisions,Bikold,29/11/2013,326.08
Customer & People Services,Catering & Home Care,CASP,Supplies & Services,Provisions,Bikold,29/11/2013,129.05
Customer & People Services,Catering & Home Care,CASP,Supplies & Services,Provisions,Bikold,29/11/2013,115.39
Customer & People Services,Catering & Home Care,CASP,Supplies & Services,Provisions,Bikold,29/11/2013,202.31
Customer & People Services,Catering & Home Care,CASP,Supplies & Services,Provisions,Bikold,29/11/2013,249.51
Customer & People Services,Catering & Home Care,CASP,Supplies & Services,Provisions,Bikold,29/11/2013,323.84
Customer & People Services,Catering & Home Care,CASP,Supplies & Services,Provisions,Bikold,29/11/2013,165.48
Customer & People Services,Catering & Home Care,CASP,Supplies & Services,Provisions,Bikold,29/11/2013,118.35
Customer & People Services,Catering & Home Care,CASP,Supplies & Services,Provisions,Bikold,29/11/2013,186.3
Customer & People Services,Catering & Home Care,CASP,Supplies & Services,Provisions,Bikold,29/11/2013,104.51
Customer & People Services,Catering & Home Care,CASP,Supplies & Services,Provisions,Bikold,29/11/2013,184.7
Customer & People Services,Catering & Home Care,CASP,Supplies & Services,Provisions,Bikold,29/11/2013,228.24
Customer & People Services,Catering & Home Care,CASP,Supplies & Services,Provisions,Bikold,29/11/2013,193.28
Customer & People Services,Catering & Home Care,CASP,Supplies & Services,Provisions,Bikold,29/11/2013,118.06
Customer & People Services,Catering & Home Care,CASP,Supplies & Services,Provisions,Bikold,29/11/2013,146.68
Customer & People Services,Catering & Home Care,CASP,Supplies & Services,Provisions,Bikold,29/11/2013,140.56
Customer & People Services,Catering & Home Care,CASP,Supplies & Services,Provisions,Bikold,29/11/2013,135.94
Customer & People Services,Catering & Home Care,CASP,Supplies & Services,Provisions,Bikold,29/11/2013,141.05
Customer & People Services,Catering & Home Care,CASP,Supplies & Services,Provisions,Bikold,29/11/2013,162.62
Customer & People Services,Catering & Home Care,CASP,Supplies & Services,Provisions,Bikold,29/11/2013,203.44
Customer & People Services,Catering & Home Care,CASP,Supplies & Services,Provisions,Bikold,29/11/2013,118.58
Customer & People Services,Catering & Home Care,CASP,Supplies & Services,Provisions,Bikold,29/11/2013,173.74
Customer & People Services,Catering & Home Care,CASP,Supplies & Services,Provisions,Bikold,29/11/2013,217.72
Customer & People Services,Catering & Home Care,CASP,Supplies & Services,Provisions,WELSH BROS FOODS LTD,07/11/2013,111.76
Customer & People Services,Catering & Home Care,CASP,Supplies & Services,Provisions,WELSH BROS FOODS LTD,07/11/2013,109.51
Customer & People Services,Catering & Home Care,CASP,Supplies & Services,Provisions,WELSH BROS FOODS LTD,07/11/2013,134.13
Customer & People Services,Catering & Home Care,CASP,Supplies & Services,Provisions,WELSH BROS FOODS LTD,07/11/2013,122.35
Customer & People Services,Catering & Home Care,CASP,Supplies & Services,Provisions,WELSH BROS FOODS LTD,07/11/2013,114
Customer & People Services,Catering & Home Care,CASP,Supplies & Services,Provisions,WELSH BROS FOODS LTD,07/11/2013,107.75
Customer & People Services,Catering & Home Care,CASP,Supplies & Services,Provisions,WELSH BROS FOODS LTD,07/11/2013,107
Customer & People Services,Catering & Home Care,CASP,Supplies & Services,Provisions,WELSH BROS FOODS LTD,07/11/2013,170.55
Customer & People Services,Catering & Home Care,CASP,Supplies & Services,Provisions,WELSH BROS FOODS LTD,07/11/2013,152.4
Customer & People Services,Catering & Home Care,CASP,Supplies & Services,Provisions,WELSH BROS FOODS LTD,07/11/2013,126.15
Customer & People Services,Catering & Home Care,CASP,Supplies & Services,Provisions,WELSH BROS FOODS LTD,07/11/2013,176.2
Customer & People Services,Catering & Home Care,CASP,Supplies & Services,Provisions,WELSH BROS FOODS LTD,07/11/2013,112.1
Customer & People Services,Catering & Home Care,CASP,Supplies & Services,Provisions,WELSH BROS FOODS LTD,07/11/2013,105.15
Customer & People Services,Catering & Home Care,CASP,Supplies & Services,Provisions,WELSH BROS FOODS LTD,07/11/2013,105.45
Customer & People Services,Catering & Home Care,CASP,Supplies & Services,Provisions,WELSH BROS FOODS LTD,07/11/2013,102
Customer & People Services,Catering & Home Care,CASP,Supplies & Services,Provisions,WELSH BROS FOODS LTD,07/11/2013,137.25
Customer & People Services,Catering & Home Care,CASP,Supplies & Services,Provisions,WELSH BROS FOODS LTD,07/11/2013,112.98
Customer & People Services,Catering & Home Care,CASP,Supplies & Services,Provisions,WELSH BROS FOODS LTD,07/11/2013,174.83
Customer & People Services,Catering & Home Care,CASP,Supplies & Services,Provisions,WELSH BROS FOODS LTD,07/11/2013,131.1
Customer & People Services,Catering & Home Care,CASP,Supplies & Services,Provisions,WELSH BROS FOODS LTD,07/11/2013,124.71
Customer & People Services,Catering & Home Care,CASP,Supplies & Services,Provisions,WELSH BROS FOODS LTD,07/11/2013,101
Customer & People Services,Catering & Home Care,CASP,Supplies & Services,Provisions,WELSH BROS FOODS LTD,07/11/2013,115.5
Customer & People Services,Catering & Home Care,CASP,Supplies & Services,Provisions,Bikold,07/11/2013,225.15
Customer & People Services,Catering & Home Care,CASP,Supplies & Services,Provisions,Bikold,07/11/2013,370.95
Customer & People Services,Catering & Home Care,CASP,Supplies & Services,Provisions,Bikold,07/11/2013,122.92
Customer & People Services,Catering & Home Care,CASP,Supplies & Services,Provisions,Bikold,07/11/2013,155.12
Customer & People Services,Catering & Home Care,CASP,Supplies & Services,Provisions,Bikold,07/11/2013,122.56
Customer & People Services,Catering & Home Care,CASP,Supplies & Services,Provisions,Bikold,07/11/2013,154.25
Customer & People Services,Catering & Home Care,CASP,Supplies & Services,Provisions,Bikold,07/11/2013,122.09
Customer & People Services,Catering & Home Care,CASP,Supplies & Services,Provisions,Bikold,07/11/2013,119.26
Customer & People Services,Catering & Home Care,CASP,Supplies & Services,Provisions,Bikold,07/11/2013,203.37
Customer & People Services,Catering & Home Care,CASP,Supplies & Services,Provisions,Bikold,07/11/2013,100.2
Customer & People Services,Catering & Home Care,CASP,Supplies & Services,Provisions,Bikold,07/11/2013,107.18
Customer & People Services,Catering & Home Care,CASP,Supplies & Services,Provisions,Bikold,07/11/2013,206.51
Customer & People Services,Catering & Home Care,CASP,Supplies & Services,Provisions,Bikold,07/11/2013,189.45
Customer & People Services,Catering & Home Care,CASP,Supplies & Services,Provisions,Bikold,07/11/2013,151.03
Customer & People Services,Catering & Home Care,CASP,Supplies & Services,Provisions,Bikold,07/11/2013,279.71
Customer & People Services,Catering & Home Care,CASP,Supplies & Services,Provisions,Bikold,07/11/2013,172.94
Customer & People Services,Catering & Home Care,CASP,Supplies & Services,Provisions,Bikold,07/11/2013,142.47
Customer & People Services,Catering & Home Care,CASP,Supplies & Services,Provisions,Bikold,07/11/2013,210.19
Customer & People Services,Catering & Home Care,CASP,Supplies & Services,Provisions,Bikold,07/11/2013,158.69
Customer & People Services,Catering & Home Care,CASP,Supplies & Services,Provisions,Bikold,07/11/2013,189.99
Customer & People Services,Catering & Home Care,CASP,Supplies & Services,Provisions,Bikold,07/11/2013,273.13
Customer & People Services,Catering & Home Care,CASP,Supplies & Services,Provisions,Bikold,07/11/2013,175.32
Customer & People Services,Catering & Home Care,CASP,Supplies & Services,Provisions,Bikold,07/11/2013,231.25
Customer & People Services,Catering & Home Care,CASP,Supplies & Services,Provisions,Bikold,07/11/2013,117.94
Customer & People Services,Catering & Home Care,CASP,Supplies & Services,Provisions,Bikold,07/11/2013,370.47
Customer & People Services,Catering & Home Care,CASP,Supplies & Services,Provisions,Bikold,07/11/2013,223.26
Customer & People Services,Catering & Home Care,CASP,Supplies & Services,Provisions,Bikold,07/11/2013,157.88
Customer & People Services,Catering & Home Care,CASP,Supplies & Services,Provisions,Bikold,07/11/2013,189.83
Customer & People Services,Catering & Home Care,CASP,Supplies & Services,Provisions,Bikold,07/11/2013,239.96
Customer & People Services,Catering & Home Care,CASP,Supplies & Services,Provisions,Bikold,07/11/2013,218.08
Customer & People Services,Catering & Home Care,CASP,Supplies & Services,Provisions,Bikold,07/11/2013,176.48
Customer & People Services,Catering & Home Care,CASP,Supplies & Services,Provisions,Bikold,07/11/2013,245.89
Customer & People Services,Catering & Home Care,CASP,Supplies & Services,Provisions,Bikold,07/11/2013,160.18
Customer & People Services,Catering & Home Care,CASP,Supplies & Services,Provisions,Bikold,07/11/2013,102.56
Customer & People Services,Catering & Home Care,CASP,Supplies & Services,Provisions,Bikold,07/11/2013,131.63
Customer & People Services,Catering & Home Care,CASP,Supplies & Services,Provisions,Bikold,07/11/2013,181.21
Customer & People Services,Catering & Home Care,CASP,Supplies & Services,Provisions,Bikold,07/11/2013,174.03
Customer & People Services,Catering & Home Care,CASP,Supplies & Services,Provisions,Bikold,07/11/2013,127.61
Customer & People Services,Catering & Home Care,CASP,Supplies & Services,Provisions,Bikold,07/11/2013,127.18
Customer & People Services,Catering & Home Care,CASP,Supplies & Services,Provisions,Bikold,07/11/2013,153.74
Customer & People Services,Catering & Home Care,CASP,Supplies & Services,Provisions,Bikold,07/11/2013,247.03
Customer & People Services,Catering & Home Care,CASP,Supplies & Services,Provisions,Bikold,07/11/2013,103
Customer & People Services,Catering & Home Care,CASP,Supplies & Services,Provisions,Bikold,07/11/2013,177.84
Customer & People Services,Catering & Home Care,CASP,Supplies & Services,Provisions,Bikold,07/11/2013,299.64
Customer & People Services,Catering & Home Care,CASP,Supplies & Services,Provisions,Bikold,07/11/2013,246.3
Customer & People Services,Catering & Home Care,CASP,Supplies & Services,Provisions,Bikold,07/11/2013,165.27
Customer & People Services,Catering & Home Care,CASP,Supplies & Services,Provisions,Bikold,07/11/2013,175.41
Customer & People Services,Catering & Home Care,CASP,Supplies & Services,Provisions,Bikold,07/11/2013,104.02
Customer & People Services,Catering & Home Care,CASP,Supplies & Services,Provisions,Bikold,07/11/2013,387.9
Customer & People Services,Catering & Home Care,CASP,Supplies & Services,Provisions,Bikold,07/11/2013,167.29
Customer & People Services,Catering & Home Care,CASP,Supplies & Services,Provisions,Bikold,07/11/2013,156.22
Customer & People Services,Catering & Home Care,CASP,Supplies & Services,Provisions,Bikold,07/11/2013,181.6
Customer & People Services,Catering & Home Care,CASP,Supplies & Services,Provisions,Bikold,07/11/2013,109.98
Customer & People Services,Catering & Home Care,CASP,Supplies & Services,Provisions,Bikold,07/11/2013,219.98
Customer & People Services,Catering & Home Care,CASP,Supplies & Services,Provisions,Bikold,07/11/2013,262.24
Customer & People Services,Catering & Home Care,CASP,Supplies & Services,Provisions,Bikold,07/11/2013,114.78
Customer & People Services,Catering & Home Care,CASP,Supplies & Services,Provisions,Bikold,07/11/2013,111.37
Customer & People Services,Catering & Home Care,CASP,Supplies & Services,Provisions,Bikold,07/11/2013,152.61
Customer & People Services,Catering & Home Care,CASP,Supplies & Services,Provisions,Bikold,07/11/2013,191.77
Customer & People Services,Catering & Home Care,CASP,Supplies & Services,Provisions,Bikold,07/11/2013,138.55
Customer & People Services,Catering & Home Care,CASP,Supplies & Services,Provisions,Bikold,07/11/2013,111.44
Customer & People Services,Catering & Home Care,CASP,Supplies & Services,Provisions,Bikold,07/11/2013,178.67
Customer & People Services,Catering & Home Care,CASP,Supplies & Services,Provisions,Bikold,07/11/2013,112.61
Customer & People Services,Catering & Home Care,CASP,Supplies & Services,Provisions,Bikold,07/11/2013,102.88
Customer & People Services,Catering & Home Care,CASP,Supplies & Services,Provisions,Bikold,07/11/2013,103.19
Customer & People Services,Catering & Home Care,CASP,Supplies & Services,Provisions,FRESHVIEW FOODS LTD,12/11/2013,110.28
Customer & People Services,Catering & Home Care,CASP,Supplies & Services,Provisions,FRESHVIEW FOODS LTD,12/11/2013,149.68
Customer & People Services,Catering & Home Care,CASP,Supplies & Services,Provisions,FRESHVIEW FOODS LTD,12/11/2013,129.39
Customer & People Services,Catering & Home Care,CASP,Supplies & Services,Provisions,FRESHVIEW FOODS LTD,12/11/2013,203.12
Customer & People Services,Catering & Home Care,CASP,Supplies & Services,Provisions,ROWLANDS & COMPANY,13/11/2013,117.71
Customer & People Services,Catering & Home Care,CASP,Supplies & Services,Provisions,ROWLANDS & COMPANY,13/11/2013,102.5
Customer & People Services,Catering & Home Care,CASP,Supplies & Services,Provisions,ROWLANDS & COMPANY,13/11/2013,147.27
Customer & People Services,Catering & Home Care,CASP,Supplies & Services,Provisions,ROWLANDS & COMPANY,13/11/2013,124.07
Customer & People Services,Catering & Home Care,CASP,Supplies & Services,Provisions,ROWLANDS & COMPANY,13/11/2013,101.52
Customer & People Services,Catering & Home Care,CASP,Supplies & Services,Provisions,ROWLANDS & COMPANY,13/11/2013,148.11
Customer & People Services,Catering & Home Care,CASP,Supplies & Services,Provisions,ROWLANDS & COMPANY,13/11/2013,115.54
Customer & People Services,Catering & Home Care,CASP,Supplies & Services,Provisions,ROWLANDS & COMPANY,13/11/2013,107.05
Customer & People Services,Catering & Home Care,CASP,Supplies & Services,Provisions,ROWLANDS & COMPANY,13/11/2013,117.03
Customer & People Services,Catering & Home Care,CASP,Supplies & Services,Provisions,ROWLANDS & COMPANY,13/11/2013,-623.78
Customer & People Services,Catering & Home Care,CASP,Supplies & Services,Provisions,ROWLANDS & COMPANY,13/11/2013,655.48
Customer & People Services,Catering & Home Care,CASP,Supplies & Services,Provisions,ROWLANDS & COMPANY,13/11/2013,160.26
Customer & People Services,Catering & Home Care,CASP,Transport-Related Expenditure,Hire Charges from MO,FCC RECYCLING (UK) LIMITED,27/11/2013,156
Customer & People Services,Catering & Home Care,CASS,Supplies & Services,Crockery/Hardware/Light Equip,ERIC NEVILLE CATERING SUPPLIES LTD,11/11/2013,134.97
Customer & People Services,Catering & Home Care,CASS,Supplies & Services,Crockery/Hardware/Light Equip,ERIC NEVILLE CATERING SUPPLIES LTD,12/11/2013,189.02
Customer & People Services,Catering & Home Care,CASS,Supplies & Services,Holidays & Outings,TRI STAR PACKAGING SUPPLIES LIMITED,27/11/2013,150.82
Customer & People Services,Catering & Home Care,CASS,Supplies & Services,Crockery/Hardware/Light Equip,ERIC NEVILLE CATERING SUPPLIES LTD,27/11/2013,125.46
Customer & People Services,Catering & Home Care,CASS,Supplies & Services,Provisions,Bikold,21/11/2013,249.93
Customer & People Services,Catering & Home Care,CASS,Supplies & Services,Provisions,Bikold,21/11/2013,167.9
Customer & People Services,Catering & Home Care,CASS,Supplies & Services,Provisions,Bikold,21/11/2013,195.77
Customer & People Services,Catering & Home Care,CASS,Supplies & Services,Provisions,Bikold,21/11/2013,243.14
Customer & People Services,Catering & Home Care,CASS,Supplies & Services,Provisions,Bikold,21/11/2013,136.2
Customer & People Services,Catering & Home Care,CASS,Supplies & Services,Provisions,Bikold,21/11/2013,230.25
Customer & People Services,Catering & Home Care,CASS,Supplies & Services,Provisions,Bikold,21/11/2013,332.38
Customer & People Services,Catering & Home Care,CASS,Supplies & Services,Provisions,Bikold,21/11/2013,107.07
Customer & People Services,Catering & Home Care,CASS,Supplies & Services,Provisions,Bikold,21/11/2013,135.06
Customer & People Services,Catering & Home Care,CASS,Supplies & Services,Provisions,Bikold,21/11/2013,155.34
Customer & People Services,Catering & Home Care,CASS,Supplies & Services,Provisions,Bikold,21/11/2013,162.83
Customer & People Services,Catering & Home Care,CASS,Supplies & Services,Provisions,Bikold,21/11/2013,201.14
Customer & People Services,Catering & Home Care,CASS,Supplies & Services,Provisions,Bikold,21/11/2013,134.52
Customer & People Services,Catering & Home Care,CASS,Supplies & Services,Provisions,Bikold,21/11/2013,209.78
Customer & People Services,Catering & Home Care,CASS,Supplies & Services,Provisions,Bikold,21/11/2013,129.19
Customer & People Services,Catering & Home Care,CASS,Supplies & Services,Provisions,Bikold,21/11/2013,108.04
Customer & People Services,Catering & Home Care,CASS,Supplies & Services,Provisions,Bikold,21/11/2013,272.45
Customer & People Services,Catering & Home Care,CASS,Supplies & Services,Provisions,THE FABULOUS BAKIN BOYS,26/11/2013,127.34
Customer & People Services,Catering & Home Care,CASS,Supplies & Services,Provisions,THE FABULOUS BAKIN BOYS,11/11/2013,144.7
Customer & People Services,Catering & Home Care,CASS,Supplies & Services,Provisions,SMART FOOD,11/11/2013,457.2
Customer & People Services,Catering & Home Care,CASS,Supplies & Services,Provisions,Brambles Foods Ltd,11/11/2013,450.25
Customer & People Services,Catering & Home Care,CASS,Supplies & Services,Provisions,Brambles Foods Ltd,11/11/2013,465.05
Customer & People Services,Catering & Home Care,CASS,Supplies & Services,Provisions,Brambles Foods Ltd,11/11/2013,569.85
Customer & People Services,Catering & Home Care,CASS,Supplies & Services,Provisions,RADNOR HILLS MINERAL WATER COMPANY LTD,11/11/2013,209.58
Customer & People Services,Catering & Home Care,CASS,Supplies & Services,Provisions,Bikold,14/11/2013,102.11
Customer & People Services,Catering & Home Care,CASS,Supplies & Services,Provisions,Bikold,14/11/2013,118.5
Customer & People Services,Catering & Home Care,CASS,Supplies & Services,Provisions,Bikold,14/11/2013,173.7
Customer & People Services,Catering & Home Care,CASS,Supplies & Services,Provisions,Bikold,14/11/2013,251.99
Customer & People Services,Catering & Home Care,CASS,Supplies & Services,Provisions,Bikold,14/11/2013,101.46
Customer & People Services,Catering & Home Care,CASS,Supplies & Services,Provisions,Bikold,14/11/2013,125.09
Customer & People Services,Catering & Home Care,CASS,Supplies & Services,Provisions,Bikold,14/11/2013,120.3
Customer & People Services,Catering & Home Care,CASS,Supplies & Services,Provisions,Bikold,14/11/2013,213.96
Customer & People Services,Catering & Home Care,CASS,Supplies & Services,Provisions,Bikold,14/11/2013,167.91
Customer & People Services,Catering & Home Care,CASS,Supplies & Services,Provisions,Bikold,14/11/2013,191.03
Customer & People Services,Catering & Home Care,CASS,Supplies & Services,Provisions,Bikold,14/11/2013,196.77
Customer & People Services,Catering & Home Care,CASS,Supplies & Services,Provisions,Bikold,14/11/2013,266.36
Customer & People Services,Catering & Home Care,CASS,Supplies & Services,Provisions,Bikold,14/11/2013,207.2
Customer & People Services,Catering & Home Care,CASS,Supplies & Services,Provisions,Bikold,14/11/2013,427.26
Customer & People Services,Catering & Home Care,CASS,Supplies & Services,Provisions,Bikold,14/11/2013,126
Customer & People Services,Catering & Home Care,CASS,Supplies & Services,Provisions,Bikold,14/11/2013,132.93
Customer & People Services,Catering & Home Care,CASS,Supplies & Services,Provisions,Bikold,14/11/2013,115
Customer & People Services,Catering & Home Care,CASS,Supplies & Services,Provisions,Bikold,14/11/2013,222.2
Customer & People Services,Catering & Home Care,CASS,Supplies & Services,Provisions,Bikold,14/11/2013,109.8
Customer & People Services,Catering & Home Care,CASS,Supplies & Services,Provisions,Bikold,14/11/2013,160.74
Customer & People Services,Catering & Home Care,CASS,Supplies & Services,Provisions,SMART FOOD,12/11/2013,381.6
Customer & People Services,Catering & Home Care,CASS,Supplies & Services,Provisions,THE FABULOUS BAKIN BOYS,27/11/2013,166.88
Customer & People Services,Catering & Home Care,CASS,Supplies & Services,Provisions,Brambles Foods Ltd,27/11/2013,269.4
Customer & People Services,Catering & Home Care,CASS,Supplies & Services,Provisions,RADNOR HILLS MINERAL WATER COMPANY LTD,27/11/2013,243.17
Customer & People Services,Catering & Home Care,CASS,Supplies & Services,Provisions,SMART FOOD,27/11/2013,457.2
Customer & People Services,Catering & Home Care,CASS,Supplies & Services,Provisions,THE FABULOUS BAKIN BOYS,27/11/2013,104.86
Customer & People Services,Catering & Home Care,CASS,Supplies & Services,Provisions,Brambles Foods Ltd,27/11/2013,536.85
Customer & People Services,Catering & Home Care,CASS,Supplies & Services,Provisions,SMART FOOD,12/11/2013,343.8
Customer & People Services,Catering & Home Care,CASS,Supplies & Services,Provisions,SMART FOOD,12/11/2013,229.2
Customer & People Services,Catering & Home Care,CASS,Supplies & Services,Provisions,SMART FOOD,12/11/2013,268.2
Customer & People Services,Catering & Home Care,CASS,Supplies & Services,Provisions,Bikold,29/11/2013,156.56
Customer & People Services,Catering & Home Care,CASS,Supplies & Services,Provisions,Bikold,29/11/2013,140.36
Customer & People Services,Catering & Home Care,CASS,Supplies & Services,Provisions,Bikold,29/11/2013,124.07
Customer & People Services,Catering & Home Care,CASS,Supplies & Services,Provisions,Bikold,29/11/2013,179.67
Customer & People Services,Catering & Home Care,CASS,Supplies & Services,Provisions,Bikold,29/11/2013,179.76
Customer & People Services,Catering & Home Care,CASS,Supplies & Services,Provisions,Bikold,29/11/2013,183.84
Customer & People Services,Catering & Home Care,CASS,Supplies & Services,Provisions,Bikold,29/11/2013,192.44
Customer & People Services,Catering & Home Care,CASS,Supplies & Services,Provisions,Bikold,29/11/2013,263
Customer & People Services,Catering & Home Care,CASS,Supplies & Services,Provisions,Bikold,29/11/2013,296.96
Customer & People Services,Catering & Home Care,CASS,Supplies & Services,Provisions,Bikold,29/11/2013,151.92
Customer & People Services,Catering & Home Care,CASS,Supplies & Services,Provisions,Bikold,29/11/2013,471.39
Customer & People Services,Catering & Home Care,CASS,Supplies & Services,Provisions,Bikold,29/11/2013,110.02
Customer & People Services,Catering & Home Care,CASS,Supplies & Services,Provisions,Bikold,29/11/2013,114.63
Customer & People Services,Catering & Home Care,CASS,Supplies & Services,Provisions,Bikold,29/11/2013,411.99
Customer & People Services,Catering & Home Care,CASS,Supplies & Services,Provisions,Bikold,29/11/2013,263.3
Customer & People Services,Catering & Home Care,CASS,Supplies & Services,Provisions,Bikold,29/11/2013,174.66
Customer & People Services,Catering & Home Care,CASS,Supplies & Services,Provisions,Bikold,29/11/2013,108.6
Customer & People Services,Catering & Home Care,CASS,Supplies & Services,Provisions,Bikold,29/11/2013,109.5
Customer & People Services,Catering & Home Care,CASS,Supplies & Services,Provisions,Bikold,29/11/2013,107.43
Customer & People Services,Catering & Home Care,CASS,Supplies & Services,Provisions,Bikold,29/11/2013,102.14
Customer & People Services,Catering & Home Care,CASS,Supplies & Services,Provisions,Bikold,29/11/2013,154.37
Customer & People Services,Catering & Home Care,CASS,Supplies & Services,Provisions,Brambles Foods Ltd,06/11/2013,118.34
Customer & People Services,Catering & Home Care,CASS,Supplies & Services,Provisions,THE FABULOUS BAKIN BOYS,07/11/2013,104.3
Customer & People Services,Catering & Home Care,CASS,Supplies & Services,Provisions,RADNOR HILLS MINERAL WATER COMPANY LTD,07/11/2013,149.7
Customer & People Services,Catering & Home Care,CASS,Supplies & Services,Provisions,Brambles Foods Ltd,07/11/2013,109.48
Customer & People Services,Catering & Home Care,CASS,Supplies & Services,Provisions,SMART FOOD,07/11/2013,343.2
Customer & People Services,Catering & Home Care,CASS,Supplies & Services,Provisions,Bikold,07/11/2013,181.22
Customer & People Services,Catering & Home Care,CASS,Supplies & Services,Provisions,Bikold,07/11/2013,262.99
Customer & People Services,Catering & Home Care,CASS,Supplies & Services,Provisions,Bikold,07/11/2013,276.65
Customer & People Services,Catering & Home Care,CASS,Supplies & Services,Provisions,Bikold,07/11/2013,247.2
Customer & People Services,Catering & Home Care,CASS,Supplies & Services,Provisions,Bikold,07/11/2013,606.07
Customer & People Services,Catering & Home Care,CASS,Supplies & Services,Provisions,Bikold,07/11/2013,411.43
Customer & People Services,Catering & Home Care,CASS,Supplies & Services,Provisions,Bikold,07/11/2013,308.04
Customer & People Services,Catering & Home Care,CASS,Supplies & Services,Provisions,Brambles Foods Ltd,12/11/2013,668.8
Customer & People Services,Catering & Home Care,CASS,Supplies & Services,Provisions,Bikold,07/11/2013,382.64
Customer & People Services,Catering & Home Care,CASS,Supplies & Services,Provisions,Bikold,07/11/2013,228.32
Customer & People Services,Catering & Home Care,CASS,Supplies & Services,Provisions,Bikold,07/11/2013,202.23
Customer & People Services,Catering & Home Care,CASS,Supplies & Services,Provisions,Bikold,07/11/2013,102.77
Customer & People Services,Catering & Home Care,CASS,Supplies & Services,Provisions,Bikold,07/11/2013,202.62
Customer & People Services,Catering & Home Care,CASS,Supplies & Services,Provisions,Bikold,07/11/2013,235.88
Customer & People Services,Catering & Home Care,CASS,Supplies & Services,Provisions,Bikold,07/11/2013,149.41
Customer & People Services,Catering & Home Care,CASS,Supplies & Services,Provisions,Bikold,07/11/2013,587.32
Customer & People Services,Catering & Home Care,CASS,Supplies & Services,Provisions,Bikold,07/11/2013,121.37
Customer & People Services,Catering & Home Care,CASS,Supplies & Services,Provisions,Bikold,07/11/2013,231.11
Customer & People Services,Catering & Home Care,CASS,Supplies & Services,Provisions,Bikold,07/11/2013,401.68
Customer & People Services,Catering & Home Care,CASS,Supplies & Services,Provisions,Bikold,07/11/2013,175.06
Customer & People Services,Catering & Home Care,CASS,Supplies & Services,Provisions,RADNOR HILLS MINERAL WATER COMPANY LTD,13/11/2013,387.85
Customer & People Services,Catering & Home Care,CASS,Supplies & Services,Provisions,Brambles Foods Ltd,13/11/2013,1180.4
Customer & People Services,Catering & Home Care,CASX,Supplies & Services,Provisions,Bikold,21/11/2013,285.4
Customer & People Services,Catering & Home Care,CASX,Supplies & Services,Provisions,Bikold,21/11/2013,112.73
Customer & People Services,Catering & Home Care,CASX,Supplies & Services,Provisions,Bikold,21/11/2013,136.46
Customer & People Services,Catering & Home Care,CASX,Supplies & Services,Provisions,Bikold,14/11/2013,135.25
Customer & People Services,Catering & Home Care,CASX,Supplies & Services,Provisions,Bikold,14/11/2013,269.33
Customer & People Services,Catering & Home Care,CASX,Supplies & Services,Provisions,Bikold,14/11/2013,218
Customer & People Services,Catering & Home Care,CASX,Supplies & Services,Provisions,Bikold,29/11/2013,220.29
Customer & People Services,Catering & Home Care,CASX,Supplies & Services,Provisions,Bikold,29/11/2013,136.63
Customer & People Services,Catering & Home Care,CASX,Supplies & Services,Provisions,Bikold,29/11/2013,115.73
Customer & People Services,Catering & Home Care,CASX,Supplies & Services,Provisions,Bikold,29/11/2013,120.94
Customer & People Services,Catering & Home Care,CASX,Supplies & Services,Provisions,Bikold,29/11/2013,105
Customer & People Services,Catering & Home Care,CASX,Supplies & Services,Provisions,Bikold,07/11/2013,201.46
Customer & People Services,Catering & Home Care,CASX,Supplies & Services,Provisions,Bikold,07/11/2013,143.39
Customer & People Services,Catering & Home Care,CASX,Supplies & Services,Provisions,Bikold,07/11/2013,185.3
Customer & People Services,Catering & Home Care,COMM,Supplies & Services,Provisions,Brambles Foods Ltd,26/11/2013,306.88
Customer & People Services,Catering & Home Care,COMM,Supplies & Services,Provisions,Bikold,21/11/2013,186.3
Customer & People Services,Catering & Home Care,COMM,Supplies & Services,Provisions,Bikold,21/11/2013,351.76
Customer & People Services,Catering & Home Care,COMM,Supplies & Services,Provisions,Bikold,21/11/2013,235.48
Customer & People Services,Catering & Home Care,COMM,Supplies & Services,Equipment - Purchase,Planit Furniture Limited,26/11/2013,-1623.2
Customer & People Services,Catering & Home Care,COMM,Supplies & Services,Provisions,Bikold,14/11/2013,127.28
Customer & People Services,Catering & Home Care,COMM,Supplies & Services,Provisions,Bikold,14/11/2013,155.25
Customer & People Services,Catering & Home Care,COMM,Supplies & Services,Provisions,Bikold,14/11/2013,221.14
Customer & People Services,Catering & Home Care,COMM,Supplies & Services,Provisions,Brambles Foods Ltd,05/11/2013,617.04
Customer & People Services,Catering & Home Care,COMM,Supplies & Services,Provisions,Brambles Foods Ltd,05/11/2013,588.47
Customer & People Services,Catering & Home Care,COMM,Supplies & Services,Provisions,Brambles Foods Ltd,05/11/2013,412.13
Customer & People Services,Catering & Home Care,COMM,Supplies & Services,Provisions,Brambles Foods Ltd,05/11/2013,392.79
Customer & People Services,Catering & Home Care,COMM,Supplies & Services,Provisions,G N BADLEY & SONS,05/11/2013,117.87
Customer & People Services,Catering & Home Care,COMM,Supplies & Services,Provisions,Bikold,29/11/2013,232.88
Customer & People Services,Catering & Home Care,COMM,Supplies & Services,Provisions,Bikold,29/11/2013,103.86
Customer & People Services,Catering & Home Care,COMM,Supplies & Services,Provisions,Bikold,29/11/2013,298.14
Customer & People Services,Catering & Home Care,COMM,Supplies & Services,Provisions,Bikold,29/11/2013,102.46
Customer & People Services,Catering & Home Care,COMM,Supplies & Services,Provisions,Bikold,29/11/2013,290.8
Customer & People Services,Catering & Home Care,COMM,Supplies & Services,Provisions,Bikold,29/11/2013,178.34
Customer & People Services,Catering & Home Care,COMM,Supplies & Services,Provisions,Gills Puddings Ltd,06/11/2013,580.5
Customer & People Services,Catering & Home Care,COMM,Supplies & Services,Equipment - Purchase,ERIC NEVILLE CATERING SUPPLIES LTD,06/11/2013,789.59
Customer & People Services,Catering & Home Care,COMM,Supplies & Services,Crockery/Hardware/Light Equip,ERIC NEVILLE CATERING SUPPLIES LTD,06/11/2013,153.44
Customer & People Services,Catering & Home Care,COMM,Supplies & Services,Provisions,Brambles Foods Ltd,06/11/2013,440.25
Customer & People Services,Catering & Home Care,COMM,Supplies & Services,Provisions,Brambles Foods Ltd,06/11/2013,308.86
Customer & People Services,Catering & Home Care,COMM,Supplies & Services,Provisions,Brambles Foods Ltd,07/11/2013,420.39
Customer & People Services,Catering & Home Care,COMM,Supplies & Services,Provisions,Brambles Foods Ltd,07/11/2013,262.79
Customer & People Services,Catering & Home Care,COMM,Supplies & Services,Provisions,Bikold,07/11/2013,234.86
Customer & People Services,Catering & Home Care,COMM,Supplies & Services,Provisions,Bikold,07/11/2013,299.09
Customer & People Services,Catering & Home Care,COMM,Supplies & Services,Provisions,Bikold,07/11/2013,124.9
Customer & People Services,Catering & Home Care,COMM,Supplies & Services,Provisions,Bikold,07/11/2013,116.66
Customer & People Services,Catering & Home Care,COMM,Supplies & Services,Provisions,Bikold,07/11/2013,175.14
Customer & People Services,Catering & Home Care,COMM,Supplies & Services,Provisions,Bikold,07/11/2013,139.51
Customer & People Services,Catering & Home Care,COMM,Supplies & Services,Provisions,Bikold,07/11/2013,196.67
Customer & People Services,Catering & Home Care,COMM,Supplies & Services,Provisions,Bikold,07/11/2013,135.77
Customer & People Services,Customer & Registrars Services,LMAA,Supplies & Services,Comp Software (Purch / Hire),ESRI (UK) CAMBRIDGE LTD,21/11/2013,1116.01
Customer & People Services,Customer & Registrars Services,LMAA,Supplies & Services,Translation Services,VISS LTD,25/11/2013,125
Customer & People Services,Customer & Registrars Services,LMAA,Supplies & Services,Stationery,Q-MATIC UK LTD,25/11/2013,315
Customer & People Services,Customer & Registrars Services,LMAA,Supplies & Services,Translation Services,VISS LTD,25/11/2013,125
Customer & People Services,Customer & Registrars Services,LMAA,Supplies & Services,Translation Services,VISS LTD,08/11/2013,125
Customer & People Services,Customer & Registrars Services,LMAA,Supplies & Services,Translation Services,VISS LTD,25/11/2013,125
Customer & People Services,Customer & Registrars Services,LMAA,Supplies & Services,Security Services,BUSINESS WATCH GUARDING LIMITED,01/11/2013,3888.78
Customer & People Services,Customer & Registrars Services,LMAA,Supplies & Services,Translation Services,VISS LTD,08/11/2013,125
Customer & People Services,Customer & Registrars Services,LMAA,Supplies & Services,Translation Services,VISS LTD,08/11/2013,125
Customer & People Services,Customer & Registrars Services,LMAA,Supplies & Services,Translation Services,VISS LTD,08/11/2013,125
Customer & People Services,Customer & Registrars Services,LMAA,Supplies & Services,Translation Services,VISS LTD,08/11/2013,125
Customer & People Services,Customer & Registrars Services,LMAA,Supplies & Services,Stationery,SPECIALIST COMPUTERS CENTRES PLC,11/11/2013,114.7
Customer & People Services,Customer & Registrars Services,LMAD,Supplies & Services,Conference Expenses,NCOG,14/11/2013,149
Customer & People Services,Customer & Registrars Services,LMAD,Supplies & Services,Equipment - Purchase,SPECIALIST COMPUTERS CENTRES PLC,06/11/2013,137.37
Customer & People Services,Customer & Registrars Services,LSAA,Supplies & Services,Equipment - Purchase,WENLOCK SPRING WATER LTD,20/11/2013,117.8
Customer & People Services,Customer & Registrars Services,LSAB,Premises-Related Expenditure,Grounds Maintenance - Cemeteries,P & W MAINTENANCE CONTRACTING LTD,20/11/2013,2900.24
Customer & People Services,Customer & Registrars Services,LSAB,Premises-Related Expenditure,Grounds Maintenance - Cemeteries,P & W MAINTENANCE CONTRACTING LTD,20/11/2013,3224.65
Customer & People Services,Customer & Registrars Services,LSAB,Supplies & Services,Items For Resale,G H DAVIES & SON,05/11/2013,183.6
Customer & People Services,Facilities Management and Cleaning Services,ASAB,Employees,Course Fees,NAT ASSOC OF BRITISH MARKET AUTHORITIES,27/11/2013,200
Customer & People Services,Facilities Management and Cleaning Services,ASAB,Supplies & Services,Other Expenses,BUSINESS WATCH GUARDING LIMITED,21/11/2013,315.84
Customer & People Services,Facilities Management and Cleaning Services,ASAB,Supplies & Services,Other Expenses,BUSINESS WATCH GUARDING LIMITED,21/11/2013,752.08
Customer & People Services,Facilities Management and Cleaning Services,CFAA,Premises-Related Expenditure,R&M -Buildings DLO Charge,TELFORD & WREKIN SERVICES LTD,08/11/2013,6069.16
Customer & People Services,Facilities Management and Cleaning Services,CFAA,Supplies & Services,Legal,WARD HADAWAY SOLICITORS,08/11/2013,222.4
Customer & People Services,Facilities Management and Cleaning Services,CFAD,Supplies & Services,Security Services,BUSINESS WATCH GUARDING LIMITED,18/11/2013,18054.83
Customer & People Services,Facilities Management and Cleaning Services,CFAM,Premises-Related Expenditure,R&M -Building Other,D P WILCOX & SON,22/11/2013,220
Customer & People Services,Facilities Management and Cleaning Services,CFAM,Premises-Related Expenditure,R&M -Building Other,WINDOW & DOOR CONTRACT SERVICES,01/11/2013,183.3
Customer & People Services,Facilities Management and Cleaning Services,CFAS,Premises-Related Expenditure,Electricity,West Mercia Energy (WME),07/11/2013,-161.38
Customer & People Services,Facilities Management and Cleaning Services,CFAS,Premises-Related Expenditure,Electricity,West Mercia Energy (WME),07/11/2013,-156.12
Customer & People Services,Facilities Management and Cleaning Services,CFAS,Supplies & Services,Stationery,SIGNS EXPRESS (TELFORD),08/11/2013,173
Customer & People Services,Facilities Management and Cleaning Services,CFAS,Supplies & Services,Graphic Design Charges,LION FPG LIMITED,04/11/2013,247
Customer & People Services,Facilities Management and Cleaning Services,CFAY,Employees,Staff Training,WENLOCK HEALTH & SAFETY LTD,04/11/2013,190
Customer & People Services,Facilities Management and Cleaning Services,CFAY,Premises-Related Expenditure,R&M - Electrical,ELECTROSERVICES (MIDLANDS) LTD,18/11/2013,295.6
Customer & People Services,Facilities Management and Cleaning Services,CFAY,Premises-Related Expenditure,R&M -Buildings DLO Charge,SDT ELECTRICAL LTD,26/11/2013,375
Customer & People Services,Facilities Management and Cleaning Services,CFAY,Premises-Related Expenditure,R&M -Buildings DLO Charge,SDT ELECTRICAL LTD,25/11/2013,178.5
Customer & People Services,Facilities Management and Cleaning Services,CFAY,Premises-Related Expenditure,R&M -Buildings DLO Charge,DCI RECYCLING,11/11/2013,416.66
Customer & People Services,Facilities Management and Cleaning Services,CFAY,Premises-Related Expenditure,R&M -Buildings DLO Charge,SDT ELECTRICAL LTD,14/11/2013,389
Customer & People Services,Facilities Management and Cleaning Services,CFAY,Premises-Related Expenditure,R&M -Buildings DLO Charge,SDT ELECTRICAL LTD,07/11/2013,355.32
Customer & People Services,Facilities Management and Cleaning Services,CFAY,Premises-Related Expenditure,R&M -Buildings DLO Charge,SDT ELECTRICAL LTD,27/11/2013,175
Customer & People Services,Facilities Management and Cleaning Services,CFAY,Premises-Related Expenditure,R&M -Buildings DLO Charge,SHROPSHIRE HEATING SERVICES LTD,28/11/2013,209.07
Customer & People Services,Facilities Management and Cleaning Services,CFAY,Premises-Related Expenditure,R&M -Buildings DLO Charge,EDMUNDSON ELECTRICAL LTD,28/11/2013,145.34
Customer & People Services,Facilities Management and Cleaning Services,CFAY,Premises-Related Expenditure,R&M -Buildings DLO Charge,Howdens Joinery Ltd,28/11/2013,640.43
Customer & People Services,Facilities Management and Cleaning Services,CFAY,Premises-Related Expenditure,R&M -Buildings DLO Charge,SDT ELECTRICAL LTD,07/11/2013,285
Customer & People Services,Facilities Management and Cleaning Services,CFAY,Premises-Related Expenditure,R&M -Buildings DLO Charge,AY FABRICATIONS LTD,08/11/2013,118.32
Customer & People Services,Facilities Management and Cleaning Services,CFAY,Premises-Related Expenditure,R&M -Buildings DLO Charge,SDT ELECTRICAL LTD,08/11/2013,195.24
Customer & People Services,Facilities Management and Cleaning Services,CFAY,Supplies & Services,Printing - Other,SIGNS EXPRESS (TELFORD),25/11/2013,134
Customer & People Services,Facilities Management and Cleaning Services,CLCM,Premises-Related Expenditure,Clean Mats & Toilet Requisites,Border Janitorial Supplies Limited,18/11/2013,163.75
Customer & People Services,Facilities Management and Cleaning Services,CLCM,Premises-Related Expenditure,Clean Mats & Toilet Requisites,Border Janitorial Supplies Limited,20/11/2013,106.13
Customer & People Services,Facilities Management and Cleaning Services,CLCM,Premises-Related Expenditure,Clean Mats & Toilet Requisites,Border Janitorial Supplies Limited,20/11/2013,141.68
Customer & People Services,Facilities Management and Cleaning Services,CLCM,Premises-Related Expenditure,Clean Mats & Toilet Requisites,Border Janitorial Supplies Limited,14/11/2013,112.58
Customer & People Services,Facilities Management and Cleaning Services,CLCM,Premises-Related Expenditure,Clean Mats & Toilet Requisites,Border Janitorial Supplies Limited,28/11/2013,152.1
Customer & People Services,Facilities Management and Cleaning Services,CLCM,Premises-Related Expenditure,Clean Mats & Toilet Requisites,WEST MERCIA SUPPLIES Catalogue Supplies (None Utility),07/11/2013,165.08
Customer & People Services,Facilities Management and Cleaning Services,CLCM,Premises-Related Expenditure,Clean Mats & Toilet Requisites,WEST MERCIA SUPPLIES Catalogue Supplies (None Utility),07/11/2013,118.79
Customer & People Services,Facilities Management and Cleaning Services,CLCM,Premises-Related Expenditure,Clean Mats & Toilet Requisites,WEST MERCIA SUPPLIES Catalogue Supplies (None Utility),07/11/2013,101.34
Customer & People Services,Facilities Management and Cleaning Services,CLCM,Premises-Related Expenditure,Clean Mats & Toilet Requisites,WEST MERCIA SUPPLIES Catalogue Supplies (None Utility),07/11/2013,201.52
Customer & People Services,Facilities Management and Cleaning Services,CLCM,Premises-Related Expenditure,Contract Cleaning,CLEANIT CLEANING SERVICES,12/11/2013,101.25
Customer & People Services,Facilities Management and Cleaning Services,CLCM,Premises-Related Expenditure,Clean Mats & Toilet Requisites,Border Janitorial Supplies Limited,15/11/2013,150.7
Customer & People Services,Facilities Management and Cleaning Services,CLSP,Premises-Related Expenditure,Specific Works,A3 MACHINES LIMITED,20/11/2013,398
Customer & People Services,Facilities Management and Cleaning Services,CLSP,Premises-Related Expenditure,Clean Mats & Toilet Requisites,Border Janitorial Supplies Limited,26/11/2013,189.78
Customer & People Services,Facilities Management and Cleaning Services,CLSP,Premises-Related Expenditure,Clean Mats & Toilet Requisites,Border Janitorial Supplies Limited,26/11/2013,143.13
Customer & People Services,Facilities Management and Cleaning Services,CLSP,Premises-Related Expenditure,Clean Mats & Toilet Requisites,Border Janitorial Supplies Limited,26/11/2013,142.54
Customer & People Services,Facilities Management and Cleaning Services,CLSP,Premises-Related Expenditure,Clean Mats & Toilet Requisites,Border Janitorial Supplies Limited,26/11/2013,113.97
Customer & People Services,Facilities Management and Cleaning Services,CLSP,Premises-Related Expenditure,Contract Cleaning,CLEANIT CLEANING SERVICES,26/11/2013,140.63
Customer & People Services,Facilities Management and Cleaning Services,CLSP,Premises-Related Expenditure,Clean Mats & Toilet Requisites,Border Janitorial Supplies Limited,27/11/2013,115.04
Customer & People Services,Facilities Management and Cleaning Services,CLSP,Premises-Related Expenditure,Clean Mats & Toilet Requisites,Border Janitorial Supplies Limited,27/11/2013,243.28
Customer & People Services,Facilities Management and Cleaning Services,CLSP,Premises-Related Expenditure,Contract Cleaning,CLEANIT CLEANING SERVICES,27/11/2013,112.5
Customer & People Services,Facilities Management and Cleaning Services,CLSP,Premises-Related Expenditure,Clean Mats & Toilet Requisites,Border Janitorial Supplies Limited,28/11/2013,103.03
Customer & People Services,Facilities Management and Cleaning Services,CLSP,Premises-Related Expenditure,Clean Mats & Toilet Requisites,Border Janitorial Supplies Limited,28/11/2013,133.54
Customer & People Services,Facilities Management and Cleaning Services,CLSS,Premises-Related Expenditure,Clean Mats & Toilet Requisites,Border Janitorial Supplies Limited,20/11/2013,214.08
Customer & People Services,Facilities Management and Cleaning Services,EWAM,Supplies & Services,Computer Software (Maint),SystemsLink,19/11/2013,1800
Customer & People Services,ICT,CBAB,Employees,Agency Supply Costs,EVOLUTION RECRUITMENT SOLUTIONS LTD,18/11/2013,663
Customer & People Services,ICT,CBAB,Employees,Agency Supply Costs,EVOLUTION RECRUITMENT SOLUTIONS LTD,19/11/2013,407
Customer & People Services,ICT,CBAB,Employees,Agency Supply Costs,EVOLUTION RECRUITMENT SOLUTIONS LTD,05/11/2013,407
Customer & People Services,ICT,CBAB,Employees,Agency Supply Costs,EVOLUTION RECRUITMENT SOLUTIONS LTD,05/11/2013,510
Customer & People Services,ICT,CBAB,Employees,Agency Supply Costs,EVOLUTION RECRUITMENT SOLUTIONS LTD,05/11/2013,561
Customer & People Services,ICT,CBAB,Employees,Agency Supply Costs,EVOLUTION RECRUITMENT SOLUTIONS LTD,06/11/2013,375.83
Customer & People Services,ICT,CBAC,Transport-Related Expenditure,Travelling Expenses General,EXPOTEL HOTEL RESERVATIONS LIMITED,14/11/2013,166
Customer & People Services,ICT,CBAF,Supplies & Services,Comp Hardware (Purch / Hire),EUROPEAN ELECTRONIQUE LTD,08/11/2013,478
Customer & People Services,ICT,CBAF,Supplies & Services,Comp Hardware (Purch / Hire),EUROPEAN ELECTRONIQUE LTD,08/11/2013,2950.5
Customer & People Services,ICT,CBAF,Supplies & Services,Comp Hardware (Purch / Hire),ORANGE PERSONAL COMM SERVICES LTD,12/11/2013,269
Customer & People Services,ICT,CBAG,Supplies & Services,Equipment - Purchase,SPECIALIST COMPUTERS CENTRES PLC,08/11/2013,412.11
Customer & People Services,ICT,CBAG,Supplies & Services,Carriage/Delivery Charge,Digital Exchange Products Ltd,06/11/2013,295
Customer & People Services,ICT,CBAG,Supplies & Services,Telephones,Digital Exchange Products Ltd,08/11/2013,475
Customer & People Services,ICT,CBAG,Supplies & Services,Mobile Phones,ORANGE PERSONAL COMM SERVICES LTD,12/11/2013,183.8
Customer & People Services,ICT,CBAG,Supplies & Services,Mobile Phones,ORANGE PERSONAL COMM SERVICES LTD,12/11/2013,11864.96
Customer & People Services,ICT,CBAG,Supplies & Services,Mobile Phones,ORANGE PERSONAL COMM SERVICES LTD,12/11/2013,5922.73
Customer & People Services,ICT,CBAG,Supplies & Services,Mobile Phones,ORANGE PERSONAL COMM SERVICES LTD,12/11/2013,638.17
Customer & People Services,ICT,CBAG,Supplies & Services,Mobile Phones,ORANGE PERSONAL COMM SERVICES LTD,12/11/2013,2135.42
Customer & People Services,ICT,CBAG,Supplies & Services,Telephones,VIRGIN MEDIA BUSINESS,12/11/2013,1359.41
Customer & People Services,ICT,CBAG,Supplies & Services,Mobile Phones,ORANGE PERSONAL COMM SERVICES LTD,12/11/2013,1312.87
Customer & People Services,ICT,CBAH,Premises-Related Expenditure,R&M -Building Other,AGL Electrical,14/11/2013,4304
Customer & People Services,ICT,CBAH,Supplies & Services,Comp Software (Purch / Hire),Advanced Learning,25/11/2013,40628
Customer & People Services,ICT,CBAH,Supplies & Services,Comp Software (Purch / Hire),PHOENIX SOFTWARE LTD,26/11/2013,439.8
Customer & People Services,ICT,CBAJ,Supplies & Services,Comp Software (Purch / Hire),PHOENIX SOFTWARE LTD,26/11/2013,439.8
Customer & People Services,ICT,CBAJ,Supplies & Services,Comp Software (Purch / Hire),ESRI (UK) CAMBRIDGE LTD,21/11/2013,1459
Customer & People Services,ICT,CBAJ,Supplies & Services,Comp Software (Purch / Hire),IDOX SOFTWARE LTD,22/11/2013,950
Customer & People Services,ICT,CBAJ,Supplies & Services,Comp Hardware (Purch / Hire),GARC Limited,08/11/2013,34525
Customer & People Services,ICT,CBAJ,Supplies & Services,Comp Software (Purch / Hire),CIVICA UK LIMITED,28/11/2013,16436.81
Customer & People Services,ICT,CBAJ,Supplies & Services,Comp Software (Purch / Hire),CIVICA SERVICES LTD 23120510),29/11/2013,393.2
Customer & People Services,ICT,CBAJ,Supplies & Services,Mobile Phones,ORANGE PCS LTD,08/11/2013,225
Customer & People Services,ICT,CBAJ,Supplies & Services,External Computer Use,NTA MONITOR LTD,07/11/2013,4950
Customer & People Services,ICT,CBAJ,Supplies & Services,Comp Software (Purch / Hire),ESRI (UK) CAMBRIDGE LTD,08/11/2013,2233.8
Customer & People Services,ICT,CBAJ,Supplies & Services,Comp Software (Purch / Hire),PHOENIX SOFTWARE LTD,08/11/2013,16907
Customer & People Services,ICT,CBAJ,Supplies & Services,Comp Software (Purch / Hire),PHOENIX SOFTWARE LTD,08/11/2013,23254
Customer & People Services,ICT,CBAJ,Supplies & Services,Comp Software (Purch / Hire),VISIONWARE LTD,12/11/2013,2819
Customer & People Services,ICT,CBAJ,Supplies & Services,Comp Software (Purch / Hire),AQ LIMITED,12/11/2013,112.71
Customer & People Services,ICT,CBAJ,Supplies & Services,Mobile Phones,ORANGE PCS LTD,04/11/2013,238
Customer & People Services,ICT,CBAJ,Transport-Related Expenditure,Transport,EXPOTEL HOTEL RESERVATIONS LIMITED,14/11/2013,372.3
Customer & People Services,ICT,CBAL,Supplies & Services,Stationery,PREMIER PAPER GROUP LTD,19/11/2013,281.4
Customer & People Services,ICT,CBAL,Supplies & Services,Stationery,PREMIER PAPER GROUP LTD,26/11/2013,586.25
Customer & People Services,ICT,CBAL,Supplies & Services,Stationery,PREMIER PAPER GROUP LTD,27/11/2013,117.25
Customer & People Services,ICT,CBAL,Supplies & Services,Photocopying,XEROX (UK) LTD,05/11/2013,-122.19
Customer & People Services,ICT,CBAL,Supplies & Services,Stationery,PREMIER PAPER GROUP LTD,06/11/2013,281.4
Customer & People Services,ICT,CBAL,Supplies & Services,Stationery,PREMIER PAPER GROUP LTD,06/11/2013,586.25
Customer & People Services,Library Services,LBMA,Supplies & Services,Equipment - Repair,AXIELL LTD,26/11/2013,225
Customer & People Services,Library Services,LBMA,Supplies & Services,Other Services,OPENING THE BOOK LTD,11/11/2013,3955
Customer & People Services,Library Services,LBMA,Supplies & Services,Other Services,OPENING THE BOOK LTD,11/11/2013,3980
Customer & People Services,Library Services,LBMA,Supplies & Services,Other Services,OPENING THE BOOK LTD,11/11/2013,4150
Customer & People Services,Library Services,LBMA,Supplies & Services,Other Services,OPENING THE BOOK LTD,11/11/2013,3881
Customer & People Services,Library Services,LBMA,Supplies & Services,Other Services,OPENING THE BOOK LTD,12/11/2013,4150
Customer & People Services,Library Services,LLAA,Employees,Course Fees,TRINITY COLLEGE LONDON,05/11/2013,115
Customer & People Services,Library Services,LLAA,Employees,Course Fees,AMA,12/11/2013,115
Customer & People Services,Library Services,LLAA,Premises-Related Expenditure,Trade Refuse,CARTWRIGHTS WASTE DISPOSAL SERV LTD,08/11/2013,145
Customer & People Services,Library Services,LLAA,Supplies & Services,Libraries Book Fund,ULVERSCROFT LARGE PRINT BOOKS LIMITED,25/11/2013,235.2
Customer & People Services,Library Services,LLAA,Supplies & Services,Libraries Book Fund,UNIQUE MAGAZINES,25/11/2013,159.6
Customer & People Services,Library Services,LLAA,Supplies & Services,Libraries Book Fund,BERTRAMS LIBRARY SERVICES,20/11/2013,763.16
Customer & People Services,Library Services,LLAA,Supplies & Services,Libraries Book Fund,BERTRAMS LIBRARY SERVICES,20/11/2013,124.48
Customer & People Services,Library Services,LLAA,Supplies & Services,Libraries Book Fund,BERTRAMS LIBRARY SERVICES,20/11/2013,443.21
Customer & People Services,Library Services,LLAA,Supplies & Services,Libraries Book Fund,ULVERSCROFT LARGE PRINT BOOKS LIMITED,25/11/2013,107.04
Customer & People Services,Library Services,LLAA,Supplies & Services,Libraries Book Fund,ULVERSCROFT LARGE PRINT BOOKS LIMITED,25/11/2013,186
Customer & People Services,Library Services,LLAA,Supplies & Services,Libraries Book Fund,ULVERSCROFT LARGE PRINT BOOKS LIMITED,26/11/2013,111.68
Customer & People Services,Library Services,LLAA,Supplies & Services,Libraries Book Fund,ULVERSCROFT LARGE PRINT BOOKS LIMITED,26/11/2013,127.04
Customer & People Services,Library Services,LLAA,Supplies & Services,Libraries Book Fund,LIBRARY MAGNA BOOKS LIMITED,18/11/2013,147.92
Customer & People Services,Library Services,LLAA,Supplies & Services,Libraries Book Fund,OAKHILL PUBLISHING LTD,18/11/2013,375.91
Customer & People Services,Library Services,LLAA,Supplies & Services,Libraries Book Fund,BERTRAMS LIBRARY SERVICES,18/11/2013,106.72
Customer & People Services,Library Services,LLAA,Supplies & Services,Libraries Book Fund,BERTRAMS LIBRARY SERVICES,18/11/2013,187.71
Customer & People Services,Library Services,LLAA,Supplies & Services,Libraries Book Fund,BERTRAMS LIBRARY SERVICES,18/11/2013,131.29
Customer & People Services,Library Services,LLAA,Supplies & Services,Libraries Book Fund,UNIQUE MAGAZINES,25/11/2013,3072.31
Customer & People Services,Library Services,LLAA,Supplies & Services,Libraries Book Fund,W F HOWES LTD,25/11/2013,187.2
Customer & People Services,Library Services,LLAA,Supplies & Services,Libraries Book Fund,UNIQUE MAGAZINES,25/11/2013,445.08
Customer & People Services,Library Services,LLAA,Supplies & Services,Libraries Book Fund,UNIQUE MAGAZINES,25/11/2013,159.6
Customer & People Services,Library Services,LLAA,Supplies & Services,Libraries Book Fund,W F HOWES LTD,25/11/2013,367.2
Customer & People Services,Library Services,LLAA,Supplies & Services,Libraries Book Fund,BERTRAMS LIBRARY SERVICES,25/11/2013,204.88
Customer & People Services,Library Services,LLAA,Supplies & Services,Stationery,SIGNS EXPRESS (TELFORD),25/11/2013,495
Customer & People Services,Library Services,LLAA,Supplies & Services,Libraries Book Fund,OAKHILL PUBLISHING LTD,01/11/2013,346.45
Customer & People Services,Library Services,LLAA,Supplies & Services,Libraries Book Fund,BERTRAMS LIBRARY SERVICES,27/11/2013,392.17
Customer & People Services,Library Services,LLAA,Supplies & Services,Libraries Book Fund,BERTRAMS LIBRARY SERVICES,27/11/2013,108.51
Customer & People Services,Library Services,LLAA,Supplies & Services,Libraries Book Fund,BERTRAMS LIBRARY SERVICES,27/11/2013,751.21
Customer & People Services,Library Services,LLAA,Supplies & Services,Libraries Book Fund,BERTRAMS LIBRARY SERVICES,05/11/2013,122.5
Customer & People Services,Library Services,LLAA,Supplies & Services,Libraries Book Fund,BERTRAMS LIBRARY SERVICES,05/11/2013,146.72
Customer & People Services,Library Services,LLAA,Supplies & Services,Libraries Book Fund,BERTRAMS LIBRARY SERVICES,05/11/2013,225.01
Customer & People Services,Library Services,LLAA,Supplies & Services,Libraries Book Fund,LIBRARY MAGNA BOOKS LIMITED,05/11/2013,279.28
Customer & People Services,Library Services,LLAA,Supplies & Services,Libraries Book Fund,BERTRAMS LIBRARY SERVICES,05/11/2013,485.8
Customer & People Services,Library Services,LLAA,Supplies & Services,Libraries Book Fund,BERTRAMS LIBRARY SERVICES,05/11/2013,137.08
Customer & People Services,Library Services,LLAA,Supplies & Services,Libraries Book Fund,LIBRARY MAGNA BOOKS LIMITED,05/11/2013,249.76
Customer & People Services,Library Services,LLAA,Supplies & Services,Libraries Book Fund,BERTRAMS LIBRARY SERVICES,05/11/2013,120.36
Customer & People Services,Library Services,LLAA,Supplies & Services,Libraries Book Fund,BERTRAMS LIBRARY SERVICES,06/11/2013,149.04
Customer & People Services,Library Services,LLAA,Supplies & Services,Libraries Book Fund,BERTRAMS LIBRARY SERVICES,06/11/2013,387.51
Customer & People Services,Library Services,LLAA,Supplies & Services,Libraries Book Fund,BERTRAMS LIBRARY SERVICES,06/11/2013,105.29
Customer & People Services,Library Services,LLAA,Supplies & Services,Libraries Book Fund,BERTRAMS LIBRARY SERVICES,08/11/2013,260.35
Customer & People Services,Library Services,LLAA,Supplies & Services,Libraries Book Fund,BERTRAMS LIBRARY SERVICES,08/11/2013,236.28
Customer & People Services,Library Services,LLAA,Supplies & Services,Libraries Book Fund,BERTRAMS LIBRARY SERVICES,08/11/2013,191.4
Customer & People Services,People Services,NHAC,Supplies & Services,Equipment - Purchase,SPECIALIST COMPUTERS CENTRES PLC,12/11/2013,137.37
Customer & People Services,People Services,NHAG,Employees,Training Expenses,SHROPSHIRE CHAMBER OF COMMERCE & ENTERPR,18/11/2013,1396
Customer & People Services,People Services,NOAH,Supplies & Services,Computer Software (Maint),NORTHGATEARINSO UK LTD,19/11/2013,4600
Customer & People Services,People Services,NOAT,Employees,Training Exp's (Facilitators),FIRE MARQUE,20/11/2013,250
Customer & People Services,People Services,NOAT,Employees,Training Exp's (Facilitators),Edge Service,26/11/2013,1650
Customer & People Services,People Services,NOAT,Employees,Other Training,NORTH STAFFS COMBINED HEALTHCARE,01/11/2013,-530
Customer & People Services,People Services,NOAT,Employees,Course Fees,ILX Group Plc,28/11/2013,450
Customer & People Services,People Services,NOAT,Employees,Training Exp's (Facilitators),BLITHFIELD SAFETY TRAINING,08/11/2013,408
Customer & People Services,People Services,NOAT,Employees,Other Training,BASPCAN,08/11/2013,180
Customer & People Services,People Services,NOAT,Employees,Course Fees,HADLEY PARK TRAINING,08/11/2013,425
Customer & People Services,People Services,NOAT,Employees,Course Fees,LEARNING POOL LTD,12/11/2013,28000
Customer & People Services,People Services,NOAT,Employees,Training Exp's (Facilitators),VIGOUR CLIENT SERVICES LTD,12/11/2013,375
Customer & People Services,People Services,NOAT,Employees,Training Exp's (Facilitators),VIGOUR CLIENT SERVICES LTD,12/11/2013,375
Customer & People Services,People Services,NOAT,Employees,Training Exp's (Facilitators),VIGOUR CLIENT SERVICES LTD,12/11/2013,750
Customer & People Services,People Services,NOAT,Employees,Training Exp's (Facilitators),VIGOUR CLIENT SERVICES LTD,13/11/2013,750
Customer & People Services,Revenues,CBAK,Supplies & Services,Stationery,PREMIER PAPER GROUP LTD,19/11/2013,234.5
Customer & People Services,Revenues,CBAK,Supplies & Services,Printing - Other,Graphics and Print (Telford) Ltd,26/11/2013,157.9
Customer & People Services,Revenues,CBAK,Supplies & Services,Stationery,PREMIER PAPER GROUP LTD,28/11/2013,101.22
Customer & People Services,Revenues,CBAK,Supplies & Services,Stationery,PREMIER PAPER GROUP LTD,06/11/2013,117.25
Customer & People Services,Revenues,CBAK,Supplies & Services,Stationery,PREMIER PAPER GROUP LTD,08/11/2013,127.44
Customer & People Services,Revenues,CBAK,Supplies & Services,Printing - Print Room,XEROX (UK) LTD,04/11/2013,730.62
Customer & People Services,Revenues,COAC,Supplies & Services,Postages,FP EXECUTIVE AGENCY LTD,18/11/2013,328
Customer & People Services,Revenues,COAC,Supplies & Services,Postages,FRANCOTYP-POSTALIA LIMITED,06/11/2013,8115.4
Customer & People Services,Revenues,COAC,Supplies & Services,Postages,FRANCOTYP-POSTALIA LIMITED,04/11/2013,3101
Customer & People Services,Revenues,COAD,Supplies & Services,Printing - Other,MARKETING AT THE MILL,11/11/2013,205
Customer & People Services,Revenues,LRTA,Supplies & Services,Postages,G FORCE EXPRESS PARCELS LTD,18/11/2013,489.5
Customer & People Services,Revenues,LRTA,Supplies & Services,Postages,ROYAL MAIL GROUP LTD,18/11/2013,2526.4
Customer & People Services,Revenues,LRTA,Supplies & Services,Printing - Print Room,Graphics and Print (Telford) Ltd,22/11/2013,180
Customer & People Services,Revenues,LRTA,Supplies & Services,Postages,ROYAL MAIL GROUP LTD,25/11/2013,2217.02
Customer & People Services,Revenues,LRTA,Supplies & Services,Printing - Print Room,Graphics and Print (Telford) Ltd,04/11/2013,180
Customer & People Services,Revenues,LRTA,Supplies & Services,Postages,ROYAL MAIL GROUP LTD,29/11/2013,2741.78
Customer & People Services,Revenues,LRTA,Supplies & Services,Postages,ROYAL MAIL GROUP LTD,06/11/2013,2364.38
Customer & People Services,Revenues,LRTA,Supplies & Services,Postages,ROYAL MAIL GROUP LTD,07/11/2013,2599.73
Customer & People Services,Revenues,LRTA,Supplies & Services,Printing - Print Room,TAWS PRINTERS,08/11/2013,180
Customer & People Services,Revenues,LRTB,Supplies & Services,Legal Expenses,TELFORD COUNTY COURT ONLY,14/11/2013,1440
Customer & People Services,,WCAG,Capital Expenditure,Payments to Contractor,SPECIALIST COMPUTERS CENTRES PLC,26/11/2013,13650
Customer & People Services,,WCAG,Capital Expenditure,Computer Hardware,Bronze Software Labs Ltd,11/11/2013,4200
Customer & People Services,,WCAG,Capital Expenditure,Other Capital Expenditure,Oaresome LTD,01/11/2013,7130
Customer & People Services,,WCAG,Capital Expenditure,Payments to Contractor,CIVICA UK LIMITED,28/11/2013,11656
Customer & People Services,,WCAG,Capital Expenditure,Payments to Contractor,CIVICA UK LIMITED,29/11/2013,42456
Customer & People Services,,WCAG,Capital Expenditure,Payments to Contractor,SPECIALIST COMPUTERS CENTRES PLC,06/11/2013,13650
Customer & People Services,,WCAG,Capital Expenditure,Computer Hardware,Bronze Software Labs Ltd,08/11/2013,3850
Customer & People Services,,WCAG,Capital Expenditure,Payments to Contractor,SPECIALIST COMPUTERS CENTRES PLC,08/11/2013,420
Customer & People Services,,WCAG,Capital Expenditure,Payments to Contractor,SPECIALIST COMPUTERS CENTRES PLC,08/11/2013,700
Customer & People Services,,WCAG,Capital Expenditure,Payments to Contractor,OPTEVIA,12/11/2013,1180
"Development, Business & Housing","AD - Development, Business & Housing",CBAN,Supplies & Services,Equipment - Purchase,EUROPEAN ELECTRONIQUE LTD,26/11/2013,106
"Development, Business & Housing","AD - Development, Business & Housing",CBAN,Supplies & Services,Equipment - Purchase,EUROPEAN ELECTRONIQUE LTD,11/11/2013,1107
"Development, Business & Housing",Business & Development Planning,AEAB,Supplies & Services,Marketing & Publicity,Europa International,19/11/2013,1529.6
"Development, Business & Housing",Business & Development Planning,AEAB,Supplies & Services,Marketing & Publicity,Beaming Success Ltd,19/11/2013,1135
"Development, Business & Housing",Business & Development Planning,AEAB,Supplies & Services,Marketing & Publicity,GES Ltd,25/11/2013,200.76
"Development, Business & Housing",Business & Development Planning,AEAB,Supplies & Services,Marketing & Publicity,THE OLD ORLETON,01/11/2013,366.67
"Development, Business & Housing",Business & Development Planning,AEAB,Supplies & Services,Marketing & Publicity,M & B MINIBUSES LTD,01/11/2013,370
"Development, Business & Housing",Business & Development Planning,AEAB,Supplies & Services,Conference Expenses,Mosaic Events Ltd,29/11/2013,200
"Development, Business & Housing",Business & Development Planning,AEAB,Supplies & Services,Marketing & Publicity,Julie Grady Media Ltd,29/11/2013,500
"Development, Business & Housing",Business & Development Planning,AEAB,Supplies & Services,Marketing & Publicity,Europa International,07/11/2013,-1423.2
"Development, Business & Housing",Business & Development Planning,AEAC,Supplies & Services,Subscriptions,ACTION FOR MARKET TOWNS,26/11/2013,186
"Development, Business & Housing",Business & Development Planning,AEAD,Supplies & Services,Marketing & Publicity,Church Farm Guest House,06/11/2013,180
"Development, Business & Housing",Business & Development Planning,AEAG,Supplies & Services,Marketing & Publicity,LS Technologies Ltd,01/11/2013,425
"Development, Business & Housing",Business & Development Planning,AEAG,Supplies & Services,Marketing & Publicity,Zen Communications (UK) Ltd,01/11/2013,2400
"Development, Business & Housing",Business & Development Planning,AEAJ,Supplies & Services,Business Sector Development,Sustainability West Midlands,06/11/2013,750
"Development, Business & Housing",Business & Development Planning,AEAX,Supplies & Services,Consultancy,Good2Great Ltd,13/11/2013,8400
"Development, Business & Housing",Business & Development Planning,DDAK,Supplies & Services,Consultants Fees,IRONBRIDGE GORGE MUSEUM TRUST LTD,05/11/2013,9326.03
"Development, Business & Housing",Business & Development Planning,DDAK,Supplies & Services,Consultants Fees,IRONBRIDGE GORGE MUSEUM TRUST LTD,05/11/2013,10000
"Development, Business & Housing",Business & Development Planning,DHAX,Supplies & Services,Consultants Fees,Breeze Strategy,13/11/2013,8250
"Development, Business & Housing",Business & Development Planning,DHBB,Premises-Related Expenditure,Specific Works,Pass,08/11/2013,5023
"Development, Business & Housing",Business & Development Planning,DHBB,Premises-Related Expenditure,Specific Works,Elcomponent,08/11/2013,1005
"Development, Business & Housing",Business & Development Planning,DSAB,Employees,Staff Training,M H ELCOCK & SON LTD T/A ELCOCK REISEN,15/11/2013,230
"Development, Business & Housing",Business & Development Planning,DSAB,Supplies & Services,Subscriptions,HQN LTD,04/11/2013,820
"Development, Business & Housing",Development Management,DDAA,Supplies & Services,Subscriptions,LABC,06/11/2013,2170.69
"Development, Business & Housing",Development Management,DDAA,Supplies & Services,Subscriptions,BSI,04/11/2013,1246
"Development, Business & Housing",Development Management,DDAC,Supplies & Services,Legal Expenses,WRAGGE & CO,21/11/2013,2403.45
"Development, Business & Housing",Development Management,DDAC,Supplies & Services,Legal Expenses,REDACTED PERSONAL INFORMATION,27/11/2013,750
"Development, Business & Housing",Development Management,DDAC,Supplies & Services,Legal Expenses,WRAGGE & CO,13/11/2013,2750
"Development, Business & Housing",Development Management,DDAC,Supplies & Services,Legal Expenses,WRAGGE & CO,13/11/2013,232.5
"Development, Business & Housing",Development Management,DDAG,Employees,Professional Subs,R T P I,26/11/2013,275
"Development, Business & Housing",Development Management,DDAG,Employees,Professional Subs,R T P I,26/11/2013,275
"Development, Business & Housing",Development Management,DDAG,Employees,Professional Subs,R T P I,26/11/2013,275
"Development, Business & Housing",Development Management,DDAG,Employees,Professional Subs,R T P I,26/11/2013,275
"Development, Business & Housing",Development Management,DDAG,Employees,Professional Subs,R T P I,26/11/2013,275
"Development, Business & Housing",Development Management,DDAG,Employees,Professional Subs,R T P I,26/11/2013,300
"Development, Business & Housing",Development Management,DDAG,Employees,Professional Subs,R T P I,26/11/2013,170
"Development, Business & Housing",Development Management,DDAG,Supplies & Services,Print & Data Services (Print Room) - Charges,RESOLUTION DATA MANAGEMENT LTD,18/11/2013,141.93
"Development, Business & Housing",Development Management,DDAG,Supplies & Services,Mobile Phones,ORANGE PCS LTD,21/11/2013,119
"Development, Business & Housing",Property & Design,CAAG,Employees,Professional Subs,CONCERTO SUPPORT SERVICES LTD,15/11/2013,2000
"Development, Business & Housing",Property & Design,CAAG,Employees,Staff Training,CIPFA BUSINESS LTD,08/11/2013,1395
"Development, Business & Housing",Property & Design,CAAG,Supplies & Services,Equipment - Hire,STANFORD MARSH FINANCE LTD,01/11/2013,1325
"Development, Business & Housing",Property & Design,CAAG,Supplies & Services,Consultants Fees,OLIVEJOYCE LTD,18/11/2013,1464.3
"Development, Business & Housing",Property & Design,CAAG,Supplies & Services,Consultants Fees,EMECH Consultants Ltd,26/11/2013,3949.4
"Development, Business & Housing",Property & Design,CAAG,Supplies & Services,Comp Software (Purch / Hire),IHS (GLOBAL) LTD,26/11/2013,14600
"Development, Business & Housing",Property & Design,CAAG,Supplies & Services,Telephones,ORANGE PCS LTD,26/11/2013,119
"Development, Business & Housing",Property & Design,CAAG,Supplies & Services,Consultants Fees,EMECH Consultants Ltd,14/11/2013,12733.2
"Development, Business & Housing",Property & Design,CAAG,Supplies & Services,Consultants Fees,OAKENGATES CARPET CO,14/11/2013,567
"Development, Business & Housing",Property & Design,CAAG,Supplies & Services,Comp Software (Purch / Hire),BCIS LTD,04/11/2013,1490
"Development, Business & Housing",Property & Design,CAAG,Supplies & Services,Other Services,SHROPSHIRE HEATING SERVICES LTD,05/11/2013,1247.24
"Development, Business & Housing",Property & Design,CAAG,Supplies & Services,Consultants Fees,OLIVEJOYCE LTD,06/11/2013,2048.35
"Development, Business & Housing",Property & Design,CAAG,Supplies & Services,Consultants Fees,OLIVEJOYCE LTD,06/11/2013,644
"Development, Business & Housing",Property & Design,CAAG,Supplies & Services,Telephones,ORANGE PCS LTD,08/11/2013,119
"Development, Business & Housing",Property & Design,CAAG,Supplies & Services,Consultants Fees,OLIVEJOYCE LTD,20/11/2013,1183.35
"Development, Business & Housing",Property & Design,CAAG,Supplies & Services,Consultants Fees,EMECH Consultants Ltd,13/11/2013,6370
"Development, Business & Housing",Property & Design,CAAH,Premises-Related Expenditure,R&M -Buildings DLO Charge,GRA-BERN,18/11/2013,275.9
"Development, Business & Housing",Property & Design,CAAH,Premises-Related Expenditure,R&M -Buildings DLO Charge,GRA-BERN,18/11/2013,413.92
"Development, Business & Housing",Property & Design,CAAH,Premises-Related Expenditure,R&M -Buildings DLO Charge,PP ELECTRICAL SERVICES (Shropshire) Ltd,18/11/2013,195.64
"Development, Business & Housing",Property & Design,CAAH,Premises-Related Expenditure,R&M -Buildings DLO Charge,PP ELECTRICAL SERVICES (Shropshire) Ltd,18/11/2013,102.56
"Development, Business & Housing",Property & Design,CAAH,Premises-Related Expenditure,R&M -Buildings DLO Charge,PP ELECTRICAL SERVICES (Shropshire) Ltd,26/11/2013,154.24
"Development, Business & Housing",Property & Design,CAAH,Premises-Related Expenditure,R&M -Buildings DLO Charge,PP ELECTRICAL SERVICES (Shropshire) Ltd,26/11/2013,169.4
"Development, Business & Housing",Property & Design,CAAH,Premises-Related Expenditure,R&M -Buildings DLO Charge,PP ELECTRICAL SERVICES (Shropshire) Ltd,26/11/2013,334.76
"Development, Business & Housing",Property & Design,CAAH,Premises-Related Expenditure,R&M -Buildings DLO Charge,SHROPSHIRE HEATING SERVICES LTD,26/11/2013,133.82
"Development, Business & Housing",Property & Design,CAAH,Premises-Related Expenditure,R&M -Buildings DLO Charge,TAYLORS MECHANICAL H & P SERVICES LTD,14/11/2013,580
"Development, Business & Housing",Property & Design,CAAH,Premises-Related Expenditure,R&M -Buildings DLO Charge,TAYLORS MECHANICAL H & P SERVICES LTD,14/11/2013,870
"Development, Business & Housing",Property & Design,CAAH,Premises-Related Expenditure,R&M -Buildings DLO Charge,PP ELECTRICAL SERVICES (Shropshire) Ltd,25/11/2013,196.6
"Development, Business & Housing",Property & Design,CAAH,Premises-Related Expenditure,R&M -Buildings DLO Charge,WREKIN DRAIN SERVICES LTD,25/11/2013,3822.26
"Development, Business & Housing",Property & Design,CAAH,Premises-Related Expenditure,R&M -Buildings DLO Charge,JONES & HAMPTON LTD,25/11/2013,135.83
"Development, Business & Housing",Property & Design,CAAH,Premises-Related Expenditure,R&M -Buildings DLO Charge,NYKE ENERGY SERVICES LIMITED,25/11/2013,270
"Development, Business & Housing",Property & Design,CAAH,Premises-Related Expenditure,R&M -Buildings DLO Charge,PP ELECTRICAL SERVICES (Shropshire) Ltd,25/11/2013,434.98
"Development, Business & Housing",Property & Design,CAAH,Premises-Related Expenditure,R&M -Buildings DLO Charge,PP ELECTRICAL SERVICES (Shropshire) Ltd,25/11/2013,122
"Development, Business & Housing",Property & Design,CAAH,Premises-Related Expenditure,R&M -Buildings DLO Charge,D P WILCOX & SON,25/11/2013,110
"Development, Business & Housing",Property & Design,CAAH,Premises-Related Expenditure,R&M -Buildings DLO Charge,D P WILCOX & SON,25/11/2013,125
"Development, Business & Housing",Property & Design,CAAH,Premises-Related Expenditure,R&M -Buildings DLO Charge,D P WILCOX & SON,25/11/2013,135
"Development, Business & Housing",Property & Design,CAAH,Premises-Related Expenditure,R&M -Buildings DLO Charge,D P WILCOX & SON,25/11/2013,125.5
"Development, Business & Housing",Property & Design,CAAH,Premises-Related Expenditure,R&M -Buildings DLO Charge,SECURITY WISE LTD,14/11/2013,200
"Development, Business & Housing",Property & Design,CAAH,Premises-Related Expenditure,Gas,West Mercia Energy (WME),14/11/2013,1054.63
"Development, Business & Housing",Property & Design,CAAH,Premises-Related Expenditure,Gas,West Mercia Energy (WME),14/11/2013,712.3
"Development, Business & Housing",Property & Design,CAAH,Premises-Related Expenditure,Electricity,West Mercia Energy (WME),14/11/2013,1162.69
"Development, Business & Housing",Property & Design,CAAH,Premises-Related Expenditure,Electricity,West Mercia Energy (WME),14/11/2013,405.51
"Development, Business & Housing",Property & Design,CAAH,Premises-Related Expenditure,Electricity,West Mercia Energy (WME),14/11/2013,595.44
"Development, Business & Housing",Property & Design,CAAH,Premises-Related Expenditure,R&M -Buildings DLO Charge,HORTON AUTOMATICS LTD,11/11/2013,350
"Development, Business & Housing",Property & Design,CAAH,Premises-Related Expenditure,R&M -Buildings DLO Charge,TOTAL HYGIENE LIMITED,18/11/2013,140
"Development, Business & Housing",Property & Design,CAAH,Premises-Related Expenditure,R&M -Buildings DLO Charge,WINDOW & DOOR CONTRACT SERVICES,04/11/2013,239.9
"Development, Business & Housing",Property & Design,CAAH,Premises-Related Expenditure,R&M -Buildings DLO Charge,D P WILCOX & SON,04/11/2013,396.5
"Development, Business & Housing",Property & Design,CAAH,Premises-Related Expenditure,Gas,West Mercia Energy (WME),04/11/2013,1046.74
"Development, Business & Housing",Property & Design,CAAH,Premises-Related Expenditure,R&M -Buildings DLO Charge,RCS ROOFING CONSTRUCTION SERVICES LTD,04/11/2013,266.13
"Development, Business & Housing",Property & Design,CAAH,Premises-Related Expenditure,R&M -Buildings DLO Charge,D P WILCOX & SON,04/11/2013,127.5
"Development, Business & Housing",Property & Design,CAAH,Premises-Related Expenditure,R&M -Buildings DLO Charge,D P WILCOX & SON,04/11/2013,130
"Development, Business & Housing",Property & Design,CAAH,Premises-Related Expenditure,R&M -Buildings DLO Charge,PP ELECTRICAL SERVICES (Shropshire) Ltd,04/11/2013,302.15
"Development, Business & Housing",Property & Design,CAAH,Premises-Related Expenditure,R&M -Buildings DLO Charge,RCS ROOFING CONSTRUCTION SERVICES LTD,05/11/2013,156.05
"Development, Business & Housing",Property & Design,CAAH,Premises-Related Expenditure,R&M -Buildings DLO Charge,RCS ROOFING CONSTRUCTION SERVICES LTD,05/11/2013,177.9
"Development, Business & Housing",Property & Design,CAAH,Premises-Related Expenditure,R&M -Buildings DLO Charge,D P WILCOX & SON,01/11/2013,215
"Development, Business & Housing",Property & Design,CAAH,Premises-Related Expenditure,R&M -Buildings DLO Charge,ADT FIRE & SECURITY PLC,01/11/2013,154.15
"Development, Business & Housing",Property & Design,CAAH,Premises-Related Expenditure,R&M -Buildings DLO Charge,D P WILCOX & SON,01/11/2013,187.5
"Development, Business & Housing",Property & Design,CAAH,Premises-Related Expenditure,R&M -Buildings DLO Charge,GRANVILLE CONSTRUCTION & MAINTENANCE LTD,01/11/2013,1470.46
"Development, Business & Housing",Property & Design,CAAH,Premises-Related Expenditure,R&M -Buildings DLO Charge,GRANVILLE CONSTRUCTION & MAINTENANCE LTD,01/11/2013,3431.07
"Development, Business & Housing",Property & Design,CAAH,Premises-Related Expenditure,R&M -Buildings DLO Charge,GRANVILLE CONSTRUCTION & MAINTENANCE LTD,01/11/2013,208.91
"Development, Business & Housing",Property & Design,CAAH,Premises-Related Expenditure,R&M -Buildings DLO Charge,WINDOW & DOOR CONTRACT SERVICES,01/11/2013,178.24
"Development, Business & Housing",Property & Design,CAAH,Premises-Related Expenditure,R&M -Buildings DLO Charge,PP ELECTRICAL SERVICES (Shropshire) Ltd,01/11/2013,148.32
"Development, Business & Housing",Property & Design,CAAH,Premises-Related Expenditure,R&M -Buildings DLO Charge,D P WILCOX & SON,01/11/2013,310
"Development, Business & Housing",Property & Design,CAAH,Premises-Related Expenditure,R&M -Buildings DLO Charge,SHROPSHIRE HEATING SERVICES LTD,11/11/2013,203.36
"Development, Business & Housing",Property & Design,CAAH,Premises-Related Expenditure,R&M -Buildings DLO Charge,GRANVILLE CONSTRUCTION & MAINTENANCE LTD,11/11/2013,454.42
"Development, Business & Housing",Property & Design,CAAH,Premises-Related Expenditure,R&M -Buildings DLO Charge,A & P PLANT HIRE,11/11/2013,150
"Development, Business & Housing",Property & Design,CAAH,Premises-Related Expenditure,Vandal Damage,Unique Envelope Facade Solutions Ltd,11/11/2013,2041
"Development, Business & Housing",Property & Design,CAAH,Premises-Related Expenditure,R&M -Buildings DLO Charge,Shropshire Fire Risk Management Services,11/11/2013,275
"Development, Business & Housing",Property & Design,CAAH,Premises-Related Expenditure,R&M -Buildings DLO Charge,D P WILCOX & SON,11/11/2013,153.25
"Development, Business & Housing",Property & Design,CAAH,Premises-Related Expenditure,R&M -Buildings DLO Charge,SHROPSHIRE HEATING SERVICES LTD,11/11/2013,549.37
"Development, Business & Housing",Property & Design,CAAH,Premises-Related Expenditure,R&M -Buildings DLO Charge,SHROPSHIRE HEATING SERVICES LTD,11/11/2013,429.01
"Development, Business & Housing",Property & Design,CAAH,Premises-Related Expenditure,R&M -Buildings DLO Charge,WREKIN DRAIN SERVICES LTD,11/11/2013,170
"Development, Business & Housing",Property & Design,CAAH,Premises-Related Expenditure,R&M -Buildings DLO Charge,GRA-BERN,11/11/2013,137.31
"Development, Business & Housing",Property & Design,CAAH,Premises-Related Expenditure,R&M -Buildings DLO Charge,GRA-BERN,11/11/2013,163.67
"Development, Business & Housing",Property & Design,CAAH,Premises-Related Expenditure,R&M -Buildings DLO Charge,TAYLORS MECHANICAL H & P SERVICES LTD,11/11/2013,189.75
"Development, Business & Housing",Property & Design,CAAH,Premises-Related Expenditure,R&M -Buildings DLO Charge,D P WILCOX & SON,11/11/2013,297.5
"Development, Business & Housing",Property & Design,CAAH,Premises-Related Expenditure,R&M -Buildings DLO Charge,GRA-BERN,11/11/2013,264.66
"Development, Business & Housing",Property & Design,CAAH,Premises-Related Expenditure,R&M -Buildings DLO Charge,GRA-BERN,11/11/2013,251
"Development, Business & Housing",Property & Design,CAAH,Premises-Related Expenditure,R&M -Buildings DLO Charge,ABC FIRE & SECURITY LTD,11/11/2013,253
"Development, Business & Housing",Property & Design,CAAH,Premises-Related Expenditure,R&M -Buildings DLO Charge,CHUBB FIRE & SECURITY LTD,20/11/2013,451.78
"Development, Business & Housing",Property & Design,CAAH,Premises-Related Expenditure,R&M -Buildings DLO Charge,SHROPSHIRE HEATING SERVICES LTD,18/11/2013,403.5
"Development, Business & Housing",Property & Design,CAAH,Premises-Related Expenditure,R&M -Buildings DLO Charge,PP ELECTRICAL SERVICES (Shropshire) Ltd,18/11/2013,231.66
"Development, Business & Housing",Property & Design,CAAH,Premises-Related Expenditure,R&M -Buildings DLO Charge,PP ELECTRICAL SERVICES (Shropshire) Ltd,18/11/2013,200.62
"Development, Business & Housing",Property & Design,CAAH,Premises-Related Expenditure,R&M -Buildings DLO Charge,PP ELECTRICAL SERVICES (Shropshire) Ltd,04/11/2013,-1871.52
"Development, Business & Housing",Property & Design,COAE,Premises-Related Expenditure,Trade Refuse,FCC RECYCLING (UK) LIMITED,19/11/2013,499.51
"Development, Business & Housing",Property & Design,COAE,Premises-Related Expenditure,Water Rates,SEVERN TRENT WATER LTD,20/11/2013,135.51
"Development, Business & Housing",Property & Design,COAE,Premises-Related Expenditure,R&M -Buildings DLO Charge,PHS GROUP LTD,11/11/2013,369.83
"Development, Business & Housing",Property & Design,COAE,Premises-Related Expenditure,Service Contracts,SHROPSHIRE HEATING SERVICES LTD,06/11/2013,157.5
"Development, Business & Housing",Property & Design,COAE,Premises-Related Expenditure,Electricity,West Mercia Energy (WME),04/11/2013,1154.77
"Development, Business & Housing",Property & Design,COAE,Premises-Related Expenditure,Electricity,West Mercia Energy (WME),04/11/2013,985.7
"Development, Business & Housing",Property & Design,COAE,Premises-Related Expenditure,Gas,West Mercia Energy (WME),04/11/2013,1043.73
"Development, Business & Housing",Property & Design,COAE,Premises-Related Expenditure,Electricity,West Mercia Energy (WME),04/11/2013,175.54
"Development, Business & Housing",Property & Design,COAE,Premises-Related Expenditure,Electricity,West Mercia Energy (WME),04/11/2013,342.83
"Development, Business & Housing",Property & Design,COAE,Premises-Related Expenditure,Electricity,West Mercia Energy (WME),04/11/2013,117.78
"Development, Business & Housing",Property & Design,COAE,Premises-Related Expenditure,Water Rates,SEVERN TRENT WATER LTD,05/11/2013,215.03
"Development, Business & Housing",Property & Design,COAE,Premises-Related Expenditure,Gas,West Mercia Energy (WME),27/11/2013,777.01
"Development, Business & Housing",Property & Design,COAE,Premises-Related Expenditure,Electricity,West Mercia Energy (WME),27/11/2013,418.44
"Development, Business & Housing",Property & Design,COAE,Premises-Related Expenditure,Electricity,West Mercia Energy (WME),27/11/2013,405.13
"Development, Business & Housing",Property & Design,COAE,Premises-Related Expenditure,Electricity,West Mercia Energy (WME),27/11/2013,334.78
"Development, Business & Housing",Property & Design,COAE,Premises-Related Expenditure,Electricity,West Mercia Energy (WME),27/11/2013,1065.99
"Development, Business & Housing",Property & Design,COAE,Premises-Related Expenditure,Electricity,West Mercia Energy (WME),27/11/2013,122.67
"Development, Business & Housing",Property & Design,COAE,Premises-Related Expenditure,Electricity,West Mercia Energy (WME),27/11/2013,282.78
"Development, Business & Housing",Property & Design,COAE,Premises-Related Expenditure,Electricity,West Mercia Energy (WME),27/11/2013,187.33
"Development, Business & Housing",Property & Design,COAE,Premises-Related Expenditure,Electricity,West Mercia Energy (WME),27/11/2013,374.07
"Development, Business & Housing",Property & Design,COAE,Premises-Related Expenditure,Electricity,West Mercia Energy (WME),27/11/2013,308.17
"Development, Business & Housing",Property & Design,COAE,Premises-Related Expenditure,Electricity,West Mercia Energy (WME),27/11/2013,2839.35
"Development, Business & Housing",Property & Design,COAE,Premises-Related Expenditure,Gas,West Mercia Energy (WME),27/11/2013,1875.9
"Development, Business & Housing",Property & Design,COAE,Premises-Related Expenditure,Electricity,West Mercia Energy (WME),27/11/2013,862.12
"Development, Business & Housing",Property & Design,COAE,Premises-Related Expenditure,Electricity,West Mercia Energy (WME),27/11/2013,701.03
"Development, Business & Housing",Property & Design,COAE,Premises-Related Expenditure,Electricity,West Mercia Energy (WME),27/11/2013,264.91
"Development, Business & Housing",Property & Design,COAE,Premises-Related Expenditure,Electricity,West Mercia Energy (WME),27/11/2013,1294.95
"Development, Business & Housing",Property & Design,COAE,Premises-Related Expenditure,R&M -Buildings DLO Charge,GRA-BERN,28/11/2013,409.83
"Development, Business & Housing",Property & Design,COAE,Premises-Related Expenditure,Service Contracts,WATERCLEAN SERVICES LTD,29/11/2013,480
"Development, Business & Housing",Property & Design,COAE,Premises-Related Expenditure,R&M -Buildings DLO Charge,Classic Acoustics Ltd,07/11/2013,837
"Development, Business & Housing",Property & Design,COAE,Premises-Related Expenditure,Gas,West Mercia Energy (WME),07/11/2013,452.87
"Development, Business & Housing",Property & Design,COAE,Premises-Related Expenditure,R&M -Buildings DLO Charge,ADT FIRE & SECURITY PLC,12/11/2013,927
"Development, Business & Housing",Property & Design,COAE,Premises-Related Expenditure,R&M -Buildings DLO Charge,THYSSENKRUPP ELEVATOR (UK) LIMITED,12/11/2013,200.3
"Development, Business & Housing",Property & Design,COAE,Premises-Related Expenditure,R&M -Buildings DLO Charge,THYSSENKRUPP ELEVATOR (UK) LIMITED,12/11/2013,191.95
"Development, Business & Housing",Property & Design,COAE,Premises-Related Expenditure,R&M -Buildings DLO Charge,SCS Aftercare,13/11/2013,975.5
"Development, Business & Housing",Property & Design,COAE,Premises-Related Expenditure,Gas,West Mercia Energy (WME),04/11/2013,381.13
"Development, Business & Housing",Property & Design,COAE,Premises-Related Expenditure,Water Rates,SEVERN TRENT WATER LTD,04/11/2013,213.86
"Development, Business & Housing",Property & Design,COAE,Premises-Related Expenditure,Electricity,West Mercia Energy (WME),04/11/2013,626.71
"Development, Business & Housing",Property & Design,COAG,Premises-Related Expenditure,R&M -Buildings DLO Charge,EDRYD JENKINS (ELECTRICAL) LTD,18/11/2013,143.68
"Development, Business & Housing",Property & Design,COAG,Premises-Related Expenditure,R&M -Buildings DLO Charge,D P WILCOX & SON,26/11/2013,210
"Development, Business & Housing",Property & Design,COAG,Premises-Related Expenditure,R&M -Buildings DLO Charge,D P WILCOX & SON,26/11/2013,150
"Development, Business & Housing",Property & Design,COAG,Premises-Related Expenditure,R&M -Buildings DLO Charge,EDRYD JENKINS (ELECTRICAL) LTD,26/11/2013,551.54
"Development, Business & Housing",Property & Design,COAG,Premises-Related Expenditure,R&M -Buildings DLO Charge,GRA-BERN,26/11/2013,198.76
"Development, Business & Housing",Property & Design,COAG,Premises-Related Expenditure,R&M -Buildings DLO Charge,GRA-BERN,15/11/2013,211.51
"Development, Business & Housing",Property & Design,COAG,Premises-Related Expenditure,R&M -Buildings DLO Charge,D P WILCOX & SON,04/11/2013,177.5
"Development, Business & Housing",Property & Design,COAG,Premises-Related Expenditure,R&M -Buildings DLO Charge,G LEDDINGTON (ELECTRICAL) LTD,04/11/2013,849.25
"Development, Business & Housing",Property & Design,COAG,Premises-Related Expenditure,R&M -Buildings DLO Charge,ERIC NEVILLE CATERING SUPPLIES LTD,28/11/2013,155.7
"Development, Business & Housing",Property & Design,COAG,Premises-Related Expenditure,R&M -Buildings DLO Charge,ERIC NEVILLE CATERING SUPPLIES LTD,28/11/2013,110
"Development, Business & Housing",Property & Design,COAG,Premises-Related Expenditure,Service Contracts,CHUBB FIRE & SECURITY LTD,28/11/2013,124.83
"Development, Business & Housing",Property & Design,COAG,Premises-Related Expenditure,Service Contracts,HERRON CLEANING SERVICES,28/11/2013,193.44
"Development, Business & Housing",Property & Design,COAG,Premises-Related Expenditure,R&M -Buildings DLO Charge,PP ELECTRICAL SERVICES (Shropshire) Ltd,06/11/2013,516
"Development, Business & Housing",Property & Design,COAG,Premises-Related Expenditure,R&M -Buildings DLO Charge,EDRYD JENKINS (ELECTRICAL) LTD,06/11/2013,131.36
"Development, Business & Housing",Property & Design,COAG,Premises-Related Expenditure,R&M -Buildings DLO Charge,EDRYD JENKINS (ELECTRICAL) LTD,06/11/2013,100.29
"Development, Business & Housing",Property & Design,COAG,Premises-Related Expenditure,R&M -Buildings DLO Charge,SHROPSHIRE HEATING SERVICES LTD,06/11/2013,223.72
"Development, Business & Housing",Property & Design,COAG,Premises-Related Expenditure,R&M -Buildings DLO Charge,SHROPSHIRE HEATING SERVICES LTD,06/11/2013,118.75
"Development, Business & Housing",Property & Design,COAG,Premises-Related Expenditure,R&M -Buildings DLO Charge,SDT ELECTRICAL LTD,08/11/2013,114
"Development, Business & Housing",Property & Design,COAG,Premises-Related Expenditure,R&M -Buildings DLO Charge,ADT FIRE & SECURITY PLC,11/11/2013,192.46
"Development, Business & Housing",Property & Design,COAG,Premises-Related Expenditure,R&M -Buildings DLO Charge,ADT FIRE & SECURITY PLC,11/11/2013,411
"Development, Business & Housing",Property & Design,COAH,Premises-Related Expenditure,Water Rates,SEVERN TRENT WATER LTD,25/11/2013,2672.98
"Development, Business & Housing",Property & Design,COAH,Premises-Related Expenditure,Water Rates,SEVERN TRENT WATER LTD,04/11/2013,2672.98
"Development, Business & Housing",Property & Design,COAP,Premises-Related Expenditure,R&M -Buildings DLO Charge,GRA-BERN,22/11/2013,211.26
"Development, Business & Housing",Property & Design,COAP,Premises-Related Expenditure,R&M -Buildings DLO Charge,JONES & HAMPTON LTD,19/11/2013,5000
"Development, Business & Housing",Property & Design,COAP,Premises-Related Expenditure,R&M -Buildings DLO Charge,GRA-BERN,19/11/2013,167.65
"Development, Business & Housing",Property & Design,COAP,Premises-Related Expenditure,R&M -Buildings DLO Charge,PRIORSLEE ACADEMY,28/11/2013,1266.67
"Development, Business & Housing",Property & Design,COAP,Premises-Related Expenditure,R&M -Buildings DLO Charge,PUMP SERVICES,28/11/2013,122.8
"Development, Business & Housing",Property & Design,COAP,Premises-Related Expenditure,R&M -Buildings DLO Charge,PUMP SERVICES,28/11/2013,360.42
"Development, Business & Housing",Property & Design,COAP,Premises-Related Expenditure,R&M -Buildings DLO Charge,PP ELECTRICAL SERVICES (Shropshire) Ltd,28/11/2013,249.88
"Development, Business & Housing",Property & Design,COAP,Premises-Related Expenditure,R&M -Buildings DLO Charge,ASLES (TOOL HIRE & SALES) LTD,28/11/2013,139
"Development, Business & Housing",Property & Design,COAP,Premises-Related Expenditure,R&M -Buildings DLO Charge,ASLES (TOOL HIRE & SALES) LTD,28/11/2013,401.5
"Development, Business & Housing",Property & Design,COAP,Premises-Related Expenditure,R&M -Buildings DLO Charge,PRIORSLEE ACADEMY,28/11/2013,106
"Development, Business & Housing",Property & Design,COAP,Premises-Related Expenditure,R&M -Buildings DLO Charge,D P WILCOX & SON,21/11/2013,156
"Development, Business & Housing",Property & Design,COAP,Premises-Related Expenditure,R&M -Buildings DLO Charge,PP ELECTRICAL SERVICES (Shropshire) Ltd,21/11/2013,8822.56
"Development, Business & Housing",Property & Design,COAP,Premises-Related Expenditure,R&M -Buildings DLO Charge,HORTON AUTOMATICS LTD,21/11/2013,120
"Development, Business & Housing",Property & Design,COAP,Premises-Related Expenditure,R&M -Buildings DLO Charge,D P WILCOX & SON,21/11/2013,155
"Development, Business & Housing",Property & Design,COAP,Premises-Related Expenditure,R&M -Buildings DLO Charge,PP ELECTRICAL SERVICES (Shropshire) Ltd,21/11/2013,2640
"Development, Business & Housing",Property & Design,COAP,Premises-Related Expenditure,R&M -Buildings DLO Charge,TAYLORS MECHANICAL H & P SERVICES LTD,21/11/2013,5100
"Development, Business & Housing",Property & Design,COAP,Premises-Related Expenditure,R&M -Buildings DLO Charge,JONES & HAMPTON LTD,21/11/2013,1569.75
"Development, Business & Housing",Property & Design,COAP,Premises-Related Expenditure,R&M -Buildings DLO Charge,D P WILCOX & SON,21/11/2013,220.7
"Development, Business & Housing",Property & Design,COAP,Premises-Related Expenditure,R&M -Buildings DLO Charge,D P WILCOX & SON,21/11/2013,337.5
"Development, Business & Housing",Property & Design,COAP,Premises-Related Expenditure,R&M -Buildings DLO Charge,TAYLORS MECHANICAL H & P SERVICES LTD,21/11/2013,146
"Development, Business & Housing",Property & Design,COAP,Premises-Related Expenditure,R&M -Buildings DLO Charge,WREKIN DRAIN SERVICES LTD,21/11/2013,3140
"Development, Business & Housing",Property & Design,COAP,Premises-Related Expenditure,R&M -Buildings DLO Charge,PP ELECTRICAL SERVICES (Shropshire) Ltd,21/11/2013,108
"Development, Business & Housing",Property & Design,COAP,Premises-Related Expenditure,R&M -Buildings DLO Charge,SDT ELECTRICAL LTD,28/11/2013,150
"Development, Business & Housing",Property & Design,COAP,Premises-Related Expenditure,R&M -Buildings DLO Charge,SHROPSHIRE HEATING SERVICES LTD,15/11/2013,553.44
"Development, Business & Housing",Property & Design,COAP,Premises-Related Expenditure,R&M -Buildings DLO Charge,ASLES (TOOL HIRE & SALES) LTD,15/11/2013,114
"Development, Business & Housing",Property & Design,COAP,Premises-Related Expenditure,R&M -Buildings DLO Charge,RCS ROOFING CONSTRUCTION SERVICES LTD,05/11/2013,104.8
"Development, Business & Housing",Property & Design,COAP,Premises-Related Expenditure,R&M -Buildings DLO Charge,Protec Fire Detection PLC,04/11/2013,106.73
"Development, Business & Housing",Property & Design,COAP,Premises-Related Expenditure,R&M -Buildings DLO Charge,GRANVILLE CONSTRUCTION & MAINTENANCE LTD,28/11/2013,986.6
"Development, Business & Housing",Property & Design,COAP,Premises-Related Expenditure,R&M -Buildings DLO Charge,ADT FIRE & SECURITY PLC,28/11/2013,352
"Development, Business & Housing",Property & Design,COAP,Premises-Related Expenditure,R&M -Buildings DLO Charge,ADT FIRE & SECURITY PLC,28/11/2013,152.4
"Development, Business & Housing",Property & Design,COAP,Premises-Related Expenditure,R&M -Buildings DLO Charge,WINDOW & DOOR CONTRACT SERVICES,04/11/2013,230.88
"Development, Business & Housing",Property & Design,COAP,Premises-Related Expenditure,R&M -Buildings DLO Charge,WINDOW & DOOR CONTRACT SERVICES,04/11/2013,299.11
"Development, Business & Housing",Property & Design,COAP,Premises-Related Expenditure,R&M -Buildings DLO Charge,WINDOW & DOOR CONTRACT SERVICES,04/11/2013,292.4
"Development, Business & Housing",Property & Design,COAP,Premises-Related Expenditure,R&M -Buildings DLO Charge,JONES & HAMPTON LTD,04/11/2013,295.5
"Development, Business & Housing",Property & Design,COAP,Premises-Related Expenditure,R&M -Buildings DLO Charge,SHROPSHIRE HEATING SERVICES LTD,12/11/2013,490.93
"Development, Business & Housing",Property & Design,COAP,Premises-Related Expenditure,R&M -Buildings DLO Charge,TAYLORS MECHANICAL H & P SERVICES LTD,12/11/2013,334.31
"Development, Business & Housing",Property & Design,COAP,Premises-Related Expenditure,R&M -Buildings DLO Charge,TAYLORS MECHANICAL H & P SERVICES LTD,12/11/2013,750
"Development, Business & Housing",Property & Design,COAP,Premises-Related Expenditure,R&M -Buildings DLO Charge,ADT FIRE & SECURITY PLC,12/11/2013,194
"Development, Business & Housing",Property & Design,COAP,Premises-Related Expenditure,R&M -Buildings DLO Charge,Protec Fire Detection PLC,12/11/2013,114.25
"Development, Business & Housing",Property & Design,COAP,Premises-Related Expenditure,R&M -Buildings DLO Charge,ARJOHUNTLEIGH UK,12/11/2013,114.72
"Development, Business & Housing",Property & Design,COAP,Premises-Related Expenditure,R&M -Buildings DLO Charge,TAYLORS MECHANICAL H & P SERVICES LTD,12/11/2013,224.25
"Development, Business & Housing",Property & Design,COAP,Premises-Related Expenditure,R&M -Buildings DLO Charge,PP ELECTRICAL SERVICES (Shropshire) Ltd,12/11/2013,105
"Development, Business & Housing",Property & Design,COAP,Premises-Related Expenditure,R&M -Buildings DLO Charge,ARJOHUNTLEIGH UK,12/11/2013,159
"Development, Business & Housing",Property & Design,COAP,Premises-Related Expenditure,R&M -Buildings DLO Charge,ASLES (TOOL HIRE & SALES) LTD,12/11/2013,378.32
"Development, Business & Housing",Property & Design,COAP,Premises-Related Expenditure,R&M -Buildings DLO Charge,HORTON AUTOMATICS LTD,12/11/2013,156.38
"Development, Business & Housing",Property & Design,COAP,Premises-Related Expenditure,R&M -Buildings DLO Charge,RCS ROOFING CONSTRUCTION SERVICES LTD,12/11/2013,350.6
"Development, Business & Housing",Property & Design,COAP,Premises-Related Expenditure,R&M -Buildings DLO Charge,SDT ELECTRICAL LTD,12/11/2013,155
"Development, Business & Housing",Property & Design,COAP,Premises-Related Expenditure,R&M -Buildings DLO Charge,WINDOW & DOOR CONTRACT SERVICES,04/11/2013,355.08
"Development, Business & Housing",Property & Design,COAP,Premises-Related Expenditure,R&M -Buildings DLO Charge,JONES & HAMPTON LTD,04/11/2013,309.27
"Development, Business & Housing",Property & Design,COAP,Premises-Related Expenditure,R&M -Buildings DLO Charge,WINDOW & DOOR CONTRACT SERVICES,04/11/2013,558.56
"Development, Business & Housing",Property & Design,COAP,Premises-Related Expenditure,R&M -Buildings DLO Charge,JONES & HAMPTON LTD,04/11/2013,123.26
"Development, Business & Housing",Property & Design,COAP,Premises-Related Expenditure,R&M -Buildings DLO Charge,PP ELECTRICAL SERVICES (Shropshire) Ltd,04/11/2013,245
"Development, Business & Housing",Property & Design,COAP,Premises-Related Expenditure,R&M -Buildings DLO Charge,RCS ROOFING CONSTRUCTION SERVICES LTD,04/11/2013,513.49
"Development, Business & Housing",Property & Design,COAP,Premises-Related Expenditure,R&M -Buildings DLO Charge,D P WILCOX & SON,04/11/2013,125
"Development, Business & Housing",Property & Design,COAP,Premises-Related Expenditure,R&M -Buildings DLO Charge,D P WILCOX & SON,04/11/2013,150
"Development, Business & Housing",Property & Design,COAP,Premises-Related Expenditure,R&M -Buildings DLO Charge,D P WILCOX & SON,04/11/2013,155.5
"Development, Business & Housing",Property & Design,COAP,Premises-Related Expenditure,R&M -Buildings DLO Charge,CONCEPT ELEVATORS (MIDLANDS) LIMITED,04/11/2013,316.41
"Development, Business & Housing",Property & Design,COAP,Premises-Related Expenditure,R&M -Buildings DLO Charge,EDRYD JENKINS (ELECTRICAL) LTD,04/11/2013,837
"Development, Business & Housing",Property & Design,COAP,Premises-Related Expenditure,R&M -Buildings DLO Charge,BRADLEY INDUSTRIAL SERVICES,04/11/2013,110.7
"Development, Business & Housing",Property & Design,COAP,Premises-Related Expenditure,R&M -Buildings DLO Charge,LOCSAFE SECURITY SYSTEMS,04/11/2013,165.95
"Development, Business & Housing",Property & Design,COAP,Premises-Related Expenditure,R&M -Buildings DLO Charge,LOCSAFE SECURITY SYSTEMS,04/11/2013,174.43
"Development, Business & Housing",Property & Design,COAP,Premises-Related Expenditure,R&M -Buildings DLO Charge,ASLES (TOOL HIRE & SALES) LTD,04/11/2013,156.5
"Development, Business & Housing",Property & Design,COAP,Premises-Related Expenditure,R&M -Buildings DLO Charge,TAYLORS MECHANICAL H & P SERVICES LTD,04/11/2013,405.12
"Development, Business & Housing",Property & Design,COAP,Premises-Related Expenditure,Trade Refuse,PHS GROUP LTD,28/11/2013,170
"Development, Business & Housing",Property & Design,COAP,Premises-Related Expenditure,Gas,West Mercia Energy (WME),19/11/2013,175.45
"Development, Business & Housing",Property & Design,COAP,Premises-Related Expenditure,Electricity,West Mercia Energy (WME),19/11/2013,1608.25
"Development, Business & Housing",Property & Design,COAP,Premises-Related Expenditure,Service Contracts,AUDIENCE SYSTEMS LTD,19/11/2013,1520.4
"Development, Business & Housing",Property & Design,COAP,Premises-Related Expenditure,Contract Cleaning,CLEANIT CLEANING SERVICES,19/11/2013,677
"Development, Business & Housing",Property & Design,COAP,Premises-Related Expenditure,Contract Cleaning,CLEANIT CLEANING SERVICES,19/11/2013,677
"Development, Business & Housing",Property & Design,COAP,Premises-Related Expenditure,Contract Cleaning,CLEANIT CLEANING SERVICES,19/11/2013,677
"Development, Business & Housing",Property & Design,COAP,Premises-Related Expenditure,Clean Mats & Toilet Requisites,PHS GROUP LTD,19/11/2013,551.7
"Development, Business & Housing",Property & Design,COAP,Premises-Related Expenditure,Service Contracts,SECURITY WISE LTD,19/11/2013,120
"Development, Business & Housing",Property & Design,COAP,Premises-Related Expenditure,Clean Mats & Toilet Requisites,WEST MERCIA SUPPLIES Catalogue Supplies (None Utility),25/11/2013,414.32
"Development, Business & Housing",Property & Design,COAP,Premises-Related Expenditure,Fuel Oil,West Mercia Energy (WME),21/11/2013,670.3
"Development, Business & Housing",Property & Design,COAP,Premises-Related Expenditure,Gas,West Mercia Energy (WME),21/11/2013,371.24
"Development, Business & Housing",Property & Design,COAP,Premises-Related Expenditure,Service Contracts,Protec Fire Detection PLC,28/11/2013,452.17
"Development, Business & Housing",Property & Design,COAP,Premises-Related Expenditure,Fuel Oil,West Mercia Energy (WME),21/11/2013,340.4
"Development, Business & Housing",Property & Design,COAP,Premises-Related Expenditure,Fuel Oil,West Mercia Energy (WME),21/11/2013,472.17
"Development, Business & Housing",Property & Design,COAP,Premises-Related Expenditure,Fuel Oil,West Mercia Energy (WME),21/11/2013,662.8
"Development, Business & Housing",Property & Design,COAP,Premises-Related Expenditure,Hygiene Services,PHS GROUP LTD,21/11/2013,-561.73
"Development, Business & Housing",Property & Design,COAP,Premises-Related Expenditure,Hygiene Services,PHS GROUP LTD,21/11/2013,193.77
"Development, Business & Housing",Property & Design,COAP,Premises-Related Expenditure,Service Contracts,CHUBB FIRE & SECURITY LTD,21/11/2013,224.66
"Development, Business & Housing",Property & Design,COAP,Premises-Related Expenditure,Gas,West Mercia Energy (WME),21/11/2013,125.6
"Development, Business & Housing",Property & Design,COAP,Premises-Related Expenditure,Water Rates,SEVERN TRENT WATER LTD,21/11/2013,562.83
"Development, Business & Housing",Property & Design,COAP,Premises-Related Expenditure,Hygiene Services,PHS GROUP LTD,21/11/2013,188.24
"Development, Business & Housing",Property & Design,COAP,Premises-Related Expenditure,Service Contracts,CHUBB FIRE & SECURITY LTD,28/11/2013,593.28
"Development, Business & Housing",Property & Design,COAP,Premises-Related Expenditure,Gas,BRITISH GAS BUSINESS,28/11/2013,292.81
"Development, Business & Housing",Property & Design,COAP,Premises-Related Expenditure,Water Rates,SEVERN TRENT WATER LTD,28/11/2013,423.58
"Development, Business & Housing",Property & Design,COAP,Premises-Related Expenditure,Fuel Oil,MIDLANDS WOOD FUEL SUPPLY LTD,28/11/2013,2117.44
"Development, Business & Housing",Property & Design,COAP,Premises-Related Expenditure,Clean Mats & Toilet Requisites,PHS ALL CLEAR,28/11/2013,1306.44
"Development, Business & Housing",Property & Design,COAP,Premises-Related Expenditure,Trade Refuse,SP HOLDING TRACTOR HIRE LTD,19/11/2013,110
"Development, Business & Housing",Property & Design,COAP,Premises-Related Expenditure,Hygiene Services,PHS GROUP LTD,22/11/2013,520.63
"Development, Business & Housing",Property & Design,COAP,Premises-Related Expenditure,Water Rates,SEVERN TRENT WATER LTD,22/11/2013,2057.4
"Development, Business & Housing",Property & Design,COAP,Premises-Related Expenditure,Water Rates,SEVERN TRENT WATER LTD,22/11/2013,1145.64
"Development, Business & Housing",Property & Design,COAP,Premises-Related Expenditure,Clean Mats & Toilet Requisites,PROVAC CLEANING SUPPLIES LTD,07/11/2013,171.9
"Development, Business & Housing",Property & Design,COAP,Premises-Related Expenditure,Clean Mats & Toilet Requisites,PROVAC CLEANING SUPPLIES LTD,07/11/2013,127.56
"Development, Business & Housing",Property & Design,COAP,Premises-Related Expenditure,Contract Cleaning,RENTOKIL INITIAL UK LIMITED,14/11/2013,156.26
"Development, Business & Housing",Property & Design,COAP,Premises-Related Expenditure,Clean Mats & Toilet Requisites,PHS ALL CLEAR,14/11/2013,1085.5
"Development, Business & Housing",Property & Design,COAP,Premises-Related Expenditure,Clean Mats & Toilet Requisites,CLEANIT CLEANING SERVICES,15/11/2013,677
"Development, Business & Housing",Property & Design,COAP,Premises-Related Expenditure,Service Contracts,ADT FIRE & SECURITY PLC,15/11/2013,363.5
"Development, Business & Housing",Property & Design,COAP,Premises-Related Expenditure,Clean Mats & Toilet Requisites,CLEANIT CLEANING SERVICES,15/11/2013,677
"Development, Business & Housing",Property & Design,COAP,Premises-Related Expenditure,Trade Refuse,S P HOLDING SERVICES LTD,15/11/2013,110
"Development, Business & Housing",Property & Design,COAP,Premises-Related Expenditure,Clean Mats & Toilet Requisites,CLEANIT CLEANING SERVICES,15/11/2013,108.33
"Development, Business & Housing",Property & Design,COAP,Premises-Related Expenditure,Gas,West Mercia Energy (WME),04/11/2013,168.93
"Development, Business & Housing",Property & Design,COAP,Premises-Related Expenditure,Gas,West Mercia Energy (WME),04/11/2013,322.78
"Development, Business & Housing",Property & Design,COAP,Premises-Related Expenditure,Gas,West Mercia Energy (WME),04/11/2013,548.9
"Development, Business & Housing",Property & Design,COAP,Premises-Related Expenditure,Gas,West Mercia Energy (WME),04/11/2013,667.42
"Development, Business & Housing",Property & Design,COAP,Premises-Related Expenditure,Electricity,West Mercia Energy (WME),04/11/2013,652.42
"Development, Business & Housing",Property & Design,COAP,Premises-Related Expenditure,Electricity,West Mercia Energy (WME),04/11/2013,333.78
"Development, Business & Housing",Property & Design,COAP,Premises-Related Expenditure,Electricity,West Mercia Energy (WME),04/11/2013,2381.47
"Development, Business & Housing",Property & Design,COAP,Premises-Related Expenditure,Electricity,West Mercia Energy (WME),04/11/2013,203.14
"Development, Business & Housing",Property & Design,COAP,Premises-Related Expenditure,Gas,West Mercia Energy (WME),04/11/2013,5294.6
"Development, Business & Housing",Property & Design,COAP,Premises-Related Expenditure,Gas,West Mercia Energy (WME),04/11/2013,160.47
"Development, Business & Housing",Property & Design,COAP,Premises-Related Expenditure,Gas,West Mercia Energy (WME),04/11/2013,610.1
"Development, Business & Housing",Property & Design,COAP,Premises-Related Expenditure,Gas,West Mercia Energy (WME),04/11/2013,-749.05
"Development, Business & Housing",Property & Design,COAP,Premises-Related Expenditure,Gas,West Mercia Energy (WME),04/11/2013,261.46
"Development, Business & Housing",Property & Design,COAP,Premises-Related Expenditure,Gas,West Mercia Energy (WME),04/11/2013,1892.62
"Development, Business & Housing",Property & Design,COAP,Premises-Related Expenditure,Gas,West Mercia Energy (WME),04/11/2013,301.03
"Development, Business & Housing",Property & Design,COAP,Premises-Related Expenditure,Electricity,West Mercia Energy (WME),04/11/2013,-872.77
"Development, Business & Housing",Property & Design,COAP,Premises-Related Expenditure,Gas,West Mercia Energy (WME),04/11/2013,286.04
"Development, Business & Housing",Property & Design,COAP,Premises-Related Expenditure,Gas,West Mercia Energy (WME),04/11/2013,1149.14
"Development, Business & Housing",Property & Design,COAP,Premises-Related Expenditure,Gas,West Mercia Energy (WME),04/11/2013,209.56
"Development, Business & Housing",Property & Design,COAP,Premises-Related Expenditure,Gas,West Mercia Energy (WME),04/11/2013,104.81
"Development, Business & Housing",Property & Design,COAP,Premises-Related Expenditure,Electricity,West Mercia Energy (WME),04/11/2013,561.6
"Development, Business & Housing",Property & Design,COAP,Premises-Related Expenditure,Electricity,West Mercia Energy (WME),04/11/2013,306.84
"Development, Business & Housing",Property & Design,COAP,Premises-Related Expenditure,Electricity,West Mercia Energy (WME),04/11/2013,259.31
"Development, Business & Housing",Property & Design,COAP,Premises-Related Expenditure,Electricity,West Mercia Energy (WME),04/11/2013,1467.32
"Development, Business & Housing",Property & Design,COAP,Premises-Related Expenditure,Electricity,West Mercia Energy (WME),04/11/2013,494.52
"Development, Business & Housing",Property & Design,COAP,Premises-Related Expenditure,Electricity,West Mercia Energy (WME),04/11/2013,2070.92
"Development, Business & Housing",Property & Design,COAP,Premises-Related Expenditure,Gas,West Mercia Energy (WME),04/11/2013,350.01
"Development, Business & Housing",Property & Design,COAP,Premises-Related Expenditure,Non Domestic Rates,CYNGOR GWYNEDD COUNCIL,01/11/2013,1601
"Development, Business & Housing",Property & Design,COAP,Premises-Related Expenditure,Electricity,West Mercia Energy (WME),27/11/2013,271.33
"Development, Business & Housing",Property & Design,COAP,Premises-Related Expenditure,Electricity,West Mercia Energy (WME),27/11/2013,374.49
"Development, Business & Housing",Property & Design,COAP,Premises-Related Expenditure,Electricity,West Mercia Energy (WME),27/11/2013,956.36
"Development, Business & Housing",Property & Design,COAP,Premises-Related Expenditure,Electricity,West Mercia Energy (WME),27/11/2013,238.36
"Development, Business & Housing",Property & Design,COAP,Premises-Related Expenditure,Electricity,West Mercia Energy (WME),27/11/2013,603.71
"Development, Business & Housing",Property & Design,COAP,Premises-Related Expenditure,Electricity,West Mercia Energy (WME),27/11/2013,1041.01
"Development, Business & Housing",Property & Design,COAP,Premises-Related Expenditure,Gas,West Mercia Energy (WME),27/11/2013,258.19
"Development, Business & Housing",Property & Design,COAP,Premises-Related Expenditure,Gas,West Mercia Energy (WME),27/11/2013,213.98
"Development, Business & Housing",Property & Design,COAP,Premises-Related Expenditure,Gas,West Mercia Energy (WME),27/11/2013,761.97
"Development, Business & Housing",Property & Design,COAP,Premises-Related Expenditure,Gas,West Mercia Energy (WME),27/11/2013,425.58
"Development, Business & Housing",Property & Design,COAP,Premises-Related Expenditure,Gas,West Mercia Energy (WME),27/11/2013,1162.27
"Development, Business & Housing",Property & Design,COAP,Premises-Related Expenditure,Electricity,West Mercia Energy (WME),27/11/2013,1863.29
"Development, Business & Housing",Property & Design,COAP,Premises-Related Expenditure,Electricity,West Mercia Energy (WME),27/11/2013,1273.92
"Development, Business & Housing",Property & Design,COAP,Premises-Related Expenditure,Electricity,West Mercia Energy (WME),27/11/2013,409.66
"Development, Business & Housing",Property & Design,COAP,Premises-Related Expenditure,Fuel Oil,West Mercia Energy (WME),27/11/2013,568.87
"Development, Business & Housing",Property & Design,COAP,Premises-Related Expenditure,Electricity,West Mercia Energy (WME),27/11/2013,219.58
"Development, Business & Housing",Property & Design,COAP,Premises-Related Expenditure,Electricity,West Mercia Energy (WME),27/11/2013,261.34
"Development, Business & Housing",Property & Design,COAP,Premises-Related Expenditure,Electricity,West Mercia Energy (WME),27/11/2013,725.27
"Development, Business & Housing",Property & Design,COAP,Premises-Related Expenditure,Gas,West Mercia Energy (WME),27/11/2013,441.44
"Development, Business & Housing",Property & Design,COAP,Premises-Related Expenditure,Fuel Oil,West Mercia Energy (WME),27/11/2013,545.52
"Development, Business & Housing",Property & Design,COAP,Premises-Related Expenditure,Electricity,West Mercia Energy (WME),27/11/2013,355.78
"Development, Business & Housing",Property & Design,COAP,Premises-Related Expenditure,Gas,West Mercia Energy (WME),27/11/2013,324.39
"Development, Business & Housing",Property & Design,COAP,Premises-Related Expenditure,Gas,West Mercia Energy (WME),27/11/2013,751.66
"Development, Business & Housing",Property & Design,COAP,Premises-Related Expenditure,Electricity,West Mercia Energy (WME),27/11/2013,504.07
"Development, Business & Housing",Property & Design,COAP,Premises-Related Expenditure,Gas,West Mercia Energy (WME),27/11/2013,213.2
"Development, Business & Housing",Property & Design,COAP,Premises-Related Expenditure,Gas,West Mercia Energy (WME),27/11/2013,156.11
"Development, Business & Housing",Property & Design,COAP,Premises-Related Expenditure,Gas,West Mercia Energy (WME),27/11/2013,128.65
"Development, Business & Housing",Property & Design,COAP,Premises-Related Expenditure,Gas,West Mercia Energy (WME),27/11/2013,125.95
"Development, Business & Housing",Property & Design,COAP,Premises-Related Expenditure,Electricity,West Mercia Energy (WME),27/11/2013,2993.88
"Development, Business & Housing",Property & Design,COAP,Premises-Related Expenditure,Electricity,West Mercia Energy (WME),27/11/2013,214.61
"Development, Business & Housing",Property & Design,COAP,Premises-Related Expenditure,Electricity,West Mercia Energy (WME),27/11/2013,719.98
"Development, Business & Housing",Property & Design,COAP,Premises-Related Expenditure,Electricity,West Mercia Energy (WME),27/11/2013,2839.08
"Development, Business & Housing",Property & Design,COAP,Premises-Related Expenditure,Electricity,West Mercia Energy (WME),27/11/2013,8959.14
"Development, Business & Housing",Property & Design,COAP,Premises-Related Expenditure,Electricity,West Mercia Energy (WME),27/11/2013,434.42
"Development, Business & Housing",Property & Design,COAP,Premises-Related Expenditure,Gas,West Mercia Energy (WME),27/11/2013,322.14
"Development, Business & Housing",Property & Design,COAP,Premises-Related Expenditure,Gas,West Mercia Energy (WME),27/11/2013,1777.92
"Development, Business & Housing",Property & Design,COAP,Premises-Related Expenditure,Gas,West Mercia Energy (WME),27/11/2013,4898.66
"Development, Business & Housing",Property & Design,COAP,Premises-Related Expenditure,Electricity,West Mercia Energy (WME),27/11/2013,5269.34
"Development, Business & Housing",Property & Design,COAP,Premises-Related Expenditure,Electricity,West Mercia Energy (WME),27/11/2013,148.58
"Development, Business & Housing",Property & Design,COAP,Premises-Related Expenditure,Gas,West Mercia Energy (WME),27/11/2013,387.97
"Development, Business & Housing",Property & Design,COAP,Premises-Related Expenditure,Gas,West Mercia Energy (WME),27/11/2013,530.37
"Development, Business & Housing",Property & Design,COAP,Premises-Related Expenditure,Gas,West Mercia Energy (WME),27/11/2013,117.63
"Development, Business & Housing",Property & Design,COAP,Premises-Related Expenditure,Gas,West Mercia Energy (WME),27/11/2013,434.79
"Development, Business & Housing",Property & Design,COAP,Premises-Related Expenditure,Gas,West Mercia Energy (WME),27/11/2013,778.03
"Development, Business & Housing",Property & Design,COAP,Premises-Related Expenditure,Gas,West Mercia Energy (WME),27/11/2013,-104.81
"Development, Business & Housing",Property & Design,COAP,Premises-Related Expenditure,Electricity,West Mercia Energy (WME),27/11/2013,1303.76
"Development, Business & Housing",Property & Design,COAP,Premises-Related Expenditure,Electricity,West Mercia Energy (WME),27/11/2013,648.98
"Development, Business & Housing",Property & Design,COAP,Premises-Related Expenditure,Gas,West Mercia Energy (WME),27/11/2013,2390.49
"Development, Business & Housing",Property & Design,COAP,Premises-Related Expenditure,Service Contracts,PP ELECTRICAL SERVICES (Shropshire) Ltd,28/11/2013,180
"Development, Business & Housing",Property & Design,COAP,Premises-Related Expenditure,Service Contracts,HYDRO-TECH ENVIRONMENTAL LLP,28/11/2013,137.5
"Development, Business & Housing",Property & Design,COAP,Premises-Related Expenditure,Clean Mats & Toilet Requisites,PRINCIPAL HYGIENE SYSTEMS,28/11/2013,194.35
"Development, Business & Housing",Property & Design,COAP,Premises-Related Expenditure,Contract Cleaning,OCEAN CONTRACT CLEANING LTD,28/11/2013,3321.46
"Development, Business & Housing",Property & Design,COAP,Premises-Related Expenditure,Contract Cleaning,OCEAN CONTRACT CLEANING LTD,28/11/2013,3321.46
"Development, Business & Housing",Property & Design,COAP,Premises-Related Expenditure,Service Contracts,PROKILL UK LIMITED,28/11/2013,108.94
"Development, Business & Housing",Property & Design,COAP,Premises-Related Expenditure,Gas,BUDGET GAS LTD,28/11/2013,178.26
"Development, Business & Housing",Property & Design,COAP,Premises-Related Expenditure,Gas,BUDGET GAS LTD,28/11/2013,178.26
"Development, Business & Housing",Property & Design,COAP,Premises-Related Expenditure,Fuel Oil,West Mercia Energy (WME),07/11/2013,341.5
"Development, Business & Housing",Property & Design,COAP,Premises-Related Expenditure,Gas,West Mercia Energy (WME),07/11/2013,347.28
"Development, Business & Housing",Property & Design,COAP,Premises-Related Expenditure,Gas,West Mercia Energy (WME),07/11/2013,127.44
"Development, Business & Housing",Property & Design,COAP,Premises-Related Expenditure,Electricity,West Mercia Energy (WME),07/11/2013,382.52
"Development, Business & Housing",Property & Design,COAP,Premises-Related Expenditure,Electricity,West Mercia Energy (WME),07/11/2013,892.46
"Development, Business & Housing",Property & Design,COAP,Premises-Related Expenditure,Fuel Oil,West Mercia Energy (WME),07/11/2013,665
"Development, Business & Housing",Property & Design,COAP,Premises-Related Expenditure,Fuel Oil,West Mercia Energy (WME),07/11/2013,670.97
"Development, Business & Housing",Property & Design,COAP,Premises-Related Expenditure,Clean Mats & Toilet Requisites,PROVAC CLEANING SUPPLIES LTD,07/11/2013,156
"Development, Business & Housing",Property & Design,COAP,Premises-Related Expenditure,Service Contracts,Protec Fire Detection PLC,12/11/2013,-495
"Development, Business & Housing",Property & Design,COAP,Premises-Related Expenditure,Service Contracts,DALAIR LIMITED,12/11/2013,260
"Development, Business & Housing",Property & Design,COAP,Premises-Related Expenditure,Gas,BRITISH GAS BUSINESS,12/11/2013,594.43
"Development, Business & Housing",Property & Design,COAP,Premises-Related Expenditure,Gas,West Mercia Energy (WME),12/11/2013,-521.71
"Development, Business & Housing",Property & Design,COAP,Premises-Related Expenditure,Service Contracts,DALAIR LIMITED,12/11/2013,915
